Workbook

Sheet Cover
A5: 2023 Draft IM Review
A6: Demonstration model:
A7: Stylised impacts of different RAB indexation approaches
A21: 2023-06-14

Sheet Table of contents
B1: Table of Contents
B3: Sheet name | C3: Link | D3: Description
B4: Description and approach | C4: Description and approach | D4: Explains the purpose of the model, as well as the approach taken
B5: Simplifying assumptions | C5: Simplifying assumptions | D5: Lists the simplifying assumptions we have made for demonstration of the NPV=0 principal
B6: Inputs - forecast | C6: Inputs - forecast | D6: Contains the 'forecast' assumptions we have used to set the forecast revenue and IRR
B7: Inputs - actual | C7: Inputs - actual | D7: Contains the 'actual' assumptions we have used to determine the actual revenue and IRR
B8: Macro | C8: Macro | D8: Goal seeks revenue to set PV of expenditure equal to PV of revenue
B10: The following models/ calculations are included in the light green tabs:
B11: Transpower current (non-indexed RAB) | C11: Transpower (TP) current | D11: Demonstrates the current Transpower approach. This is not an exact replica of Transpower's models, but demonstrates the principles of non-indexed RAB and inflation without wash-ups
B12: Transpower (non-indexed RAB) with inflation wash-ups (excl. cost of debt adjustment) | C12: TP with wash-up (excl. CoD adj) | D12: Demonstrates that to achieve NPV=0 for a high inflation scenario, Transpower's revenue and RAB needs to be washed up
B13: Transpower (non-indexed RAB) with inflation wash-ups (incl. cost of debt adjustment) | C13: TP with wash-up (incl. CoD adj) | D13: Demonstrates that to achieve NPV=0 for a high inflation scenario, Transpower's revenue and RAB needs to be washed up. This also adds an adjustment to revenue to reflect a fixed cost of debt
B14: EDB, GTB and GDB current | C14: EDB & GDB current | D14: Demonstrates the current EDB, GTB and GDB approach which indexes the RAB
B15: EDB, GTB and GDB with Y1 inflation wash-up (excl. revenue adjustment) | C15: EDB & GDB with Y1 (ex. CoD adj) | D15: Demonstrates that to achieve NPV=0 for a high inflation scenario, EDB and GPB revenue needs to be washed up in year 1. This shows the indexed RAB approach.
B16: EDB, GTB and GDB with Y1 inflation wash-up (incl. revenue adjustment) | C16: EDB & GDB (incl. CoD adj) | D16: Demonstrates that to achieve NPV=0 for a high inflation scenario, EDB and GPB revenue needs to be washed up in year 1 and an adjustment needs to be made to revenue to reflect a fixed cost of debt.

Sheet Description and approach
A1: Description
C2: The purpose of the model is to 1) demonstrate the differences between an indexed RAB and an non-indexed RAB when outturn inflation differs from expectations; and 2) identify the relevant changes required by comparing the demonstration model to current practice.
C4: This model was produced to support the draft decisions in the following paper: Financing and incentivising efficient expenditure during the energy transition topic paper, Part 4 Input Methodologies Review 2023 – Draft decision. Draft decisions related to Transpower, EDBs and GPBs exposure to inflation risk and associated compensation are discussed in Chapter 5, topic 5b. A second demonstration model is also published alongside this model: Demonstration model: Financial impacts of indexation of Transpower's RAB Draft decisions related to Transpower RAB indexation are discussed in Chapter 3, topic 3a of the topic paper.
A6: General notes
B7: 1 | C7: Financial quantities in this model are expressed in NZD $m
B8: =B7+1 -> 2 | C8: Dummy data is used for illustrative purposes.
B9: =B8+1 -> 3 | C9: The macro in the 'Macro' sheet goal seeks revenue for each of the calculation sheets so that NPV of revenue = NPV of expenditure for the two 5-years periods. E.g., goal seeks revenue in 'Transpower (TP) current'! Cell K57 and P64 to set cells K56 and P63 to zero.
B10: 4 | C10: A lighter font is used for cells containing a formula linking to another sheet. A red font is applied to input cells. Grey shading is used to draw attention to certain cells e.g. where formulas differ for the indexed and non-indexed RAB approach.
B11: 5 | C11: Wherever two horizontally adjacent cells contain numerical formulas which differ, an orange vertical border has been placed between the cells to indicate that the cell formulas are different.
B12: 6 | C12: This model should not be used for any other purpose than describe above.
A13: Background
B14: =B12+1 -> 7 | C14: The regulatory accounting treatment of suppliers should be consistent with the s 52A(1)(a) and (d) limbs of the Part 4 purpose such that suppliers (a) have “incentives to innovate and to invest, including in replacement, upgraded, and new assets and (d) are “limited in their ability to extract excessive profits”. The principle NPV=0 is consistent with promoting s 52A(1)(a) and (d) and is achieved when the present value of revenue is equal to the present value of efficiently incurred costs.
B15: =B14+1 -> 8 | C15: NPV = 0 is achieved when the present value of revenue is equal to the present value of efficiently-incurred costs, when calculated over the life of the assets. The calculation can be done by either using the building blocks or by using cash flows. If cash flows are used, costs include capital expenditure, operating expenditure and tax and account for the opening and closing values of the asset base.
B16: =B15+1 -> 9 | C16: Inflation should be accounted for in a way that achieves NPV = 0.
B17: 10 | C17: Efficiently-incurred costs in this context means costs that reflect the inflation-risks that are placed on suppliers. If the regulatory regime does not impose inflation risks on suppliers, the efficiently incurred costs are those that are indexed for inflation. On the other hand, if some inflation risk is placed on suppliers the efficiently incurred costs include some costs that are indexed for inflation and other costs that are not.
B18: 11 | C18: We first assume that suppliers face no inflation risks. Therefore, the efficiently incurred costs are costs indexed for inflation.
A20: Modelling principles: The different ways to account for inflation to achieve NPV = 0 | D20: Model reference | E20: Notes
B21: =B18+1 -> 12 | C21: There are two common methods of regulatory accounting.
B22: =B21+1 -> 13 | C22: The simplest is nominal modelling where a forecast of inflation is included in the maximum allowable revenue calculation. If actual inflation differs from expected inflation there is a wash-up to allowable revenue. The asset base is not adjusted for inflation until it is washed-up, along with other costs, at the reset. It can be demonstrated that this method achieves NPV = 0. In the relevant model NPV does not equal zero though due to the overcompensation for fixed cost of debt in the revenue wash-up. | D22: TP with wash-up (excl. CoD adj) | E22: This takes the current Transpower (TP) treatment and adds revenue wash-ups and RAB rebasing. It excludes the revenue adjustment for the debt compensation issue (refer to row 4 above) topic 5b Finding 1).
B23: =B22+1 -> 14 | C23: The more complex method is referred to here as the indexation method which adjusts the asset base for inflation and treats this same amount as revenue. Adding inflation to the asset base and removing the same amount from revenue can be understood intuitively as offsetting adjustments to both sides of the ledger that have no net effect over the life of an asset. This method also washes-up revenue annually for actual inflation and the RAB at the reset. By making these adjustments this method achieves NPV = 0. In the relevant model NPV does not equal zero though due to the overcompensation for fixed cost of debt in the revenue wash-up. | D23: EDB & GDB with Y1 (ex. CoD adj) | E23: This is the same as current EDB treatment with an adjustment to wash-up year 1 revenue. It excludes the revenue adjustment for the debt compensation issue discussed later.
B24: 15 | C24: Another intuitive way of understanding this method is to recognise that if a nominal (inflated) asset base is multiplied by a nominal WACC then inflation would be accounted for twice. This is corrected by making the negative adjustment to revenue.
B25: 16 | C25: There are two adjustments for inflation. These are the same in both the nominal and the indexation methods. The first is to adjust revenue if inflation differs from expected inflation. The second is to rebase costs, including the asset base, if inflation differs from expectation. The second adjustment occurs when resetting a price-quality path. | D25: Refer to the actual revenue calc. (row 68) and RAB adjustment (row 23) in the models referenced above.
B26: 17 | C26: As discussed in the topic paper (refer to row 4 above), under the assumption that regulated businesses have fixed cost of debt, the revenue wash-up overcompensates regulated entities for inflation. An adjustment to the revenue wash-up is therefore proposed to remove this overcompensation. | D26: Refer to the real IRR calculation and check (row 74-75) in the models referenced above. This shows that the real IRR achieved is higher than forecast when setting the price path.
B27: 18 | C27: The models demonstrate that these adjustments for inflation are necessary to achieve NPV=0. | D27: Refer to the real IRR calculation and check (row 74-75) in the TP and EDD/GDB models labelled "incl. CoD adj".
B28: 19 | C28: The model also demonstrates that when the same assumptions are used in the nominal and indexation methods, the same internal rate of return is achieved over the life of the assets. When inflation is as expected, the nominal IRR is the same as the nominal WACC set at the outset and the real IRR is the same as real WACC at the outset. When inflation is higher, the real IRR remains equal to real WACC. | D28: Refer to rows 72 and 74 in the models. | E28: RAB useful lives of 10 years assumed to be able to fully depreciate assets for demonstration purposes.
B29: 20 | C29: The indexation method is more commonly applied to economic regulation because it delivers a relatively constant real revenue path over the life of the assets, which more likely supports an efficient pricing profile, whereas the nominal method produces a revenue path that is tilted forward (i.e. revenue is higher early in the asset life and lower later in the asset life). | D29: Refer to row 118 in the models referenced above.
B30: 21 | C30: Both the nominal and indexation methods maintain revenue, in real terms, as expected at the reset, if the inflation adjustment to revenue occurs immediately. If the inflation adjustment to revenue is delayed, which it needs to be in practice, the maintenance of real revenue is delayed for a few years. An appropriate compensation for the delay should be applied. | E30: There is a two year lag on the EDB & GTB wash-up, with a time value adjustment to compensate for the delay. GDBs use a 18 month lagged CPI index when setting their price paths to achieve the wash-up.
A31: Notes related to Transpower
B32: =B30+1 -> 22 | C32: The current Transpower approach with a non-indexed RAB is demonstrated in the "Transpower (TP) current" model. In this model there is no annual revenue wash-up and the RAB is not washed up at the Y6 price reset. This shows that Transpower is exposed to inflation risk as it is not achieving the expected real IRR. | D32: Transpower (TP) current
B33: =B32+1 -> 23 | C33: The second Transpower model shows that by washing-up the RAB and washing-up revenue for inflation, the real IRR is higher than the expected real IRR. | D33: TP with wash-up (excl. CoD adj)
B34: =B33+1 -> 24 | C34: The third Transpower model adjusts the revenue wash-up for the debt compensation issue (refer to topic paper in row 4 above, topic 5b Finding 1). This shows that with an assumption that the nominal cost of debt is fixed (actual = forecast), NPV=0 is achieved after making the cost of debt adjustment to revenue. | D34: TP with wash-up (incl. CoD adj)'
A35: Notes related to EDBs
B36: =B34+1 -> 25 | C36: The current EDB approach is demonstrated in the "EDB & GDB current" model. In this model, revenue is washed up from year 2, RAB is indexed and washed up for actual inflation at the year 6 price-quality path reset. This model shows that, despite not washing up revenue in year 1 (refer issue 2 in the "Findings & issues" sheet), the EDBs achieve a real IRR higher than the expected real WACC. This is due to the assumption that EDBs have a fixed nominal cost of debt, and therefore are overcompensated by the revenue-wash-up when inflation is higher than forecast. | D36: EDB & GDB current
B37: =B36+1 -> 26 | C37: The second EDB model is similar to the one above in para 18, but adds the year 1 revenue wash-up. As with the current approach, this would over-compensate the EDBs when inflation is higher than forecast, and vice versa when inflation is lower than forecast, as their cost of borrowings is assumed to be fixed. | D37: EDB & GDB with Y1 (ex. CoD adj) | E37: Note actual cost of debt on row 80 is set as if the nominal cost of debt is fixed.
B38: =B37+1 -> 27 | C38: The third EDB model adjusts the revenue wash-up for the debt compensation issue. This shows that with an assumption that the nominal cost of debt is fixed (actual = forecast), NPV=0 is achieved after making the cost of debt adjustment to revenue. | D38: EDB & GDB (incl. CoD adj)
A39: Notes related to GPBs
B40: =B38+1 -> 28 | C40: GTB treatment is the same as for EDBs above. | D40: EDB & GDB current
B41: =B40+1 -> 29 | C41: GDB treatment is the same as for EDBs, with the exception that they do not have a revenue wash-up as such, but rather they use an 18-month lagged CPI to set actual prices at the start of a year. This effectively washes up their revenue. The year 1 revenue wash-up issue will therefore not apply to GDBs. | D41: EDB & GDB with Y1 (ex. CoD adj)
B42: 30 | C42: For both GTB and GDBs, the debt compensation issue will, however, be similar to EDBs. | D42: EDB & GDB (incl. CoD adj)
A43: Findings
B44: =B42+1 -> 31 | C44: Refer to our findings in the topic paper (refer to row 4 above) on RAB indexation (topic 3a) and exposure to inflation risk and associated compensation (topic 5b).
A46: Glossary
C47: NPV: Net present value
C48: IRR: Internal rate of return
C49: RAB: Regulatory asset base
C50: WACC: Weighted average cost of capital
C51: EBT: Earnings before tax

Sheet Simplifying assumptions
A1: Simplifying assumptions
C3: The demonstration models, which shows the proposed amendments achieve NPV=0 across the suppliers, uses the following simplifying assumptions:
B5: 1 | C5: The revenue wash-up occurs in the same year as the higher inflation. In practice, there is a delay until the wash-up occurs and we apply a present value adjustment to ensure suppliers are compensated for the delay.
B6: 2 | C6: There is only one deflator, which is CPI. In practice, there are separate deflators used for capital expenditure and operating expenditure.
B7: 3 | C7: The RAB is fully depreciated over the period of the model and we only include capex in the first 9 years. This is to enable full depreciation of the RAB by year 10. In practice, the RAB will either continue to increase or stabilise, depending on whether customer growth exceeds replacement capital expenditure.
B8: 4 | C8: The actual closing RAB at the end of the first regulatory period is calculated by re-basing the RAB based on actual CPI. In practice, the closing RAB value will vary somewhat from this, as changes in revaluation and actual depreciation will not perfectly follow CPI due to timing differences.
B9: 5 | C9: For each of the forecast and actuals, we have used a consistent inflator across the 10 years (2% forecast and 5% actual). Any actual inflation scenario can however be entered in the actual inputs (cell F15-25).
B10: 6 | C10: We have assumed all values are end of year values for the NPV=0 calculations. As RAB indexation is carried out on opening RAB values, the corresponding revenue offset is adjusted to year-end timing in the building blocks.
C12: These assumptions should not affect our findings. They just make it more straightforward to show that NPV=0 is achieved across the suppliers.

Sheet Inputs - forecast
A1: Inputs - forecast
E2: 2020-06-30 | F2: 2021-06-30 | G2: 2022-06-30 | H2: 2023-06-30 | I2: 2024-06-30 | J2: 2025-06-30 | K2: 2026-06-30 | L2: 2027-06-30 | M2: 2028-06-30 | N2: 2029-06-30 | O2: 2030-06-30 | P2: Average
A4: Financials ($ of 30 June 2020)
B5: Opex | F5: 100 | G5: 100 | H5: 100 | I5: 100 | J5: 100 | K5: 100 | L5: 100 | M5: 100 | N5: 100 | O5: 100
B6: Capex | F6: 200 | G6: 200 | H6: 200 | I6: 200 | J6: 200 | K6: 100 | L6: 100 | M6: 100 | N6: 100 | O6: 0 | P6: Do not enter capex in last year, as depreciation is calculated on opening RAB value and therefore RAB will not be fully depreciated if capex included in last year.
B7: Opening RAB | E7: =E12/E18 -> 3000
A9: Financials (nominal)
B10: Opex | F10: =F5*F27 -> 102 | G10: 104.04 | H10: 106.1208 | I10: 108.243216 | J10: 110.4080803 | K10: 130.1807194 | L10: 132.7843338 | M10: 135.4400204 | N10: 138.1488208 | O10: 140.9117973
B11: Capex | F11: =F6*F21 -> 204 | G11: 208.08 | H11: 212.2416 | I11: 216.486432 | J11: 220.8161606 | K11: 130.1807194 | L11: 132.7843338 | M11: 135.4400204 | N11: 138.1488208 | O11: 0
B12: Opening RAB | E12: 3000
A14: Asset lives
B15: Initial RAB | D15: 10
B16: Capex | D16: 10
A18: CPI (end of period) | E18: 1 | F18: =E18*(1+F19) -> 1.02 | G18: =F18*(1+G19) -> 1.0404 | H18: 1.061208 | I18: 1.08243216 | J18: 1.104080803 | K18: 1.126162419 | L18: 1.148685668 | M18: 1.171659381 | N18: 1.195092569 | O18: 1.21899442
B19: Predicted inflation rate | E19: 0.02 | F19: 0.02 | G19: 0.02 | H19: 0.02 | I19: 0.02 | J19: 0.02 | K19: 0.02 | L19: 0.02 | M19: 0.02 | N19: 0.02 | O19: 0.02 | P19: =(((1+F19)*(1+G19)*(1+H19)*(1+I19)*(1+J19)*(1+K19)*(1+L19)*(1+M19)*(1+N19)*(1+O19))^0.1)-1 -> 0.02
A21: Rebased CPI (end of period) | C21: The simplest is nominal modelling where a forecast of inflation is included in the maximum allowable revenue calculation. If actual inflation differs from expected inflation there is a wash-up to allowable revenue. The asset base is not adjusted for inflation until it is washed, along with other costs, at the reset. It can be demonstrated that this method achieves NPV = 0. In the relevant model NPV does not equal zero though due to the overcompensation in the revenue wash-up due to the cost of debt being fixed and therefore not affected if outturn inflation differs from forecast. | E21: 1 | F21: =E21*(1+F22) -> 1.02 | G21: =F21*(1+G22) -> 1.0404 | H21: =G21*(1+H22) -> 1.061208 | I21: =H21*(1+I22) -> 1.08243216 | J21: =I21*(1+J22) -> 1.104080803 | K21: ='Inputs - actual'!J14*(1+'Inputs - forecast'!K22) -> 1.301807194 | L21: =K21*(1+L22) -> 1.327843338 | M21: =L21*(1+M22) -> 1.354400204 | N21: =M21*(1+N22) -> 1.381488208 | O21: =N21*(1+O22) -> 1.409117973
B22: Predicted inflation rate | E22: =E19 -> 0.02 | F22: =F19 -> 0.02 | G22: 0.02 | H22: 0.02 | I22: 0.02 | J22: 0.02 | K22: 0.02 | L22: 0.02 | M22: 0.02 | N22: 0.02 | O22: 0.02
A24: Opex index | E24: 1 | F24: =E24*(1+F25) -> 1.02 | G24: =F24*(1+G25) -> 1.0404 | H24: =G24*(1+H25) -> 1.061208 | I24: =H24*(1+I25) -> 1.08243216 | J24: =I24*(1+J25) -> 1.104080803 | K24: =J24*(1+K25) -> 1.126162419 | L24: =K24*(1+L25) -> 1.148685668 | M24: =L24*(1+M25) -> 1.171659381 | N24: =M24*(1+N25) -> 1.195092569 | O24: =N24*(1+O25) -> 1.21899442
B25: Predicted inflation rate | E25: =E19 -> 0.02 | F25: =F19 -> 0.02 | G25: 0.02 | H25: 0.02 | I25: 0.02 | J25: 0.02 | K25: 0.02 | L25: 0.02 | M25: 0.02 | N25: 0.02 | O25: 0.02
A27: Rebased opex index | E27: =E24 -> 1 | F27: 1.02 | G27: 1.0404 | H27: 1.061208 | I27: 1.08243216 | J27: =J24 -> 1.104080803 | K27: ='Inputs - actual'!J17*(1+K28) -> 1.301807194 | L27: =K27*(1+L28) -> 1.327843338 | M27: =L27*(1+M28) -> 1.354400204 | N27: 1.381488208 | O27: 1.409117973
B28: Predicted inflation rate | K28: =K25 -> 0.02 | L28: =L25 -> 0.02 | M28: 0.02 | N28: 0.02 | O28: 0.02
A30: WACC (nominal)
B31: Cost of equity | E31: 0.07 | F31: 0.07 | G31: 0.07 | H31: 0.07 | I31: 0.07 | J31: 0.07 | K31: 0.07 | L31: 0.07 | M31: 0.07 | N31: 0.07 | O31: 0.07
B32: Cost of debt | E32: 0.05 | F32: 0.05 | G32: 0.05 | H32: 0.05 | I32: 0.05 | J32: 0.05 | K32: 0.05 | L32: 0.05 | M32: 0.05 | N32: 0.05 | O32: 0.05
B34: Leverage | E34: 0.41 | F34: 0.41 | G34: 0.41 | H34: 0.41 | I34: 0.41 | J34: 0.41 | K34: 0.41 | L34: 0.41 | M34: 0.41 | N34: 0.41 | O34: 0.41
B35: Tax rate | E35: 0.28 | F35: 0.28 | G35: 0.28 | H35: 0.28 | I35: 0.28 | J35: 0.28 | K35: 0.28 | L35: 0.28 | M35: 0.28 | N35: 0.28 | O35: 0.28
P36: Average
B37: Cost of capital (vanilla, nominal) | E37: =E$32*E$34+E$31*(1-E$34) -> 0.0618 | F37: 0.0618 | G37: 0.0618 | H37: 0.0618 | I37: 0.0618 | J37: 0.0618 | K37: =K$32*K$34+K$31*(1-K$34) -> 0.0618 | L37: 0.0618 | M37: 0.0618 | N37: 0.0618 | O37: 0.0618 | P37: =(((1+F37)*(1+G37)*(1+H37)*(1+I37)*(1+J37)*(1+K37)*(1+L37)*(1+M37)*(1+N37)*(1+O37))^0.1)-1 -> 0.0618
B38: Cost of capital (vanilla, real) | E38: =(1+E$37)/(1+E$19)-1 -> 0.04098039216 | F38: 0.04098039216 | G38: 0.04098039216 | H38: 0.04098039216 | I38: 0.04098039216 | J38: 0.04098039216 | K38: 0.04098039216 | L38: 0.04098039216 | M38: 0.04098039216 | N38: 0.04098039216 | O38: 0.04098039216 | P38: =(((1+F38)*(1+G38)*(1+H38)*(1+I38)*(1+J38)*(1+K38)*(1+L38)*(1+M38)*(1+N38)*(1+O38))^0.1)-1 -> 0.04098039216
J39: =(((1+F38)*(1+G38)*(1+H38)*(1+I38)*(1+J38))^0.2)-1 -> 0.04098039216
B40: Vanilla (nominal)
C41: Compounding factor step 1 | E41: =1+E37 -> 1.0618 | F41: 1.0618 | G41: 1.0618 | H41: 1.0618 | I41: 1.0618 | J41: 1.0618 | K41: 1.0618 | L41: 1.0618 | M41: 1.0618 | N41: 1.0618 | O41: 1.0618
C42: Compounding factor step 2 | E42: 1 | F42: =E42*F41 -> 1.0618 | G42: =F42*G41 -> 1.12741924 | H42: 1.197093749 | I42: 1.271074143 | J42: 1.349626525 | K42: 1.433033444 | L42: 1.521594911 | M42: 1.615629476 | N42: 1.715475378 | O42: 1.821491756
B44: Vanilla (real)
C45: Compounding factor step 1 | E45: =1+E38 -> 1.040980392 | F45: 1.040980392 | G45: 1.040980392 | H45: 1.040980392 | I45: 1.040980392 | J45: 1.040980392 | K45: 1.040980392 | L45: 1.040980392 | M45: 1.040980392 | N45: 1.040980392 | O45: 1.040980392
C46: Compounding factor step 2 | E46: 1 | F46: =E46*F45 -> 1.040980392 | G46: =F46*G45 -> 1.083640177 | H46: =G46*H45 -> 1.128048176 | I46: =H46*I45 -> 1.174276033 | J46: =I46*J45 -> 1.222398325 | K46: =J46*K45 -> 1.272492688 | L46: =K46*L45 -> 1.324639937 | M46: =L46*M45 -> 1.378924201 | N46: =M46*N45 -> 1.435433056 | O46: =N46*O45 -> 1.494257666

Sheet Inputs - actual
A1: Inputs - actual
E2: ='Inputs - forecast'!E2 -> 2020-06-30 | F2: ='Inputs - forecast'!F2 -> 2021-06-30 | G2: ='Inputs - forecast'!G2 -> 2022-06-30 | H2: ='Inputs - forecast'!H2 -> 2023-06-30 | I2: ='Inputs - forecast'!I2 -> 2024-06-30 | J2: ='Inputs - forecast'!J2 -> 2025-06-30 | K2: ='Inputs - forecast'!K2 -> 2026-06-30 | L2: ='Inputs - forecast'!L2 -> 2027-06-30 | M2: ='Inputs - forecast'!M2 -> 2028-06-30 | N2: ='Inputs - forecast'!N2 -> 2029-06-30 | O2: ='Inputs - forecast'!O2 -> 2030-06-30 | P2: Average
A4: Financials ($ of 30 June 2020)
B5: Opex | F5: ='Inputs - forecast'!F5 -> 100 | G5: ='Inputs - forecast'!G5 -> 100 | H5: ='Inputs - forecast'!H5 -> 100 | I5: ='Inputs - forecast'!I5 -> 100 | J5: ='Inputs - forecast'!J5 -> 100 | K5: ='Inputs - forecast'!K5 -> 100 | L5: ='Inputs - forecast'!L5 -> 100 | M5: ='Inputs - forecast'!M5 -> 100 | N5: ='Inputs - forecast'!N5 -> 100 | O5: ='Inputs - forecast'!O5 -> 100
B6: Capex | F6: ='Inputs - forecast'!F6 -> 200 | G6: ='Inputs - forecast'!G6 -> 200 | H6: ='Inputs - forecast'!H6 -> 200 | I6: ='Inputs - forecast'!I6 -> 200 | J6: ='Inputs - forecast'!J6 -> 200 | K6: ='Inputs - forecast'!K6 -> 100 | L6: ='Inputs - forecast'!L6 -> 100 | M6: ='Inputs - forecast'!M6 -> 100 | N6: ='Inputs - forecast'!N6 -> 100 | O6: ='Inputs - forecast'!O6 -> 0
B7: Opening RAB | E7: ='Inputs - forecast'!E7 -> 3000
A9: Financials (nominal)
B10: Opex | F10: =F5*F$17 -> 105 | G10: 110.25 | H10: 115.7625 | I10: 121.550625 | J10: 127.6281563 | K10: 134.0095641 | L10: 140.7100423 | M10: 147.7455444 | N10: 155.1328216 | O10: 162.8894627
B11: Capex | F11: =F6*F14 -> 210 | G11: 220.5 | H11: 231.525 | I11: 243.10125 | J11: 255.2563125 | K11: 134.0095641 | L11: 140.7100423 | M11: 147.7455444 | N11: 155.1328216 | O11: 0
B12: Opening RAB | E12: =E7*E14 -> 3000
A14: CPI (end of period) 10 years | E14: 1 | F14: =E14*(1+F15) -> 1.05 | G14: =F14*(1+G15) -> 1.1025 | H14: =G14*(1+H15) -> 1.157625 | I14: =H14*(1+I15) -> 1.21550625 | J14: =I14*(1+J15) -> 1.276281563 | K14: =J14*(1+K15) -> 1.340095641 | L14: =K14*(1+L15) -> 1.407100423 | M14: =L14*(1+M15) -> 1.477455444 | N14: =M14*(1+N15) -> 1.551328216 | O14: 1.628894627
B15: Actual inflation rate | E15: 0.02 | F15: 0.05 | G15: 0.05 | H15: 0.05 | I15: 0.05 | J15: 0.05 | K15: 0.05 | L15: 0.05 | M15: 0.05 | N15: 0.05 | O15: 0.05 | P15: 0.05
A17: Opex index | E17: 1 | F17: =E17*(1+F18) -> 1.05 | G17: =F17*(1+G18) -> 1.1025 | H17: 1.157625 | I17: 1.21550625 | J17: 1.276281563 | K17: 1.340095641 | L17: 1.407100423 | M17: 1.477455444 | N17: 1.551328216 | O17: 1.628894627
B18: Actual inflation rate | E18: =E15 -> 0.02 | F18: =F15 -> 0.05 | G18: 0.05 | H18: 0.05 | I18: 0.05 | J18: 0.05 | K18: 0.05 | L18: 0.05 | M18: 0.05 | N18: 0.05 | O18: 0.05
A20: WACC (nominal)
B21: Cost of equity | E21: =(1+'Inputs - forecast'!E31)/(1+'Inputs - forecast'!E19)*(1+'Inputs - actual'!E15)-1 -> 0.07 | F21: =(1+'Inputs - forecast'!F31)/(1+'Inputs - forecast'!F19)*(1+'Inputs - actual'!F15)-1 -> 0.1014705882 | G21: =(1+'Inputs - forecast'!G31)/(1+'Inputs - forecast'!G19)*(1+'Inputs - actual'!G15)-1 -> 0.1014705882 | H21: =(1+'Inputs - forecast'!H31)/(1+'Inputs - forecast'!H19)*(1+'Inputs - actual'!H15)-1 -> 0.1014705882 | I21: =(1+'Inputs - forecast'!I31)/(1+'Inputs - forecast'!I19)*(1+'Inputs - actual'!I15)-1 -> 0.1014705882 | J21: =(1+'Inputs - forecast'!J31)/(1+'Inputs - forecast'!J19)*(1+'Inputs - actual'!J15)-1 -> 0.1014705882 | K21: =(1+'Inputs - forecast'!K31)/(1+'Inputs - forecast'!K19)*(1+'Inputs - actual'!K15)-1 -> 0.1014705882 | L21: =(1+'Inputs - forecast'!L31)/(1+'Inputs - forecast'!L19)*(1+'Inputs - actual'!L15)-1 -> 0.1014705882 | M21: =(1+'Inputs - forecast'!M31)/(1+'Inputs - forecast'!M19)*(1+'Inputs - actual'!M15)-1 -> 0.1014705882 | N21: =(1+'Inputs - forecast'!N31)/(1+'Inputs - forecast'!N19)*(1+'Inputs - actual'!N15)-1 -> 0.1014705882 | O21: =(1+'Inputs - forecast'!O31)/(1+'Inputs - forecast'!O19)*(1+'Inputs - actual'!O15)-1 -> 0.1014705882
B22: Cost of debt | E22: =(1+'Inputs - forecast'!E32)/(1+'Inputs - forecast'!E19)*(1+'Inputs - actual'!E15)-1 -> 0.05 | F22: =(1+'Inputs - forecast'!F32)/(1+'Inputs - forecast'!F19)*(1+'Inputs - actual'!F15)-1 -> 0.08088235294 | G22: =(1+'Inputs - forecast'!G32)/(1+'Inputs - forecast'!G19)*(1+'Inputs - actual'!G15)-1 -> 0.08088235294 | H22: =(1+'Inputs - forecast'!H32)/(1+'Inputs - forecast'!H19)*(1+'Inputs - actual'!H15)-1 -> 0.08088235294 | I22: =(1+'Inputs - forecast'!I32)/(1+'Inputs - forecast'!I19)*(1+'Inputs - actual'!I15)-1 -> 0.08088235294 | J22: =(1+'Inputs - forecast'!J32)/(1+'Inputs - forecast'!J19)*(1+'Inputs - actual'!J15)-1 -> 0.08088235294 | K22: =(1+'Inputs - forecast'!K32)/(1+'Inputs - forecast'!K19)*(1+'Inputs - actual'!K15)-1 -> 0.08088235294 | L22: =(1+'Inputs - forecast'!L32)/(1+'Inputs - forecast'!L19)*(1+'Inputs - actual'!L15)-1 -> 0.08088235294 | M22: =(1+'Inputs - forecast'!M32)/(1+'Inputs - forecast'!M19)*(1+'Inputs - actual'!M15)-1 -> 0.08088235294 | N22: =(1+'Inputs - forecast'!N32)/(1+'Inputs - forecast'!N19)*(1+'Inputs - actual'!N15)-1 -> 0.08088235294 | O22: =(1+'Inputs - forecast'!O32)/(1+'Inputs - forecast'!O19)*(1+'Inputs - actual'!O15)-1 -> 0.08088235294
B24: Leverage | E24: ='Inputs - forecast'!E34 -> 0.41 | F24: ='Inputs - forecast'!F34 -> 0.41 | G24: ='Inputs - forecast'!G34 -> 0.41 | H24: ='Inputs - forecast'!H34 -> 0.41 | I24: ='Inputs - forecast'!I34 -> 0.41 | J24: ='Inputs - forecast'!J34 -> 0.41 | K24: ='Inputs - forecast'!K34 -> 0.41 | L24: ='Inputs - forecast'!L34 -> 0.41 | M24: ='Inputs - forecast'!M34 -> 0.41 | N24: ='Inputs - forecast'!N34 -> 0.41 | O24: ='Inputs - forecast'!O34 -> 0.41
B25: Tax rate | E25: ='Inputs - forecast'!E35 -> 0.28 | F25: ='Inputs - forecast'!F35 -> 0.28 | G25: ='Inputs - forecast'!G35 -> 0.28 | H25: ='Inputs - forecast'!H35 -> 0.28 | I25: ='Inputs - forecast'!I35 -> 0.28 | J25: ='Inputs - forecast'!J35 -> 0.28 | K25: ='Inputs - forecast'!K35 -> 0.28 | L25: ='Inputs - forecast'!L35 -> 0.28 | M25: ='Inputs - forecast'!M35 -> 0.28 | N25: ='Inputs - forecast'!N35 -> 0.28 | O25: ='Inputs - forecast'!O35 -> 0.28
B27: Cost of capital (vanilla, nominal) | E27: =E$22*E$24+E$21*(1-E$24) -> 0.0618 | F27: 0.09302941176 | G27: 0.09302941176 | H27: 0.09302941176 | I27: 0.09302941176 | J27: 0.09302941176 | K27: 0.09302941176 | L27: 0.09302941176 | M27: 0.09302941176 | N27: 0.09302941176 | O27: 0.09302941176 | P27: =(((1+F27)*(1+G27)*(1+H27)*(1+I27)*(1+J27)*(1+K27)*(1+L27)*(1+M27)*(1+N27)*(1+O27))^0.1)-1 -> 0.09302941176
B28: Cost of capital (vanilla, real) | E28: =(1+E$27)/(1+E$15)-1 -> 0.04098039216 | F28: 0.04098039216 | G28: 0.04098039216 | H28: 0.04098039216 | I28: 0.04098039216 | J28: 0.04098039216 | K28: 0.04098039216 | L28: 0.04098039216 | M28: 0.04098039216 | N28: 0.04098039216 | O28: 0.04098039216 | P28: =(((1+F28)*(1+G28)*(1+H28)*(1+I28)*(1+J28)*(1+K28)*(1+L28)*(1+M28)*(1+N28)*(1+O28))^0.1)-1 -> 0.04098039216
J29: =(((1+F28)*(1+G28)*(1+H28)*(1+I28)*(1+J28))^0.2)-1 -> 0.04098039216
B30: Vanilla (nominal)
C31: Compounding factor step 1 | E31: =1+E27 -> 1.0618 | F31: 1.093029412 | G31: 1.093029412 | H31: 1.093029412 | I31: 1.093029412 | J31: 1.093029412 | K31: 1.093029412 | L31: 1.093029412 | M31: 1.093029412 | N31: 1.093029412 | O31: 1.093029412
C32: Compounding factor step 2 | E32: 1 | F32: =E32*F31 -> 1.093029412 | G32: =F32*G31 -> 1.194713295 | H32: 1.30585677 | I32: 1.427339857 | J32: 1.560124445 | K32: 1.705261904 | L32: 1.863901416 | M32: 2.037299068 | N32: 2.226827802 | O32: 2.433988282
B34: Vanilla (real)
C35: Compounding factor step 1 | E35: =1+E28 -> 1.040980392 | F35: 1.040980392 | G35: 1.040980392 | H35: 1.040980392 | I35: 1.040980392 | J35: 1.040980392 | K35: 1.040980392 | L35: 1.040980392 | M35: 1.040980392 | N35: 1.040980392 | O35: 1.040980392
C36: Compounding factor step 2 | E36: 1 | F36: =E36*F35 -> 1.040980392 | G36: =F36*G35 -> 1.083640177 | H36: =G36*H35 -> 1.128048176 | I36: =H36*I35 -> 1.174276033 | J36: =I36*J35 -> 1.222398325 | K36: =J36*K35 -> 1.272492688 | L36: =K36*L35 -> 1.324639937 | M36: =L36*M35 -> 1.378924201 | N36: =M36*N35 -> 1.435433056 | O36: =N36*O35 -> 1.494257666

Sheet Macro
A1: Macro
B2: The macro needs to be run if any changes are made to the inputs. This goal seeks revenue for each of the calculation sheets so that NPV of revenue = NPV of expenditure for the two 5-years periods. E.g., goal seeks revenue for each calculation sheet Cell K57 and P64 to set cells K56 and P63 to zero.

Sheet Transpower (TP) current
A1: Calculation
A2: This model does not wash-up revenue, the RAB is not indexed or washed up (similar to Transpower's current treatment).
A4: Forecast | D4: Return over forecast period | E4: ='Inputs - forecast'!E2 -> 2020-06-30 | F4: ='Inputs - forecast'!F2 -> 2021-06-30 | G4: ='Inputs - forecast'!G2 -> 2022-06-30 | H4: ='Inputs - forecast'!H2 -> 2023-06-30 | I4: ='Inputs - forecast'!I2 -> 2024-06-30 | J4: ='Inputs - forecast'!J2 -> 2025-06-30 | K4: ='Inputs - forecast'!K2 -> 2026-06-30 | L4: ='Inputs - forecast'!L2 -> 2027-06-30 | M4: ='Inputs - forecast'!M2 -> 2028-06-30 | N4: ='Inputs - forecast'!N2 -> 2029-06-30 | O4: ='Inputs - forecast'!O2 -> 2030-06-30
A5: Building blocks
B6: Revenue | F6: =K59 -> 647.4032081 | G6: =F6*(1+'Inputs - forecast'!G19) -> 660.3512723 | H6: =G6*(1+'Inputs - forecast'!H19) -> 673.5582977 | I6: =H6*(1+'Inputs - forecast'!I19) -> 687.0294637 | J6: =I6*(1+'Inputs - forecast'!J19) -> 700.7700529 | K6: =P66 -> 788.8390252 | L6: =K6*(1+'Inputs - forecast'!L19) -> 804.6158057 | M6: =L6*(1+'Inputs - forecast'!M19) -> 820.7081218 | N6: =M6*(1+'Inputs - forecast'!N19) -> 837.1222843 | O6: =N6*(1+'Inputs - forecast'!O19) -> 853.86473
B7: Return on debt | F7: =-F$31*'Inputs - forecast'!F$34*'Inputs - forecast'!F$32 -> -61.5 | G7: =-G$31*'Inputs - forecast'!G$34*'Inputs - forecast'!G$32 -> -59.532 | H7: =-H$31*'Inputs - forecast'!H$34*'Inputs - forecast'!H$32 -> -57.18297333 | I7: =-I$31*'Inputs - forecast'!I$34*'Inputs - forecast'!I$32 -> -54.38605447 | J7: =-J$31*'Inputs - forecast'!J$34*'Inputs - forecast'!J$32 -> -51.05458997 | K7: =-K$31*'Inputs - forecast'!K$34*'Inputs - forecast'!K$32 -> -47.07222294 | L7: =-L$31*'Inputs - forecast'!L$34*'Inputs - forecast'!L$32 -> -40.3264831 | M7: =-M$31*'Inputs - forecast'!M$34*'Inputs - forecast'!M$32 -> -32.96694116 | N7: =-N$31*'Inputs - forecast'!N$34*'Inputs - forecast'!N$32 -> -24.75448119 | O7: =-O$31*'Inputs - forecast'!O$34*'Inputs - forecast'!O$32 -> -15.20929142
B8: Return on equity | F8: =-F$31*(1-'Inputs - forecast'!F$34)*'Inputs - forecast'!F$31 -> -123.9 | G8: =-G$31*(1-'Inputs - forecast'!G$34)*'Inputs - forecast'!G$31 -> -119.9352 | H8: =-H$31*(1-'Inputs - forecast'!H$34)*'Inputs - forecast'!H$31 -> -115.2027707 | I8: =-I$31*(1-'Inputs - forecast'!I$34)*'Inputs - forecast'!I$31 -> -109.5680024 | J8: =-J$31*(1-'Inputs - forecast'!J$34)*'Inputs - forecast'!J$31 -> -102.8563203 | K8: =-K$31*(1-'Inputs - forecast'!K$34)*'Inputs - forecast'!K$31 -> -94.83330767 | L8: =-L$31*(1-'Inputs - forecast'!L$34)*'Inputs - forecast'!L$31 -> -81.24310985 | M8: =-M$31*(1-'Inputs - forecast'!M$34)*'Inputs - forecast'!M$31 -> -66.41632537 | N8: =-N$31*(1-'Inputs - forecast'!N$34)*'Inputs - forecast'!N$31 -> -49.87122309 | O8: =-O$31*(1-'Inputs - forecast'!O$34)*'Inputs - forecast'!O$31 -> -30.64115785
B9: Revaluation | Q9: Asset base not indexed and therefore no revaluation gains.
B10: Tax | F10: =F50 -> -51.49289827 | G10: =G50 -> -48.75152957 | H10: -45.24180016 | I10: -40.71292343 | J10: -34.78423631 | K10: -42.65656739 | L10: -39.1212107 | M10: -32.5509342 | N10: -19.7263215 | O10: 12.36844381
B11: Opex | F11: =-'Inputs - forecast'!F10 -> -102 | G11: =-'Inputs - forecast'!G10 -> -104.04 | H11: =-'Inputs - forecast'!H10 -> -106.1208 | I11: =-'Inputs - forecast'!I10 -> -108.243216 | J11: =-'Inputs - forecast'!J10 -> -110.4080803 | K11: =-'Inputs - forecast'!K10 -> -130.1807194 | L11: =-'Inputs - forecast'!L10 -> -132.7843338 | M11: =-'Inputs - forecast'!M10 -> -135.4400204 | N11: =-'Inputs - forecast'!N10 -> -138.1488208 | O11: =-'Inputs - forecast'!O10 -> -140.9117973
B12: Depreciation | F12: =F33 -> -300 | G12: =G33 -> -322.6666667 | H12: -348.6766667 | I12: -378.9968952 | J12: -415.0779672 | K12: -459.2411994 | L12: -491.7863792 | M12: -536.0478238 | N12: -603.767834 | O12: -741.9166549
B13: Net revenue | F13: =SUM(F6:F12) -> 8.51030983 | G13: =SUM(G6:G12) -> 5.425876027 | H13: 1.133286881 | I13: -4.877627886 | J13: -13.41114119 | K13: 14.85500848 | L13: 19.3542891 | M13: 17.28607686 | N13: 0.8536036227 | O13: -62.44572764
B14: Present value | F14: =F13/'Inputs - forecast'!F$42 -> 8.01498383 | G14: =G13/'Inputs - forecast'!G$42 -> 4.812651616 | H14: =H13/'Inputs - forecast'!H$42 -> 0.9466985203 | I14: =I13/'Inputs - forecast'!I$42 -> -3.837406271 | J14: =J13/'Inputs - forecast'!J$42 -> -9.936927694 | K14: =K13/'Inputs - forecast'!K$42 -> 10.36612826 | L14: =L13/'Inputs - forecast'!L$42 -> 12.71973833 | M14: =M13/'Inputs - forecast'!M$42 -> 10.69928292 | N14: =N13/'Inputs - forecast'!N$42 -> 0.4975901337 | O14: =O13/'Inputs - forecast'!O$42 -> -34.28273964
B15: Sum of present values | O15: =SUM(F14:O14) -> -5.613287613e-13
A17: Regulatory cashflows
B18: Revenue | F18: =F6 -> 647.4032081 | G18: 660.3512723 | H18: 673.5582977 | I18: 687.0294637 | J18: 700.7700529 | K18: 788.8390252 | L18: 804.6158057 | M18: 820.7081218 | N18: 837.1222843 | O18: 853.86473
B19: Opex | F19: =F11 -> -102 | G19: -104.04 | H19: -106.1208 | I19: -108.243216 | J19: -110.4080803 | K19: -130.1807194 | L19: -132.7843338 | M19: -135.4400204 | N19: -138.1488208 | O19: -140.9117973
B20: Tax | F20: =F10 -> -51.49289827 | G20: -48.75152957 | H20: -45.24180016 | I20: -40.71292343 | J20: -34.78423631 | K20: -42.65656739 | L20: -39.1212107 | M20: -32.5509342 | N20: -19.7263215 | O20: 12.36844381
B21: Capex | F21: =-F32 -> -204 | G21: -208.08 | H21: -212.2416 | I21: -216.486432 | J21: -220.8161606 | K21: -130.1807194 | L21: -132.7843338 | M21: -135.4400204 | N21: -138.1488208 | O21: =-O32 -> 0
B22: Opening RAB | E22: =-'Inputs - forecast'!E$12 -> -3000
B23: Closing RAB | J23: 0 | O23: =O34 -> 0 | Q23: No inflation wash-up of RAB at reset
B24: Sum | E24: =SUM(E18:E23) -> -3000 | F24: =SUM(F18:F23) -> 289.9103098 | G24: 299.4797427 | H24: 309.9540975 | I24: 321.5868922 | J24: 334.7615757 | K24: 485.8210191 | L24: 499.9259275 | M24: 517.2771468 | N24: 541.0983211 | O24: 725.3213765
B25: Present value | E25: =E24/'Inputs - forecast'!E42 -> -3000 | F25: =F24/'Inputs - forecast'!F42 -> 273.0366452 | G25: =G24/'Inputs - forecast'!G42 -> 265.6329891 | H25: =H24/'Inputs - forecast'!H42 -> 258.9221586 | I25: =I24/'Inputs - forecast'!I42 -> 253.0040392 | J25: =J24/'Inputs - forecast'!J42 -> 248.0401574 | K25: =K24/'Inputs - forecast'!K42 -> 339.0158277 | L25: =L24/'Inputs - forecast'!L42 -> 328.5538904 | M25: =M24/'Inputs - forecast'!M42 -> 320.1706544 | N25: =N24/'Inputs - forecast'!N42 -> 315.4217939 | O25: =O24/'Inputs - forecast'!O42 -> 398.2018442
B26: Sum of present values | O26: =SUM(E25:O25) -> -1.875832822e-12
A28: Regulatory Asset Base
B29: Useful lives | F29: ='Inputs - forecast'!D15 -> 10 | G29: =F29-1 -> 9 | H29: =G29-1 -> 8 | I29: 7 | J29: 6 | K29: 5 | L29: 4 | M29: 3 | N29: 2 | O29: 1
B31: Opening RAB | F31: =E34 -> 3000 | G31: =F34 -> 2904 | H31: 2789.413333 | I31: 2652.978267 | J31: 2490.467803 | K31: 2296.205997 | L31: 1967.145517 | M31: 1608.143471 | N31: 1207.535668 | O31: 741.9166549 | Q31: No inflation wash-up of RAB at reset
B32: Capex | F32: ='Inputs - forecast'!F$11 -> 204 | G32: ='Inputs - forecast'!G$11 -> 208.08 | H32: ='Inputs - forecast'!H$11 -> 212.2416 | I32: ='Inputs - forecast'!I$11 -> 216.486432 | J32: ='Inputs - forecast'!J$11 -> 220.8161606 | K32: ='Inputs - forecast'!K$11 -> 130.1807194 | L32: ='Inputs - forecast'!L$11 -> 132.7843338 | M32: ='Inputs - forecast'!M$11 -> 135.4400204 | N32: ='Inputs - forecast'!N$11 -> 138.1488208 | O32: ='Inputs - forecast'!O$11 -> 0
B33: Depreciation | F33: =-F31/F29 -> -300 | G33: -322.6666667 | H33: -348.6766667 | I33: -378.9968952 | J33: -415.0779672 | K33: -459.2411994 | L33: -491.7863792 | M33: -536.0478238 | N33: -603.767834 | O33: -741.9166549
B34: Closing RAB | E34: =-E22 -> 3000 | F34: =SUM(F31:F33) -> 2904 | G34: =SUM(G31:G33) -> 2789.413333 | H34: 2652.978267 | I34: 2490.467803 | J34: 2296.205997 | K34: 1967.145517 | L34: 1608.143471 | M34: 1207.535668 | N34: 741.9166549 | O34: 0
A38: Tax asset base | F38: =F29 -> 10 | G38: 9 | H38: 8 | I38: 7 | J38: 6 | K38: 5 | L38: 4 | M38: 3 | N38: 2 | O38: 1
B39: Opening balance | F39: =E42 -> 3000 | G39: =F42 -> 2904 | H39: =G42 -> 2789.413333 | I39: 2652.978267 | J39: 2490.467803 | K39: 2296.205997 | L39: 1967.145517 | M39: 1608.143471 | N39: 1207.535668 | O39: 741.9166549
B40: Capex | F40: =-F21 -> 204 | G40: 208.08 | H40: 212.2416 | I40: 216.486432 | J40: 220.8161606 | K40: 130.1807194 | L40: 132.7843338 | M40: 135.4400204 | N40: 138.1488208 | O40: 0
B41: Depreciation | F41: =-F39/F38 -> -300 | G41: =-G39/G38 -> -322.6666667 | H41: -348.6766667 | I41: -378.9968952 | J41: -415.0779672 | K41: -459.2411994 | L41: -491.7863792 | M41: -536.0478238 | N41: -603.767834 | O41: -741.9166549
B42: Closing balance | E42: =E34 -> 3000 | F42: =SUM(F39:F41) -> 2904 | G42: =SUM(G39:G41) -> 2789.413333 | H42: =SUM(H39:H41) -> 2652.978267 | I42: 2490.467803 | J42: 2296.205997 | K42: 1967.145517 | L42: 1608.143471 | M42: 1207.535668 | N42: 741.9166549 | O42: 0
A44: Regulatory tax
B45: Revenue | F45: =F6 -> 647.4032081 | G45: 660.3512723 | H45: 673.5582977 | I45: 687.0294637 | J45: 700.7700529 | K45: 788.8390252 | L45: 804.6158057 | M45: 820.7081218 | N45: 837.1222843 | O45: 853.86473
B46: Depreciation | F46: =F41 -> -300 | G46: =G41 -> -322.6666667 | H46: -348.6766667 | I46: -378.9968952 | J46: -415.0779672 | K46: -459.2411994 | L46: -491.7863792 | M46: -536.0478238 | N46: -603.767834 | O46: -741.9166549
B47: Opex | F47: =F11 -> -102 | G47: -104.04 | H47: -106.1208 | I47: -108.243216 | J47: -110.4080803 | K47: -130.1807194 | L47: -132.7843338 | M47: -135.4400204 | N47: -138.1488208 | O47: -140.9117973
B48: Notional interest | F48: =-'Inputs - forecast'!F$32*'Inputs - forecast'!F34*F31 -> -61.5 | G48: =-'Inputs - forecast'!G$32*'Inputs - forecast'!G34*G31 -> -59.532 | H48: =-'Inputs - forecast'!H$32*'Inputs - forecast'!H34*H31 -> -57.18297333 | I48: =-'Inputs - forecast'!I$32*'Inputs - forecast'!I34*I31 -> -54.38605447 | J48: =-'Inputs - forecast'!J$32*'Inputs - forecast'!J34*J31 -> -51.05458997 | K48: =-'Inputs - forecast'!K$32*'Inputs - forecast'!K34*K31 -> -47.07222294 | L48: =-'Inputs - forecast'!L$32*'Inputs - forecast'!L34*L31 -> -40.3264831 | M48: =-'Inputs - forecast'!M$32*'Inputs - forecast'!M34*M31 -> -32.96694116 | N48: =-'Inputs - forecast'!N$32*'Inputs - forecast'!N34*N31 -> -24.75448119 | O48: =-'Inputs - forecast'!O$32*'Inputs - forecast'!O34*O31 -> -15.20929142
B49: EBT | F49: =SUM(F45:F48) -> 183.9032081 | G49: =SUM(G45:G48) -> 174.1126056 | H49: 161.5778577 | I49: 145.403298 | J49: 124.2294154 | K49: 152.3448835 | L49: 139.7186097 | M49: 116.2533364 | N49: 70.45114821 | O49: -44.1730136
B50: Calculated tax | F50: =-F49*'Inputs - forecast'!F35 -> -51.49289827 | G50: =-G49*'Inputs - forecast'!G35 -> -48.75152957 | H50: =-H49*'Inputs - forecast'!H35 -> -45.24180016 | I50: =-I49*'Inputs - forecast'!I35 -> -40.71292343 | J50: =-J49*'Inputs - forecast'!J35 -> -34.78423631 | K50: =-K49*'Inputs - forecast'!K35 -> -42.65656739 | L50: =-L49*'Inputs - forecast'!L35 -> -39.1212107 | M50: =-M49*'Inputs - forecast'!M35 -> -32.5509342 | N50: =-N49*'Inputs - forecast'!N35 -> -19.7263215 | O50: =-O49*'Inputs - forecast'!O35 -> 12.36844381
B51: Deferred tax | F51: =IF(F50>0,F50,0) -> 0 | G51: =IF(G50>0,G50,0) -> 0 | H51: =IF(H50>0,H50,0) -> 0 | I51: =IF(I50>0,I50,0) -> 0 | J51: =IF(J50>0,J50+I51,0) -> 0 | K51: 0 | L51: 0 | M51: 0 | N51: 0 | O51: 12.36844381
B52: Tax | F52: =IF(F51>0,0,F50+E51) -> -51.49289827 | G52: -48.75152957 | H52: -45.24180016 | I52: -40.71292343 | J52: -34.78423631 | K52: -42.65656739 | L52: -39.1212107 | M52: -32.5509342 | N52: -19.7263215 | O52: 0
A54: Reg Period 1
A55: Calculation of revenue | K55: Sum
B56: Present value of revenue | F56: =F6/'Inputs - forecast'!F$42 -> 609.7223659 | G56: =G6/'Inputs - forecast'!G$42 -> 585.7193569 | H56: =H6/'Inputs - forecast'!H$42 -> 562.6612772 | I56: =I6/'Inputs - forecast'!I$42 -> 540.5109274 | J56: =J6/'Inputs - forecast'!J$42 -> 519.2325729 | K56: =SUM(F56:J56) -> 2817.8465
B57: Present value of cost | F57: =SUM(F7:F12)/'Inputs - forecast'!F$42 -> -601.7073821 | G57: =SUM(G7:G12)/'Inputs - forecast'!G$42 -> -580.9067053 | H57: =SUM(H7:H12)/'Inputs - forecast'!H$42 -> -561.7145786 | I57: =SUM(I7:I12)/'Inputs - forecast'!I$42 -> -544.3483337 | J57: =SUM(J7:J12)/'Inputs - forecast'!J$42 -> -529.1695006 | K57: =SUM(F57:J57) -> -2817.8465
B58: Difference | K58: =SUM(K56:K57) -> 0
B59: Revenue | K59: 647.4032081
A61: Reg Period 2
A62: Calculation of revenue | P62: Sum
B63: Present value of revenue | K63: =K6/'Inputs - forecast'!K$42 -> 550.46798 | L63: =L6/'Inputs - forecast'!L$42 -> 528.7976452 | M63: =M6/'Inputs - forecast'!M$42 -> 507.9804088 | N63: =N6/'Inputs - forecast'!N$42 -> 487.9826869 | O63: =O6/'Inputs - forecast'!O$42 -> 468.7722176 | P63: =SUM(K63:O63) -> 2544.000939
B64: Present value of cost | K64: =SUM(K7:K12)/'Inputs - forecast'!K$42 -> -540.1018518 | L64: =SUM(L7:L12)/'Inputs - forecast'!L$42 -> -516.0779068 | M64: =SUM(M7:M12)/'Inputs - forecast'!M$42 -> -497.2811259 | N64: =SUM(N7:N12)/'Inputs - forecast'!N$42 -> -487.4850968 | O64: =SUM(O7:O12)/'Inputs - forecast'!O$42 -> -503.0549572 | P64: =SUM(K64:O64) -> -2544.000939
B65: Difference | P65: =SUM(P63:P64) -> 0
B66: Revenue | P66: 788.8390252
A68: Actual
A69: Actual return (cashflows) with fixed cost of debt
B70: Revenue | F70: =F$6 -> 647.4032081 | G70: =G$6 -> 660.3512723 | H70: 673.5582977 | I70: 687.0294637 | J70: 700.7700529 | K70: 788.8390252 | L70: 804.6158057 | M70: 820.7081218 | N70: 837.1222843 | O70: 853.86473 | Q70: Revenue not washed up or adjusted for fixed cost of debt
B71: Opex | F71: =F$11/'Inputs - forecast'!F$18*'Inputs - actual'!F$14 -> -105 | G71: =G$11/'Inputs - forecast'!G$18*'Inputs - actual'!G$14 -> -110.25 | H71: =H$11/'Inputs - forecast'!H$18*'Inputs - actual'!H$14 -> -115.7625 | I71: =I$11/'Inputs - forecast'!I$18*'Inputs - actual'!I$14 -> -121.550625 | J71: =J$11/'Inputs - forecast'!J$18*'Inputs - actual'!J$14 -> -127.6281563 | K71: =K$11/'Inputs - forecast'!K$21*'Inputs - actual'!K$14 -> -134.0095641 | L71: =L$11/'Inputs - forecast'!L$21*'Inputs - actual'!L$14 -> -140.7100423 | M71: =M$11/'Inputs - forecast'!M$21*'Inputs - actual'!M$14 -> -147.7455444 | N71: =N$11/'Inputs - forecast'!N$21*'Inputs - actual'!N$14 -> -155.1328216 | O71: =O$11/'Inputs - forecast'!O$21*'Inputs - actual'!O$14 -> -162.8894627
B72: Capex | F72: =-F96-F92 -> -172.0147059 | G72: =-G96-G92 -> -183.6542647 | H72: -195.9813162 | I72: -209.0690116 | J72: -223.0077316 | K72: =-K96-K92 -> -124.8048924 | L72: =-L96-L92 -> -136.6101473 | M72: -149.1949676 | N72: -162.7699577 | O72: 10.54988903 | Q72: Capex adjusted for fixed cost of debt
B73: Tax | E73: =E116 -> -49.89384717 | F73: =F108 -> -50.65289827 | G73: =G108 -> -46.7916229 | H73: -41.81885336 | I73: -35.39429341 | J73: -27.00381606 | K73: -36.55336883 | L73: -30.09139035 | M73: -19.4642929 | N73: -0.3641304125 | O73: 0
B74: Nominal IRR | D74: =IRR(E74:O74,0.05) -> 0.0596637853 | E74: =-E34+SUM(E70:E73) -> -3049.893847 | F74: =SUM(F70:F73) -> 319.7356039 | G74: 319.6553847 | H74: 319.9956282 | I74: 321.0155337 | J74: 323.130349 | K74: 493.4711999 | L74: 497.2042258 | M74: 504.303317 | N74: 518.8553746 | O74: 701.5251563
B76: Real IRR | D76: =IRR(E76:O76,0.05) -> 0.009203605046 | E76: =E74 -> -3049.893847 | F76: =F74/'Inputs - actual'!F$14 -> 304.510099 | G76: =G74/'Inputs - actual'!G$14 -> 289.9368568 | H76: =H74/'Inputs - actual'!H$14 -> 276.424255 | I76: =I74/'Inputs - actual'!I$14 -> 264.100274 | J76: =J74/'Inputs - actual'!J$14 -> 253.1810836 | K76: =K74/'Inputs - actual'!K$14 -> 368.2358072 | L76: =L74/'Inputs - actual'!L$14 -> 353.3537605 | M76: =M74/'Inputs - actual'!M$14 -> 341.3323353 | N76: =N74/'Inputs - actual'!N$14 -> 334.4588007 | O76: =O74/'Inputs - actual'!O$14 -> 430.6755912
B77: check to inputs | D77: =D76-'Inputs - actual'!P28 -> -0.03177678711 | E77: Return lower due to not having any revenue or RAB wash-ups for inflation
A79: Actual return (building blocks) with fixed cost of debt
B80: Revenue | F80: =F70 -> 647.4032081 | G80: =G70 -> 660.3512723 | H80: 673.5582977 | I80: 687.0294637 | J80: 700.7700529 | K80: 788.8390252 | L80: 804.6158057 | M80: 820.7081218 | N80: 837.1222843 | O80: 853.86473
B81: Opex | F81: =F71 -> -105 | G81: =G71 -> -110.25 | H81: -115.7625 | I81: -121.550625 | J81: -127.6281563 | K81: -134.0095641 | L81: -140.7100423 | M81: -147.7455444 | N81: -155.1328216 | O81: -162.8894627
B82: Return on debt | F82: =-'Inputs - forecast'!F$32*'Inputs - forecast'!F$34*F95 -> -61.5 | G82: =-'Inputs - forecast'!G$32*'Inputs - forecast'!G$34*G95 -> -59.655 | H82: =-'Inputs - forecast'!H$32*'Inputs - forecast'!H$34*H95 -> -57.54691667 | I82: =-'Inputs - forecast'!I$32*'Inputs - forecast'!I$34*I95 -> -55.09981458 | J82: =-'Inputs - forecast'!J$32*'Inputs - forecast'!J$34*J95 -> -52.21198813 | K82: =-'Inputs - forecast'!K$32*'Inputs - forecast'!K$34*K95 -> -48.74274451 | L82: =-'Inputs - forecast'!L$32*'Inputs - forecast'!L$34*L95 -> -42.16986506 | M82: =-'Inputs - forecast'!M$32*'Inputs - forecast'!M$34*M95 -> -34.96185173 | N82: =-'Inputs - forecast'!N$32*'Inputs - forecast'!N$34*N95 -> -26.80907673 | O82: =-'Inputs - forecast'!O$32*'Inputs - forecast'!O$34*O95 -> -17.08077272 | Q82: Assumes fixed cost of debt
B83: Return on equity | F83: =-F95*'Inputs - actual'!F$21*(1-'Inputs - actual'!F$24) -> -179.6029412 | G83: =-G95*'Inputs - actual'!G$21*(1-'Inputs - actual'!G$24) -> -174.2148529 | H83: =-H95*'Inputs - actual'!H$21*(1-'Inputs - actual'!H$24) -> -168.0584632 | I83: =-I95*'Inputs - actual'!I$21*(1-'Inputs - actual'!I$24) -> -160.9120123 | J83: =-J95*'Inputs - actual'!J$21*(1-'Inputs - actual'!J$24) -> -152.4784818 | K83: =-K95*'Inputs - actual'!K$21*(1-'Inputs - actual'!K$24) -> -142.3469963 | L83: =-L95*'Inputs - actual'!L$21*(1-'Inputs - actual'!L$24) -> -123.1517365 | M83: =-M95*'Inputs - actual'!M$21*(1-'Inputs - actual'!M$24) -> -102.1016488 | N83: =-N95*'Inputs - actual'!N$21*(1-'Inputs - actual'!N$24) -> -78.29250456 | O83: =-O95*'Inputs - actual'!O$21*(1-'Inputs - actual'!O$24) -> -49.88222793
B84: Depreciation | F84: =F97 -> -300 | G84: =G97 -> -323.3333333 | H84: -350.8958333 | I84: -383.9708333 | J84: -424.4877083 | K84: -475.5389708 | L84: -514.2666471 | M84: -568.4853939 | N84: -653.8799202 | O84: -833.2084253
B85: Tax | E85: =E73 -> -49.89384717 | F85: =F108 -> -50.65289827 | G85: =G108 -> -46.7916229 | H85: -41.81885336 | I85: -35.39429341 | J85: -27.00381606 | K85: -36.55336883 | L85: -30.09139035 | M85: -19.4642929 | N85: -0.3641304125 | O85: 0
B86: Nominal return | F86: =SUM(F80:F85) -> -49.35263135 | G86: -53.89353691 | H86: -60.52426889 | I86: -69.89811498 | J86: -83.04009766 | K86: -48.35261936 | L86: -45.77387559 | M86: -52.05060989 | N86: -77.35616921 | O86: -209.1961587
B87: Present value | D87: =SUM(E87:O87) -> -487.8498759 | E87: =E85 -> -49.89384717 | F87: =F86/'Inputs - actual'!F$32 -> -45.1521531 | G87: =G86/'Inputs - actual'!G$32 -> -45.11001689 | H87: =H86/'Inputs - actual'!H$32 -> -46.3483211 | I87: =I86/'Inputs - actual'!I$32 -> -48.9708983 | J87: =J86/'Inputs - actual'!J$32 -> -53.22658583 | K87: =K86/'Inputs - actual'!K$32 -> -28.35495196 | L87: =L86/'Inputs - actual'!L$32 -> -24.55809905 | M87: =M86/'Inputs - actual'!M$32 -> -25.54883115 | N87: =N86/'Inputs - actual'!N$32 -> -34.73828068 | O87: =O86/'Inputs - actual'!O$32 -> -85.94789062
B89: Real return | F89: =F86/'Inputs - actual'!F14 -> -47.00250604 | G89: =G86/'Inputs - actual'!G14 -> -48.88302668 | H89: =H86/'Inputs - actual'!H14 -> -52.28313909 | I89: =I86/'Inputs - actual'!I14 -> -57.50535218 | J89: =J86/'Inputs - actual'!J14 -> -65.06408938 | K89: =K86/'Inputs - actual'!K14 -> -36.08146904 | L89: =L86/'Inputs - actual'!L14 -> -32.53063879 | M89: =M86/'Inputs - actual'!M14 -> -35.22990159 | N89: =N86/'Inputs - actual'!N14 -> -49.8644764 | O89: =O86/'Inputs - actual'!O14 -> -128.4282944
B90: Present value | D90: =SUM(E90:O90) -> -487.8498759 | E90: =E87 -> -49.89384717 | F90: =F89/'Inputs - actual'!F$36 -> -45.1521531 | G90: =G89/'Inputs - actual'!G$36 -> -45.11001689 | H90: =H89/'Inputs - actual'!H$36 -> -46.3483211 | I90: =I89/'Inputs - actual'!I$36 -> -48.9708983 | J90: =J89/'Inputs - actual'!J$36 -> -53.22658583 | K90: =K89/'Inputs - actual'!K$36 -> -28.35495196 | L90: =L89/'Inputs - actual'!L$36 -> -24.55809905 | M90: =M89/'Inputs - actual'!M$36 -> -25.54883115 | N90: =N89/'Inputs - actual'!N$36 -> -34.73828068 | O90: =O89/'Inputs - actual'!O$36 -> -85.94789062
A92: Adjustment for fixed cost of debt | F92: =-(F95*'Inputs - actual'!F24*'Inputs - actual'!F22+F82) -> -37.98529412 | G92: =-(G95*'Inputs - actual'!G24*'Inputs - actual'!G22+G82) -> -36.84573529 | H92: =-(H95*'Inputs - actual'!H24*'Inputs - actual'!H22+H82) -> -35.54368382 | I92: =-(I95*'Inputs - actual'!I24*'Inputs - actual'!I22+I82) -> -34.03223842 | J92: =-(J95*'Inputs - actual'!J24*'Inputs - actual'!J22+J82) -> -32.2485809 | K92: =-(K95*'Inputs - actual'!K24*'Inputs - actual'!K22+K82) -> -30.10581279 | L92: =-(L95*'Inputs - actual'!L24*'Inputs - actual'!L22+L82) -> -26.04609313 | M92: =-(M95*'Inputs - actual'!M24*'Inputs - actual'!M22+M82) -> -21.59408489 | N92: =-(N95*'Inputs - actual'!N24*'Inputs - actual'!N22+N82) -> -16.55854739 | O92: =-(O95*'Inputs - actual'!O24*'Inputs - actual'!O22+O82) -> -10.54988903
A94: Actual Asset Base
B95: Opening Asset Base | F95: =F31 -> 3000 | G95: =F98 -> 2910 | H95: 2807.166667 | I95: 2687.795833 | J95: 2546.92625 | K95: 2377.694854 | L95: 2057.066589 | M95: 1705.456182 | N95: 1307.75984 | O95: 833.2084253
B96: Capex | F96: =F$32/'Inputs - forecast'!F$18*'Inputs - actual'!F$14 -> 210 | G96: =G$32/'Inputs - forecast'!G$18*'Inputs - actual'!G$14 -> 220.5 | H96: =H$32/'Inputs - forecast'!H$18*'Inputs - actual'!H$14 -> 231.525 | I96: =I$32/'Inputs - forecast'!I$18*'Inputs - actual'!I$14 -> 243.10125 | J96: =J$32/'Inputs - forecast'!J$18*'Inputs - actual'!J$14 -> 255.2563125 | K96: =K$32/'Inputs - forecast'!K$18*'Inputs - actual'!K$14 -> 154.9107052 | L96: =L$32/'Inputs - forecast'!L$18*'Inputs - actual'!L$14 -> 162.6562405 | M96: =M$32/'Inputs - forecast'!M$18*'Inputs - actual'!M$14 -> 170.7890525 | N96: =N$32/'Inputs - forecast'!N$18*'Inputs - actual'!N$14 -> 179.3285051 | O96: =O$32/'Inputs - forecast'!O$18*'Inputs - actual'!O$14 -> 0
B97: Depreciation | F97: =-F95/F29 -> -300 | G97: -323.3333333 | H97: -350.8958333 | I97: -383.9708333 | J97: -424.4877083 | K97: -475.5389708 | L97: -514.2666471 | M97: -568.4853939 | N97: -653.8799202 | O97: -833.2084253
B98: Closing Asset Base | F98: =SUM(F95:F97) -> 2910 | G98: =SUM(G95:G97) -> 2807.166667 | H98: 2687.795833 | I98: 2546.92625 | J98: 2377.694854 | K98: 2057.066589 | L98: 1705.456182 | M98: 1307.75984 | N98: 833.2084253 | O98: 0
A100: Actual tax
B101: Revenue | F101: =F80 -> 647.4032081 | G101: =G80 -> 660.3512723 | H101: 673.5582977 | I101: 687.0294637 | J101: 700.7700529 | K101: 788.8390252 | L101: 804.6158057 | M101: 820.7081218 | N101: 837.1222843 | O101: 853.86473
B102: Depreciation | F102: =F97 -> -300 | G102: =G97 -> -323.3333333 | H102: -350.8958333 | I102: -383.9708333 | J102: -424.4877083 | K102: -475.5389708 | L102: -514.2666471 | M102: -568.4853939 | N102: -653.8799202 | O102: -833.2084253
B103: Opex | F103: =F81 -> -105 | G103: -110.25 | H103: -115.7625 | I103: -121.550625 | J103: -127.6281563 | K103: -134.0095641 | L103: -140.7100423 | M103: -147.7455444 | N103: -155.1328216 | O103: -162.8894627
B104: Interest | F104: -61.5 | G104: -59.655 | H104: -57.54691667 | I104: -55.09981458 | J104: -52.21198813 | K104: -48.74274451 | L104: -42.16986506 | M104: -34.96185173 | N104: -26.80907673 | O104: -17.08077272
B105: EBT | F105: =SUM(F101:F104) -> 180.9032081 | G105: =SUM(G101:G104) -> 167.1129389 | H105: 149.3530477 | I105: 126.4081907 | J105: 96.44220022 | K105: 130.5477458 | L105: 107.4692513 | M105: 69.51533178 | N105: 1.300465759 | O105: -159.3139307
B106: Calculated tax | F106: =-F105*'Inputs - forecast'!F35 -> -50.65289827 | G106: =-G105*'Inputs - forecast'!G35 -> -46.7916229 | H106: =-H105*'Inputs - forecast'!H35 -> -41.81885336 | I106: =-I105*'Inputs - forecast'!I35 -> -35.39429341 | J106: =-J105*'Inputs - forecast'!J35 -> -27.00381606 | K106: =-K105*'Inputs - forecast'!K35 -> -36.55336883 | L106: =-L105*'Inputs - forecast'!L35 -> -30.09139035 | M106: =-M105*'Inputs - forecast'!M35 -> -19.4642929 | N106: =-N105*'Inputs - forecast'!N35 -> -0.3641304125 | O106: =-O105*'Inputs - forecast'!O35 -> 44.6079006
B107: Deferred tax | F107: =IF(F106>0,F106+E107,0) -> 0 | G107: =IF(G106>0,G106+F107,0) -> 0 | H107: =IF(H106>0,H106+G107,0) -> 0 | I107: =IF(I106>0,I106+H107,0) -> 0 | J107: =IF(J106>0,J106+I107,0) -> 0 | K107: 0 | L107: 0 | M107: 0 | N107: 0 | O107: 44.6079006
B108: Tax | F108: =IF(F107>0,0,F106+E107) -> -50.65289827 | G108: -46.7916229 | H108: -41.81885336 | I108: -35.39429341 | J108: -27.00381606 | K108: -36.55336883 | L108: -30.09139035 | M108: -19.4642929 | N108: -0.3641304125 | O108: 0
A110: Tax adjustment | E110: NPV
B111: Tax | F111: =F108 -> -50.65289827 | G111: -46.7916229 | H111: -41.81885336 | I111: -35.39429341 | J111: -27.00381606 | K111: -36.55336883 | L111: -30.09139035 | M111: -19.4642929 | N111: -0.3641304125 | O111: 0
B112: NPV of actual tax | E112: =SUM(F112:O112) -> -206.9349594 | F112: =F111/'Inputs - actual'!F$32 -> -46.34175231 | G112: =G111/'Inputs - actual'!G32 -> -39.16556641 | H112: =H111/'Inputs - actual'!H32 -> -32.02407363 | I112: =I111/'Inputs - actual'!I32 -> -24.79738321 | J112: =J111/'Inputs - actual'!J32 -> -17.30875775 | K112: =K111/'Inputs - actual'!K32 -> -21.43563328 | L112: =L111/'Inputs - actual'!L32 -> -16.14430361 | M112: =M111/'Inputs - actual'!M32 -> -9.553969372 | N112: =N111/'Inputs - actual'!N32 -> -0.1635197891 | O112: =O111/'Inputs - actual'!O32 -> 0
B114: Forecast tax adjusted for inflation | F114: =F$10/'Inputs - forecast'!F$18*'Inputs - actual'!F$14 -> -53.00739528 | G114: =G$10/'Inputs - forecast'!G$18*'Inputs - actual'!G$14 -> -51.6614392 | H114: =H$10/'Inputs - forecast'!H$18*'Inputs - actual'!H$14 -> -49.35228429 | I114: =I$10/'Inputs - forecast'!I$18*'Inputs - actual'!I$14 -> -45.71816573 | J114: =J$10/'Inputs - forecast'!J$18*'Inputs - actual'!J$14 -> -40.20944784 | K114: =K$10/'Inputs - forecast'!K$21*'Inputs - actual'!K$14 -> -43.91117231 | L114: =L$10/'Inputs - forecast'!L$21*'Inputs - actual'!L$14 -> -41.45630027 | M114: =M$10/'Inputs - forecast'!M$21*'Inputs - actual'!M$14 -> -35.50837838 | N114: =N$10/'Inputs - forecast'!N$21*'Inputs - actual'!N$14 -> -22.15147328 | O114: =O$10/'Inputs - forecast'!O$21*'Inputs - actual'!O$14 -> 14.29751948
B115: NPV of forecast tax adjusted for inflation | E115: =SUM(F115:O115) -> -256.8288065 | F115: =F114/'Inputs - actual'!F$32 -> -48.49585446 | G115: =G114/'Inputs - actual'!G$32 -> -43.24170445 | H115: =H114/'Inputs - actual'!H$32 -> -37.79303016 | I115: =I114/'Inputs - actual'!I$32 -> -32.03032936 | J115: =J114/'Inputs - actual'!J$32 -> -25.77323109 | K115: =K114/'Inputs - actual'!K$32 -> -25.75039776 | L115: =L114/'Inputs - actual'!L$32 -> -22.24168077 | M115: =M114/'Inputs - actual'!M$32 -> -17.42914378 | N115: =N114/'Inputs - actual'!N$32 -> -9.947546579 | O115: =O114/'Inputs - actual'!O$32 -> 5.874111877
B116: Difference | E116: =E115-E112 -> -49.89384717
A118: Real revenue | F118: =F80/'Inputs - actual'!F$14 -> 616.5744839 | G118: =G80/'Inputs - actual'!G$14 -> 598.9580701 | H118: =H80/'Inputs - actual'!H$14 -> 581.8449824 | I118: =I80/'Inputs - actual'!I$14 -> 565.22084 | J118: =J80/'Inputs - actual'!J$14 -> 549.0716731 | K118: =K80/'Inputs - actual'!K$14 -> 588.6438261 | L118: =L80/'Inputs - actual'!L$14 -> 571.8254311 | M118: =M80/'Inputs - actual'!M$14 -> 555.4875616 | N118: =N80/'Inputs - actual'!N$14 -> 539.6164884 | O118: =O80/'Inputs - actual'!O$14 -> 524.1988745

Sheet TP with wash-up (excl. CoD adj)
A1: Calculation
A2: This model washes up revenue for inflation annually and RAB is washed up after Y5 (i.e. 2 regulatory periods). RAB is not indexed. No adjustment is made to actual revenue for the overcompensation for inflation on fixed cost of debt.
A4: Forecast | D4: Return over forecast period | E4: ='Inputs - forecast'!E2 -> 2020-06-30 | F4: ='Inputs - forecast'!F2 -> 2021-06-30 | G4: ='Inputs - forecast'!G2 -> 2022-06-30 | H4: ='Inputs - forecast'!H2 -> 2023-06-30 | I4: ='Inputs - forecast'!I2 -> 2024-06-30 | J4: ='Inputs - forecast'!J2 -> 2025-06-30 | K4: ='Inputs - forecast'!K2 -> 2026-06-30 | L4: ='Inputs - forecast'!L2 -> 2027-06-30 | M4: ='Inputs - forecast'!M2 -> 2028-06-30 | N4: ='Inputs - forecast'!N2 -> 2029-06-30 | O4: ='Inputs - forecast'!O2 -> 2030-06-30
A5: Building blocks
B6: Revenue | F6: =K59 -> 647.4032081 | G6: =F6*(1+'Inputs - forecast'!G19) -> 660.3512723 | H6: =G6*(1+'Inputs - forecast'!H19) -> 673.5582977 | I6: =H6*(1+'Inputs - forecast'!I19) -> 687.0294637 | J6: =I6*(1+'Inputs - forecast'!J19) -> 700.7700529 | K6: =P66 -> 901.4033142 | L6: =K6*(1+'Inputs - forecast'!L19) -> 919.4313805 | M6: =L6*(1+'Inputs - forecast'!M19) -> 937.8200081 | N6: =M6*(1+'Inputs - forecast'!N19) -> 956.5764083 | O6: =N6*(1+'Inputs - forecast'!O19) -> 975.7079365
B7: Return on debt | F7: =-F$31*'Inputs - forecast'!F$34*'Inputs - forecast'!F$32 -> -61.5 | G7: =-G$31*'Inputs - forecast'!G$34*'Inputs - forecast'!G$32 -> -59.532 | H7: =-H$31*'Inputs - forecast'!H$34*'Inputs - forecast'!H$32 -> -57.18297333 | I7: =-I$31*'Inputs - forecast'!I$34*'Inputs - forecast'!I$32 -> -54.38605447 | J7: =-J$31*'Inputs - forecast'!J$34*'Inputs - forecast'!J$32 -> -51.05458997 | K7: =-K$31*'Inputs - forecast'!K$34*'Inputs - forecast'!K$32 -> -54.41396143 | L7: =-L$31*'Inputs - forecast'!L$34*'Inputs - forecast'!L$32 -> -46.19987389 | M7: =-M$31*'Inputs - forecast'!M$34*'Inputs - forecast'!M$32 -> -37.37198426 | N7: =-N$31*'Inputs - forecast'!N$34*'Inputs - forecast'!N$32 -> -27.69117659 | O7: =-O$31*'Inputs - forecast'!O$34*'Inputs - forecast'!O$32 -> -16.67763912
B8: Return on equity | F8: =-F$31*(1-'Inputs - forecast'!F$34)*'Inputs - forecast'!F$31 -> -123.9 | G8: =-G$31*(1-'Inputs - forecast'!G$34)*'Inputs - forecast'!G$31 -> -119.9352 | H8: =-H$31*(1-'Inputs - forecast'!H$34)*'Inputs - forecast'!H$31 -> -115.2027707 | I8: =-I$31*(1-'Inputs - forecast'!I$34)*'Inputs - forecast'!I$31 -> -109.5680024 | J8: =-J$31*(1-'Inputs - forecast'!J$34)*'Inputs - forecast'!J$31 -> -102.8563203 | K8: =-K$31*(1-'Inputs - forecast'!K$34)*'Inputs - forecast'!K$31 -> -109.6242247 | L8: =-L$31*(1-'Inputs - forecast'!L$34)*'Inputs - forecast'!L$31 -> -93.07584349 | M8: =-M$31*(1-'Inputs - forecast'!M$34)*'Inputs - forecast'!M$31 -> -75.2908756 | N8: =-N$31*(1-'Inputs - forecast'!N$34)*'Inputs - forecast'!N$31 -> -55.78758991 | O8: =-O$31*(1-'Inputs - forecast'!O$34)*'Inputs - forecast'!O$31 -> -33.59934126
B9: Revaluation | Q9: Asset base not indexed and therefore no revaluation gains.
B10: Tax | F10: =F50 -> -51.49289827 | G10: =G50 -> -48.75152957 | H10: -45.24180016 | I10: -40.71292343 | J10: -34.78423631 | K10: -72.11888154 | L10: -69.62502223 | M10: -64.1088503 | N10: -52.35120152 | O10: -21.33651666
B11: Opex | F11: =-'Inputs - forecast'!F10 -> -102 | G11: =-'Inputs - forecast'!G10 -> -104.04 | H11: =-'Inputs - forecast'!H10 -> -106.1208 | I11: =-'Inputs - forecast'!I10 -> -108.243216 | J11: =-'Inputs - forecast'!J10 -> -110.4080803 | K11: =-'Inputs - forecast'!K10 -> -130.1807194 | L11: =-'Inputs - forecast'!L10 -> -132.7843338 | M11: =-'Inputs - forecast'!M10 -> -135.4400204 | N11: =-'Inputs - forecast'!N10 -> -138.1488208 | O11: =-'Inputs - forecast'!O10 -> -140.9117973
B12: Depreciation | F12: =F33 -> -300 | G12: =G33 -> -322.6666667 | H12: -348.6766667 | I12: -378.9968952 | J12: -415.0779672 | K12: -530.8679164 | L12: -563.4130962 | M12: -607.6745408 | N12: -675.394551 | O12: -813.5433719
B13: Net revenue | F13: =SUM(F6:F12) -> 8.51030983 | G13: =SUM(G6:G12) -> 5.425876027 | H13: 1.133286881 | I13: -4.877627886 | J13: -13.41114119 | K13: 4.19761081 | L13: 14.33321095 | M13: 17.93373674 | N13: 7.203068421 | O13: -50.3607297
B14: Present value | F14: =F13/'Inputs - forecast'!F$42 -> 8.01498383 | G14: =G13/'Inputs - forecast'!G$42 -> 4.812651616 | H14: =H13/'Inputs - forecast'!H$42 -> 0.9466985203 | I14: =I13/'Inputs - forecast'!I$42 -> -3.837406271 | J14: =J13/'Inputs - forecast'!J$42 -> -9.936927694 | K14: =K13/'Inputs - forecast'!K$42 -> 2.929178539 | L14: =L13/'Inputs - forecast'!L$42 -> 9.419859944 | M14: =M13/'Inputs - forecast'!M$42 -> 11.10015446 | N14: =N13/'Inputs - forecast'!N$42 -> 4.198876016 | O14: =O13/'Inputs - forecast'!O$42 -> -27.64806896
B15: Sum of present values | O15: =SUM(F14:O14) -> -8.149925179e-12
A17: Regulatory cashflows
B18: Revenue | F18: =F6 -> 647.4032081 | G18: 660.3512723 | H18: 673.5582977 | I18: 687.0294637 | J18: 700.7700529 | K18: 901.4033142 | L18: 919.4313805 | M18: 937.8200081 | N18: 956.5764083 | O18: 975.7079365
B19: Opex | F19: =F11 -> -102 | G19: -104.04 | H19: -106.1208 | I19: -108.243216 | J19: -110.4080803 | K19: -130.1807194 | L19: -132.7843338 | M19: -135.4400204 | N19: -138.1488208 | O19: -140.9117973
B20: Tax | F20: =F10 -> -51.49289827 | G20: -48.75152957 | H20: -45.24180016 | I20: -40.71292343 | J20: -34.78423631 | K20: -72.11888154 | L20: -69.62502223 | M20: -64.1088503 | N20: -52.35120152 | O20: -21.33651666
B21: Capex | F21: =-F32 -> -204 | G21: -208.08 | H21: -212.2416 | I21: -216.486432 | J21: -220.8161606 | K21: -130.1807194 | L21: -132.7843338 | M21: -135.4400204 | N21: -138.1488208 | O21: 0
B22: Opening RAB | E22: =-'Inputs - forecast'!E$12 -> -3000
B23: Closing RAB | J23: =-(K31-J34) -> -358.133585 | O23: =O34 -> 0 | Q23: RAB washed up for inflation at reset
B24: Sum | E24: =SUM(E18:E23) -> -3000 | F24: =SUM(F18:F23) -> 289.9103098 | G24: 299.4797427 | H24: 309.9540975 | I24: 321.5868922 | J24: =SUM(J18:J23) -> -23.37200933 | K24: 568.922994 | L24: 584.2376908 | M24: 602.831117 | N24: 627.9275651 | O24: 813.4596225
B25: Present value | E25: =E24/'Inputs - forecast'!E42 -> -3000 | F25: =F24/'Inputs - forecast'!F42 -> 273.0366452 | G25: =G24/'Inputs - forecast'!G42 -> 265.6329891 | H25: =H24/'Inputs - forecast'!H42 -> 258.9221586 | I25: =I24/'Inputs - forecast'!I42 -> 253.0040392 | J25: =J24/'Inputs - forecast'!J42 -> -17.31739033 | K25: =K24/'Inputs - forecast'!K42 -> 397.0060827 | L25: =L24/'Inputs - forecast'!L42 -> 383.9640148 | M25: =M24/'Inputs - forecast'!M42 -> 373.1246092 | N25: =N24/'Inputs - forecast'!N42 -> 366.0370607 | O25: =O24/'Inputs - forecast'!O42 -> 446.5897909
B26: Sum of present values | O26: =SUM(E25:O25) -> -9.606537787e-12
A28: Regulatory Asset Base
B29: Useful lives | F29: ='Inputs - forecast'!D15 -> 10 | G29: =F29-1 -> 9 | H29: =G29-1 -> 8 | I29: 7 | J29: 6 | K29: 5 | L29: 4 | M29: 3 | N29: 2 | O29: 1
B31: Opening RAB | F31: =E34 -> 3000 | G31: =F34 -> 2904 | H31: 2789.413333 | I31: 2652.978267 | J31: 2490.467803 | K31: =J36 -> 2654.339582 | L31: 2253.652385 | M31: 1823.023622 | N31: 1350.789102 | O31: 813.5433719 | Q31: RAB not indexed, washed up for inflation at reset
B32: Capex | F32: ='Inputs - forecast'!F$11 -> 204 | G32: ='Inputs - forecast'!G$11 -> 208.08 | H32: ='Inputs - forecast'!H$11 -> 212.2416 | I32: ='Inputs - forecast'!I$11 -> 216.486432 | J32: ='Inputs - forecast'!J$11 -> 220.8161606 | K32: ='Inputs - forecast'!K$11 -> 130.1807194 | L32: ='Inputs - forecast'!L$11 -> 132.7843338 | M32: ='Inputs - forecast'!M$11 -> 135.4400204 | N32: ='Inputs - forecast'!N$11 -> 138.1488208 | O32: ='Inputs - forecast'!O$11 -> 0
B33: Depreciation | F33: =-F31/F29 -> -300 | G33: -322.6666667 | H33: -348.6766667 | I33: -378.9968952 | J33: -415.0779672 | K33: -530.8679164 | L33: -563.4130962 | M33: -607.6745408 | N33: -675.394551 | O33: -813.5433719
B34: Closing RAB | E34: =-E22 -> 3000 | F34: =SUM(F31:F33) -> 2904 | G34: =SUM(G31:G33) -> 2789.413333 | H34: 2652.978267 | I34: 2490.467803 | J34: 2296.205997 | K34: 2253.652385 | L34: 1823.023622 | M34: 1350.789102 | N34: 813.5433719 | O34: 0
B36: RAB inflation wash-up for actual inflation | J36: =J34/'Inputs - forecast'!J18*'Inputs - actual'!J14 -> 2654.339582
A38: Tax asset base | F38: =F29 -> 10 | G38: 9 | H38: 8 | I38: 7 | J38: 6 | K38: 5 | L38: 4 | M38: 3 | N38: 2 | O38: 1
B39: Opening balance | F39: =E42 -> 3000 | G39: =F42 -> 2904 | H39: =G42 -> 2789.413333 | I39: 2652.978267 | J39: 2490.467803 | K39: 2296.205997 | L39: 1967.145517 | M39: 1608.143471 | N39: 1207.535668 | O39: 741.9166549
B40: Capex | F40: =-F21 -> 204 | G40: 208.08 | H40: 212.2416 | I40: 216.486432 | J40: 220.8161606 | K40: 130.1807194 | L40: 132.7843338 | M40: 135.4400204 | N40: 138.1488208 | O40: 0
B41: Depreciation | F41: =-F39/F38 -> -300 | G41: =-G39/G38 -> -322.6666667 | H41: -348.6766667 | I41: -378.9968952 | J41: -415.0779672 | K41: -459.2411994 | L41: -491.7863792 | M41: -536.0478238 | N41: -603.767834 | O41: -741.9166549
B42: Closing balance | E42: =E34 -> 3000 | F42: =SUM(F39:F41) -> 2904 | G42: =SUM(G39:G41) -> 2789.413333 | H42: =SUM(H39:H41) -> 2652.978267 | I42: 2490.467803 | J42: 2296.205997 | K42: 1967.145517 | L42: 1608.143471 | M42: 1207.535668 | N42: 741.9166549 | O42: 0
A44: Regulatory tax
B45: Revenue | F45: =F6 -> 647.4032081 | G45: 660.3512723 | H45: 673.5582977 | I45: 687.0294637 | J45: 700.7700529 | K45: 901.4033142 | L45: 919.4313805 | M45: 937.8200081 | N45: 956.5764083 | O45: 975.7079365
B46: Depreciation | F46: =F41 -> -300 | G46: -322.6666667 | H46: -348.6766667 | I46: -378.9968952 | J46: -415.0779672 | K46: -459.2411994 | L46: -491.7863792 | M46: -536.0478238 | N46: -603.767834 | O46: -741.9166549
B47: Opex | F47: =F11 -> -102 | G47: -104.04 | H47: -106.1208 | I47: -108.243216 | J47: -110.4080803 | K47: -130.1807194 | L47: -132.7843338 | M47: -135.4400204 | N47: -138.1488208 | O47: -140.9117973
B48: Notional interest | F48: =-'Inputs - forecast'!F$32*'Inputs - forecast'!F34*F31 -> -61.5 | G48: =-'Inputs - forecast'!G$32*'Inputs - forecast'!G34*G31 -> -59.532 | H48: =-'Inputs - forecast'!H$32*'Inputs - forecast'!H34*H31 -> -57.18297333 | I48: =-'Inputs - forecast'!I$32*'Inputs - forecast'!I34*I31 -> -54.38605447 | J48: =-'Inputs - forecast'!J$32*'Inputs - forecast'!J34*J31 -> -51.05458997 | K48: =-'Inputs - forecast'!K$32*'Inputs - forecast'!K34*K31 -> -54.41396143 | L48: =-'Inputs - forecast'!L$32*'Inputs - forecast'!L34*L31 -> -46.19987389 | M48: =-'Inputs - forecast'!M$32*'Inputs - forecast'!M34*M31 -> -37.37198426 | N48: =-'Inputs - forecast'!N$32*'Inputs - forecast'!N34*N31 -> -27.69117659 | O48: =-'Inputs - forecast'!O$32*'Inputs - forecast'!O34*O31 -> -16.67763912
B49: EBT | F49: =SUM(F45:F48) -> 183.9032081 | G49: =SUM(G45:G48) -> 174.1126056 | H49: 161.5778577 | I49: 145.403298 | J49: 124.2294154 | K49: 257.5674341 | L49: 248.6607937 | M49: 228.9601796 | N49: 186.9685768 | O49: 76.20184522
B50: Calculated tax | F50: =-F49*'Inputs - forecast'!F35 -> -51.49289827 | G50: =-G49*'Inputs - forecast'!G35 -> -48.75152957 | H50: =-H49*'Inputs - forecast'!H35 -> -45.24180016 | I50: =-I49*'Inputs - forecast'!I35 -> -40.71292343 | J50: =-J49*'Inputs - forecast'!J35 -> -34.78423631 | K50: =-K49*'Inputs - forecast'!K35 -> -72.11888154 | L50: =-L49*'Inputs - forecast'!L35 -> -69.62502223 | M50: =-M49*'Inputs - forecast'!M35 -> -64.1088503 | N50: =-N49*'Inputs - forecast'!N35 -> -52.35120152 | O50: =-O49*'Inputs - forecast'!O35 -> -21.33651666
B51: Deferred tax | F51: =IF(F50>0,F50,0) -> 0 | G51: =IF(G50>0,G50,0) -> 0 | H51: =IF(H50>0,H50,0) -> 0 | I51: =IF(I50>0,I50,0) -> 0 | J51: =IF(J50>0,J50+I51,0) -> 0 | K51: 0 | L51: 0 | M51: 0 | N51: 0 | O51: 0
B52: Tax | F52: =IF(F51>0,0,F50+E51) -> -51.49289827 | G52: -48.75152957 | H52: -45.24180016 | I52: -40.71292343 | J52: -34.78423631 | K52: -72.11888154 | L52: -69.62502223 | M52: -64.1088503 | N52: -52.35120152 | O52: -21.33651666
A54: Reg Period 1
A55: Calculation of revenue | K55: Sum
B56: Present value of revenue | F56: =F6/'Inputs - forecast'!F$42 -> 609.7223659 | G56: =G6/'Inputs - forecast'!G$42 -> 585.7193569 | H56: =H6/'Inputs - forecast'!H$42 -> 562.6612772 | I56: =I6/'Inputs - forecast'!I$42 -> 540.5109274 | J56: =J6/'Inputs - forecast'!J$42 -> 519.2325729 | K56: =SUM(F56:J56) -> 2817.8465
B57: Present value of cost | F57: =SUM(F7:F12)/'Inputs - forecast'!F$42 -> -601.7073821 | G57: =SUM(G7:G12)/'Inputs - forecast'!G$42 -> -580.9067053 | H57: =SUM(H7:H12)/'Inputs - forecast'!H$42 -> -561.7145786 | I57: =SUM(I7:I12)/'Inputs - forecast'!I$42 -> -544.3483337 | J57: =SUM(J7:J12)/'Inputs - forecast'!J$42 -> -529.1695006 | K57: =SUM(F57:J57) -> -2817.8465
B58: Difference | K58: =SUM(K56:K57) -> 0
B59: Revenue | K59: 647.4032081
A61: Reg Period 2
A62: Calculation of revenue | P62: Sum
B63: Present value of revenue | K63: =K6/'Inputs - forecast'!K$42 -> 629.0176395 | L63: =L6/'Inputs - forecast'!L$42 -> 604.2550313 | M63: =M6/'Inputs - forecast'!M$42 -> 580.4672556 | N63: =N6/'Inputs - forecast'!N$42 -> 557.6159359 | O63: =O6/'Inputs - forecast'!O$42 -> 535.6642066 | P63: =SUM(K63:O63) -> 2907.020069
B64: Present value of cost | K64: =SUM(K7:K12)/'Inputs - forecast'!K$42 -> -626.088461 | L64: =SUM(L7:L12)/'Inputs - forecast'!L$42 -> -594.8351714 | M64: =SUM(M7:M12)/'Inputs - forecast'!M$42 -> -569.3671011 | N64: =SUM(N7:N12)/'Inputs - forecast'!N$42 -> -553.4170598 | O64: =SUM(O7:O12)/'Inputs - forecast'!O$42 -> -563.3122756 | P64: =SUM(K64:O64) -> -2907.020069
B65: Difference | P65: =SUM(P63:P64) -> -7.730704965e-12
B66: Revenue | P66: 901.4033142
A68: Actual
A69: Actual return (cashflows) with fixed cost of debt
B70: Revenue | F70: =F$6/'Inputs - forecast'!F$18*'Inputs - actual'!F$14 -> 666.4444789 | G70: =G$6/'Inputs - forecast'!G$18*'Inputs - actual'!G$14 -> 699.7667029 | H70: =H$6/'Inputs - forecast'!H$18*'Inputs - actual'!H$14 -> 734.755038 | I70: =I$6/'Inputs - forecast'!I$18*'Inputs - actual'!I$14 -> 771.4927899 | J70: =J$6/'Inputs - forecast'!J$18*'Inputs - actual'!J$14 -> 810.0674294 | K70: =K$6/'Inputs - forecast'!K$21*'Inputs - actual'!K$14 -> 927.9151764 | L70: =L$6/'Inputs - forecast'!L$21*'Inputs - actual'!L$14 -> 974.3109353 | M70: =M$6/'Inputs - forecast'!M$21*'Inputs - actual'!M$14 -> 1023.026482 | N70: =N$6/'Inputs - forecast'!N$21*'Inputs - actual'!N$14 -> 1074.177806 | O70: =O$6/'Inputs - forecast'!O$21*'Inputs - actual'!O$14 -> 1127.886696 | Q70: Revenue wash-up with no adjustment for the overcompensation for inflation on fixed cost of debt.
B71: Opex | F71: =F$11/'Inputs - forecast'!F$18*'Inputs - actual'!F$14 -> -105 | G71: =G$11/'Inputs - forecast'!G$18*'Inputs - actual'!G$14 -> -110.25 | H71: =H$11/'Inputs - forecast'!H$18*'Inputs - actual'!H$14 -> -115.7625 | I71: =I$11/'Inputs - forecast'!I$18*'Inputs - actual'!I$14 -> -121.550625 | J71: =J$11/'Inputs - forecast'!J$18*'Inputs - actual'!J$14 -> -127.6281563 | K71: =K$11/'Inputs - forecast'!K$21*'Inputs - actual'!K$14 -> -134.0095641 | L71: =L$11/'Inputs - forecast'!L$21*'Inputs - actual'!L$14 -> -140.7100423 | M71: =M$11/'Inputs - forecast'!M$21*'Inputs - actual'!M$14 -> -147.7455444 | N71: =N$11/'Inputs - forecast'!N$21*'Inputs - actual'!N$14 -> -155.1328216 | O71: =O$11/'Inputs - forecast'!O$21*'Inputs - actual'!O$14 -> -162.8894627
B72: Capex | F72: =-F96-F92 -> -172.0147059 | G72: =-G96-G92 -> -183.6542647 | H72: -195.9813162 | I72: -209.0690116 | J72: -223.0077316 | K72: =-K96-K92 -> -103.9037513 | L72: =-L96-L92 -> -114.9285945 | M72: -126.6278211 | N72: -139.1836201 | O72: 9.938856043
B73: Tax | E73: =E116 -> 59.67436227 | F73: =F108 -> -55.9844541 | G73: =G108 -> -57.82794347 | H73: -58.95394064 | I73: -59.04402476 | J73: -57.60708148 | K73: -75.49469117 | L73: -79.18907905 | M73: -79.84077605 | N73: -73.75339617 | O73: -45.90752585
B74: Nominal IRR | D74: =IRR(E74:O74,0.05) -> 0.1051627534 | E74: =-E34+SUM(E70:E73) -> -2940.325638 | F74: =SUM(F70:F73) -> 333.4453189 | G74: 348.0344947 | H74: 364.0572812 | I74: 381.8291286 | J74: 401.8244601 | K74: 614.5071699 | L74: 639.4832195 | M74: 668.8123405 | N74: 706.1079683 | O74: 929.0285639
B76: Real IRR | D76: =IRR(E76:O76,0.05) -> 0.05253595561 | E76: =E74 -> -2940.325638 | F76: =F74/'Inputs - actual'!F$14 -> 317.5669704 | G76: =G74/'Inputs - actual'!G$14 -> 315.6775462 | H76: =H74/'Inputs - actual'!H$14 -> 314.4863675 | I76: =I74/'Inputs - actual'!I$14 -> 314.131769 | J76: =J74/'Inputs - actual'!J$14 -> 314.8399788 | K76: =K74/'Inputs - actual'!K$14 -> 458.5547115 | L76: =L74/'Inputs - actual'!L$14 -> 454.468785 | M76: =M74/'Inputs - actual'!M$14 -> 452.6785179 | N76: =N74/'Inputs - actual'!N$14 -> 455.1634922 | O76: =O74/'Inputs - actual'!O$14 -> 570.3429483
B77: check to inputs | D77: =D76-'Inputs - actual'!P28 -> 0.01155556345 | E77: Overcompensation for inflation on fixed cost of debt.
A79: Actual return (building blocks) with fixed cost of debt
B80: Revenue | F80: =F70 -> 666.4444789 | G80: =G70 -> 699.7667029 | H80: 734.755038 | I80: 771.4927899 | J80: 810.0674294 | K80: 927.9151764 | L80: 974.3109353 | M80: 1023.026482 | N80: 1074.177806 | O80: 1127.886696
B81: Opex | F81: =F71 -> -105 | G81: =G71 -> -110.25 | H81: -115.7625 | I81: -121.550625 | J81: -127.6281563 | K81: -134.0095641 | L81: -140.7100423 | M81: -147.7455444 | N81: -155.1328216 | O81: -162.8894627
B82: Return on debt | F82: =-'Inputs - forecast'!F$32*'Inputs - forecast'!F$34*F95 -> -61.5 | G82: =-'Inputs - forecast'!G$32*'Inputs - forecast'!G$34*G95 -> -59.655 | H82: =-'Inputs - forecast'!H$32*'Inputs - forecast'!H$34*H95 -> -57.54691667 | I82: =-'Inputs - forecast'!I$32*'Inputs - forecast'!I$34*I95 -> -55.09981458 | J82: =-'Inputs - forecast'!J$32*'Inputs - forecast'!J$34*J95 -> -52.21198813 | K82: =-'Inputs - forecast'!K$32*'Inputs - forecast'!K$34*K95 -> -48.74274451 | L82: =-'Inputs - forecast'!L$32*'Inputs - forecast'!L$34*L95 -> -41.74139167 | M82: =-'Inputs - forecast'!M$32*'Inputs - forecast'!M$34*M95 -> -34.19059962 | N82: =-'Inputs - forecast'!N$32*'Inputs - forecast'!N$34*N95 -> -25.82251674 | O82: =-'Inputs - forecast'!O$32*'Inputs - forecast'!O$34*O95 -> -16.09148121 | Q82: Assumes fixed cost of debt
B83: Return on equity | F83: =-F95*'Inputs - actual'!F$21*(1-'Inputs - actual'!F$24) -> -179.6029412 | G83: =-G95*'Inputs - actual'!G$21*(1-'Inputs - actual'!G$24) -> -174.2148529 | H83: =-H95*'Inputs - actual'!H$21*(1-'Inputs - actual'!H$24) -> -168.0584632 | I83: =-I95*'Inputs - actual'!I$21*(1-'Inputs - actual'!I$24) -> -160.9120123 | J83: =-J95*'Inputs - actual'!J$21*(1-'Inputs - actual'!J$24) -> -152.4784818 | K83: =-K95*'Inputs - actual'!K$21*(1-'Inputs - actual'!K$24) -> -142.3469963 | L83: =-L95*'Inputs - actual'!L$21*(1-'Inputs - actual'!L$24) -> -121.9004344 | M83: =-M95*'Inputs - actual'!M$21*(1-'Inputs - actual'!M$24) -> -99.84930492 | N83: =-N95*'Inputs - actual'!N$21*(1-'Inputs - actual'!N$24) -> -75.41138138 | O83: =-O95*'Inputs - actual'!O$21*(1-'Inputs - actual'!O$24) -> -46.9931277
B84: Depreciation | F84: =F97 -> -300 | G84: =G97 -> -323.3333333 | H84: =H97 -> -350.8958333 | I84: -383.9708333 | J84: -424.4877083 | K84: -475.5389708 | L84: -509.0413618 | M84: -555.9447093 | N84: -629.8174815 | O84: -784.9503031
B85: Tax | E85: =E73 -> 59.67436227 | F85: =F108 -> -55.9844541 | G85: =G108 -> -57.82794347 | H85: -58.95394064 | I85: -59.04402476 | J85: -57.60708148 | K85: -75.49469117 | L85: -79.18907905 | M85: -79.84077605 | N85: -73.75339617 | O85: -45.90752585
B86: Nominal return | F86: =SUM(F80:F85) -> -35.64291635 | G86: -25.51442687 | H86: -16.46261587 | I86: -9.084520078 | J86: -4.345986594 | K86: 51.78220951 | L86: 81.72862606 | M86: 105.4555478 | N86: 114.2402088 | O86: 71.05479592
B87: Present value | D87: =SUM(E87:O87) -> 190.4231126 | E87: =E85 -> 59.67436227 | F87: =F86/'Inputs - actual'!F$32 -> -32.609293 | G87: =G86/'Inputs - actual'!G$32 -> -21.3561086 | H87: =H86/'Inputs - actual'!H$32 -> -12.60675462 | I87: =I86/'Inputs - actual'!I$32 -> -6.36465102 | J87: =J86/'Inputs - actual'!J$32 -> -2.785666624 | K87: =K86/'Inputs - actual'!K$32 -> 30.36613285 | L87: =L86/'Inputs - actual'!L$32 -> 43.8481485 | M87: =M86/'Inputs - actual'!M$32 -> 51.76242872 | N87: =N86/'Inputs - actual'!N$32 -> 51.30177047 | O87: =O86/'Inputs - actual'!O$32 -> 29.19274363
B89: Real return | F89: =F86/'Inputs - actual'!F$14 -> -33.94563462 | G89: =G86/'Inputs - actual'!G$14 -> -23.1423373 | H89: =H86/'Inputs - actual'!H$14 -> -14.22102655 | I89: =I86/'Inputs - actual'!I$14 -> -7.47385715 | J89: =J86/'Inputs - actual'!J$14 -> -3.405194216 | K89: =K86/'Inputs - actual'!K$14 -> 38.64068201 | L89: =L86/'Inputs - actual'!L$14 -> 58.08300868 | M89: =M86/'Inputs - actual'!M$14 -> 71.37646568 | N89: =N86/'Inputs - actual'!N$14 -> 73.64025716 | O89: =O86/'Inputs - actual'!O$14 -> 43.62148094
B90: Present value | D90: =SUM(E90:O90) -> 190.4231126 | E90: =E87 -> 59.67436227 | F90: =F89/'Inputs - actual'!F$36 -> -32.609293 | G90: =G89/'Inputs - actual'!G$36 -> -21.3561086 | H90: =H89/'Inputs - actual'!H$36 -> -12.60675462 | I90: =I89/'Inputs - actual'!I$36 -> -6.36465102 | J90: =J89/'Inputs - actual'!J$36 -> -2.785666624 | K90: =K89/'Inputs - actual'!K$36 -> 30.36613285 | L90: =L89/'Inputs - actual'!L$36 -> 43.8481485 | M90: =M89/'Inputs - actual'!M$36 -> 51.76242872 | N90: =N89/'Inputs - actual'!N$36 -> 51.30177047 | O90: =O89/'Inputs - actual'!O$36 -> 29.19274363
A92: Adjustment for fixed cost of debt | F92: =-(F95*'Inputs - actual'!F24*'Inputs - actual'!F22+F82) -> -37.98529412 | G92: =-(G95*'Inputs - actual'!G24*'Inputs - actual'!G22+G82) -> -36.84573529 | H92: =-(H95*'Inputs - actual'!H24*'Inputs - actual'!H22+H82) -> -35.54368382 | I92: =-(I95*'Inputs - actual'!I24*'Inputs - actual'!I22+I82) -> -34.03223842 | J92: =-(J95*'Inputs - actual'!J24*'Inputs - actual'!J22+J82) -> -32.2485809 | K92: =-(K95*'Inputs - actual'!K24*'Inputs - actual'!K22+K82) -> -30.10581279 | L92: =-(L95*'Inputs - actual'!L24*'Inputs - actual'!L22+L82) -> -25.7814478 | M92: =-(M95*'Inputs - actual'!M24*'Inputs - actual'!M22+M82) -> -21.11772329 | N92: =-(N95*'Inputs - actual'!N24*'Inputs - actual'!N22+N82) -> -15.94920152 | O92: =-(O95*'Inputs - actual'!O24*'Inputs - actual'!O22+O82) -> -9.938856043
A94: Actual Asset Base
B95: Opening Asset Base | F95: =F31 -> 3000 | G95: =F98 -> 2910 | H95: 2807.166667 | I95: 2687.795833 | J95: 2546.92625 | K95: 2377.694854 | L95: 2036.165447 | M95: 1667.834128 | N95: 1259.634963 | O95: 784.9503031
B96: Capex | F96: =F$32/'Inputs - forecast'!F$18*'Inputs - actual'!F$14 -> 210 | G96: =G$32/'Inputs - forecast'!G$18*'Inputs - actual'!G$14 -> 220.5 | H96: =H$32/'Inputs - forecast'!H$18*'Inputs - actual'!H$14 -> 231.525 | I96: =I$32/'Inputs - forecast'!I$18*'Inputs - actual'!I$14 -> 243.10125 | J96: =J$32/'Inputs - forecast'!J$18*'Inputs - actual'!J$14 -> 255.2563125 | K96: =K$32/'Inputs - forecast'!K$21*'Inputs - actual'!K$14 -> 134.0095641 | L96: =L$32/'Inputs - forecast'!L$21*'Inputs - actual'!L$14 -> 140.7100423 | M96: =M$32/'Inputs - forecast'!M$21*'Inputs - actual'!M$14 -> 147.7455444 | N96: =N$32/'Inputs - forecast'!N$21*'Inputs - actual'!N$14 -> 155.1328216 | O96: =O$32/'Inputs - forecast'!O$21*'Inputs - actual'!O$14 -> 0
B97: Depreciation | F97: =-F95/F29 -> -300 | G97: -323.3333333 | H97: -350.8958333 | I97: -383.9708333 | J97: -424.4877083 | K97: -475.5389708 | L97: -509.0413618 | M97: -555.9447093 | N97: -629.8174815 | O97: -784.9503031
B98: Closing Asset Base | F98: =SUM(F95:F97) -> 2910 | G98: =SUM(G95:G97) -> 2807.166667 | H98: 2687.795833 | I98: 2546.92625 | J98: 2377.694854 | K98: 2036.165447 | L98: 1667.834128 | M98: 1259.634963 | N98: 784.9503031 | O98: 0
A100: Actual tax
B101: Revenue | F101: =F80 -> 666.4444789 | G101: =G80 -> 699.7667029 | H101: 734.755038 | I101: 771.4927899 | J101: 810.0674294 | K101: 927.9151764 | L101: 974.3109353 | M101: 1023.026482 | N101: 1074.177806 | O101: 1127.886696
B102: Depreciation | F102: =F97 -> -300 | G102: =G97 -> -323.3333333 | H102: -350.8958333 | I102: -383.9708333 | J102: -424.4877083 | K102: -475.5389708 | L102: -509.0413618 | M102: -555.9447093 | N102: -629.8174815 | O102: -784.9503031
B103: Opex | F103: =F81 -> -105 | G103: -110.25 | H103: -115.7625 | I103: -121.550625 | J103: -127.6281563 | K103: -134.0095641 | L103: -140.7100423 | M103: -147.7455444 | N103: -155.1328216 | O103: -162.8894627
B104: Interest | F104: -61.5 | G104: -59.655 | H104: -57.54691667 | I104: -55.09981458 | J104: -52.21198813 | K104: -48.74274451 | L104: -41.74139167 | M104: -34.19059962 | N104: -25.82251674 | O104: -16.09148121
B105: EBT | F105: =SUM(F101:F104) -> 199.9444789 | G105: =SUM(G101:G104) -> 206.5283695 | H105: 210.549788 | I105: 210.871517 | J105: 205.7395767 | K105: 269.623897 | L105: 282.8181395 | M105: 285.1456287 | N105: 263.4049863 | O105: 163.9554495
B106: Calculated tax | F106: =-F105*'Inputs - forecast'!F35 -> -55.9844541 | G106: =-G105*'Inputs - forecast'!G35 -> -57.82794347 | H106: =-H105*'Inputs - forecast'!H35 -> -58.95394064 | I106: =-I105*'Inputs - forecast'!I35 -> -59.04402476 | J106: =-J105*'Inputs - forecast'!J35 -> -57.60708148 | K106: =-K105*'Inputs - forecast'!K35 -> -75.49469117 | L106: =-L105*'Inputs - forecast'!L35 -> -79.18907905 | M106: =-M105*'Inputs - forecast'!M35 -> -79.84077605 | N106: =-N105*'Inputs - forecast'!N35 -> -73.75339617 | O106: =-O105*'Inputs - forecast'!O35 -> -45.90752585
B107: Deferred tax | F107: =IF(F106>0,F106+E107,0) -> 0 | G107: =IF(G106>0,G106+F107,0) -> 0 | H107: =IF(H106>0,H106+G107,0) -> 0 | I107: =IF(I106>0,I106+H107,0) -> 0 | J107: =IF(J106>0,J106+I107,0) -> 0 | K107: =IF(K106>0,K106+J107,0) -> 0 | L107: =IF(L106>0,L106+K107,0) -> 0 | M107: 0 | N107: 0 | O107: 0
B108: Tax | F108: =IF(F107>0,0,F106+E107) -> -55.9844541 | G108: -57.82794347 | H108: -58.95394064 | I108: -59.04402476 | J108: -57.60708148 | K108: -75.49469117 | L108: -79.18907905 | M108: -79.84077605 | N108: -73.75339617 | O108: -45.90752585
A110: Tax adjustment | E110: NPV
B111: Tax | F111: =F108 -> -55.9844541 | G111: -57.82794347 | H111: -58.95394064 | I111: -59.04402476 | J111: -57.60708148 | K111: -75.49469117 | L111: -79.18907905 | M111: -79.84077605 | N111: -73.75339617 | O111: -45.90752585
B112: NPV of actual tax | E112: =SUM(F112:O112) -> -400.9878795 | F112: =F111/'Inputs - actual'!F$32 -> -51.21953124 | G112: =G111/'Inputs - actual'!G32 -> -48.40319741 | H112: =H111/'Inputs - actual'!H32 -> -45.14579393 | I112: =I111/'Inputs - actual'!I32 -> -41.36647937 | J112: =J111/'Inputs - actual'!J32 -> -36.92467077 | K112: =K111/'Inputs - actual'!K32 -> -44.27161071 | L112: =L111/'Inputs - actual'!L32 -> -42.48565851 | M112: =M111/'Inputs - actual'!M32 -> -39.18952171 | N112: =N111/'Inputs - actual'!N32 -> -33.12038592 | O112: =O111/'Inputs - actual'!O32 -> -18.86102993
B114: Forecast tax adjusted for inflation | F114: =F$10/'Inputs - forecast'!F$18*'Inputs - actual'!F$14 -> -53.00739528 | G114: =G$10/'Inputs - forecast'!G$18*'Inputs - actual'!G$14 -> -51.6614392 | H114: =H$10/'Inputs - forecast'!H$18*'Inputs - actual'!H$14 -> -49.35228429 | I114: =I$10/'Inputs - forecast'!I$18*'Inputs - actual'!I$14 -> -45.71816573 | J114: =J$10/'Inputs - forecast'!J$18*'Inputs - actual'!J$14 -> -40.20944784 | K114: =K$10/'Inputs - forecast'!K$21*'Inputs - actual'!K$14 -> -74.24002512 | L114: =L$10/'Inputs - forecast'!L$21*'Inputs - actual'!L$14 -> -73.78084103 | M114: =M$10/'Inputs - forecast'!M$21*'Inputs - actual'!M$14 -> -69.93351711 | N114: =N$10/'Inputs - forecast'!N$21*'Inputs - actual'!N$14 -> -58.78725244 | O114: =O$10/'Inputs - forecast'!O$21*'Inputs - actual'!O$14 -> -24.66432053
B115: NPV of forecast tax adjusted for inflation | E115: =SUM(F115:O115) -> -341.3135172 | F115: =F114/'Inputs - actual'!F$32 -> -48.49585446 | G115: =G114/'Inputs - actual'!G$32 -> -43.24170445 | H115: =H114/'Inputs - actual'!H$32 -> -37.79303016 | I115: =I114/'Inputs - actual'!I$32 -> -32.03032936 | J115: =J114/'Inputs - actual'!J$32 -> -25.77323109 | K115: =K114/'Inputs - actual'!K$32 -> -43.53584921 | L115: =L114/'Inputs - actual'!L$32 -> -39.58408981 | M115: =M114/'Inputs - actual'!M$32 -> -34.32658377 | N115: =N114/'Inputs - actual'!N$32 -> -26.39955024 | O115: =O114/'Inputs - actual'!O$32 -> -10.13329469
B116: Difference | E116: =E115-E112 -> 59.67436227
A118: Real revenue | F118: =F80/'Inputs - actual'!F$14 -> 634.7090275 | G118: =G80/'Inputs - actual'!G$14 -> 634.7090275 | H118: =H80/'Inputs - actual'!H$14 -> 634.7090275 | I118: =I80/'Inputs - actual'!I$14 -> 634.7090275 | J118: =J80/'Inputs - actual'!J$14 -> 634.7090275 | K118: =K80/'Inputs - actual'!K$14 -> 692.4245914 | L118: =L80/'Inputs - actual'!L$14 -> 692.4245914 | M118: =M80/'Inputs - actual'!M$14 -> 692.4245914 | N118: =N80/'Inputs - actual'!N$14 -> 692.4245914 | O118: =O80/'Inputs - actual'!O$14 -> 692.4245914

Sheet TP with wash-up (incl. CoD adj)
A1: Calculation
A2: This model washes up revenue for inflation annually and RAB is washed up after Y5 (i.e. 2 regulatory periods). RAB is not indexed. An adjustment is made to actual revenue for the overcompensation for inflation on fixed cost of debt.
A4: Forecast | D4: Return over forecast period | E4: ='Inputs - forecast'!E2 -> 2020-06-30 | F4: ='Inputs - forecast'!F2 -> 2021-06-30 | G4: ='Inputs - forecast'!G2 -> 2022-06-30 | H4: ='Inputs - forecast'!H2 -> 2023-06-30 | I4: ='Inputs - forecast'!I2 -> 2024-06-30 | J4: ='Inputs - forecast'!J2 -> 2025-06-30 | K4: ='Inputs - forecast'!K2 -> 2026-06-30 | L4: ='Inputs - forecast'!L2 -> 2027-06-30 | M4: ='Inputs - forecast'!M2 -> 2028-06-30 | N4: ='Inputs - forecast'!N2 -> 2029-06-30 | O4: ='Inputs - forecast'!O2 -> 2030-06-30
A5: Building blocks
B6: Revenue | F6: =K59 -> 647.4032081 | G6: =F6*(1+'Inputs - forecast'!G19) -> 660.3512723 | H6: =G6*(1+'Inputs - forecast'!H19) -> 673.5582977 | I6: =H6*(1+'Inputs - forecast'!I19) -> 687.0294637 | J6: =I6*(1+'Inputs - forecast'!J19) -> 700.7700529 | K6: =P66 -> 901.4033142 | L6: =K6*(1+'Inputs - forecast'!L19) -> 919.4313805 | M6: =L6*(1+'Inputs - forecast'!M19) -> 937.8200081 | N6: =M6*(1+'Inputs - forecast'!N19) -> 956.5764083 | O6: =N6*(1+'Inputs - forecast'!O19) -> 975.7079365
B7: Return on debt | F7: =-F$31*'Inputs - forecast'!F$34*'Inputs - forecast'!F$32 -> -61.5 | G7: =-G$31*'Inputs - forecast'!G$34*'Inputs - forecast'!G$32 -> -59.532 | H7: =-H$31*'Inputs - forecast'!H$34*'Inputs - forecast'!H$32 -> -57.18297333 | I7: =-I$31*'Inputs - forecast'!I$34*'Inputs - forecast'!I$32 -> -54.38605447 | J7: =-J$31*'Inputs - forecast'!J$34*'Inputs - forecast'!J$32 -> -51.05458997 | K7: =-K$31*'Inputs - forecast'!K$34*'Inputs - forecast'!K$32 -> -54.41396143 | L7: =-L$31*'Inputs - forecast'!L$34*'Inputs - forecast'!L$32 -> -46.19987389 | M7: =-M$31*'Inputs - forecast'!M$34*'Inputs - forecast'!M$32 -> -37.37198426 | N7: =-N$31*'Inputs - forecast'!N$34*'Inputs - forecast'!N$32 -> -27.69117659 | O7: =-O$31*'Inputs - forecast'!O$34*'Inputs - forecast'!O$32 -> -16.67763912
B8: Return on equity | F8: =-F$31*(1-'Inputs - forecast'!F$34)*'Inputs - forecast'!F$31 -> -123.9 | G8: =-G$31*(1-'Inputs - forecast'!G$34)*'Inputs - forecast'!G$31 -> -119.9352 | H8: =-H$31*(1-'Inputs - forecast'!H$34)*'Inputs - forecast'!H$31 -> -115.2027707 | I8: =-I$31*(1-'Inputs - forecast'!I$34)*'Inputs - forecast'!I$31 -> -109.5680024 | J8: =-J$31*(1-'Inputs - forecast'!J$34)*'Inputs - forecast'!J$31 -> -102.8563203 | K8: =-K$31*(1-'Inputs - forecast'!K$34)*'Inputs - forecast'!K$31 -> -109.6242247 | L8: =-L$31*(1-'Inputs - forecast'!L$34)*'Inputs - forecast'!L$31 -> -93.07584349 | M8: =-M$31*(1-'Inputs - forecast'!M$34)*'Inputs - forecast'!M$31 -> -75.2908756 | N8: =-N$31*(1-'Inputs - forecast'!N$34)*'Inputs - forecast'!N$31 -> -55.78758991 | O8: =-O$31*(1-'Inputs - forecast'!O$34)*'Inputs - forecast'!O$31 -> -33.59934126
B9: Revaluation | Q9: Asset base not indexed and therefore no revaluation gains.
B10: Tax | F10: =F50 -> -51.49289827 | G10: =G50 -> -48.75152957 | H10: -45.24180016 | I10: -40.71292343 | J10: -34.78423631 | K10: -72.11888154 | L10: -69.62502223 | M10: -64.1088503 | N10: -52.35120152 | O10: -21.33651666
B11: Opex | F11: =-'Inputs - forecast'!F10 -> -102 | G11: =-'Inputs - forecast'!G10 -> -104.04 | H11: =-'Inputs - forecast'!H10 -> -106.1208 | I11: =-'Inputs - forecast'!I10 -> -108.243216 | J11: =-'Inputs - forecast'!J10 -> -110.4080803 | K11: =-'Inputs - forecast'!K10 -> -130.1807194 | L11: =-'Inputs - forecast'!L10 -> -132.7843338 | M11: =-'Inputs - forecast'!M10 -> -135.4400204 | N11: =-'Inputs - forecast'!N10 -> -138.1488208 | O11: =-'Inputs - forecast'!O10 -> -140.9117973
B12: Depreciation | F12: =F33 -> -300 | G12: =G33 -> -322.6666667 | H12: -348.6766667 | I12: -378.9968952 | J12: -415.0779672 | K12: -530.8679164 | L12: -563.4130962 | M12: -607.6745408 | N12: -675.394551 | O12: -813.5433719
B13: Net revenue | F13: =SUM(F6:F12) -> 8.51030983 | G13: =SUM(G6:G12) -> 5.425876027 | H13: 1.133286881 | I13: -4.877627886 | J13: -13.41114119 | K13: 4.19761081 | L13: 14.33321095 | M13: 17.93373674 | N13: 7.203068421 | O13: -50.3607297
B14: Present value | F14: =F13/'Inputs - forecast'!F$42 -> 8.01498383 | G14: =G13/'Inputs - forecast'!G$42 -> 4.812651616 | H14: =H13/'Inputs - forecast'!H$42 -> 0.9466985203 | I14: =I13/'Inputs - forecast'!I$42 -> -3.837406271 | J14: =J13/'Inputs - forecast'!J$42 -> -9.936927694 | K14: =K13/'Inputs - forecast'!K$42 -> 2.929178539 | L14: =L13/'Inputs - forecast'!L$42 -> 9.419859944 | M14: =M13/'Inputs - forecast'!M$42 -> 11.10015446 | N14: =N13/'Inputs - forecast'!N$42 -> 4.198876016 | O14: =O13/'Inputs - forecast'!O$42 -> -27.64806896
B15: Sum of present values | O15: =SUM(F14:O14) -> -8.149925179e-12
A17: Regulatory cashflows
B18: Revenue | F18: =F6 -> 647.4032081 | G18: 660.3512723 | H18: 673.5582977 | I18: 687.0294637 | J18: 700.7700529 | K18: 901.4033142 | L18: 919.4313805 | M18: 937.8200081 | N18: 956.5764083 | O18: 975.7079365
B19: Opex | F19: =F11 -> -102 | G19: -104.04 | H19: -106.1208 | I19: -108.243216 | J19: -110.4080803 | K19: -130.1807194 | L19: -132.7843338 | M19: -135.4400204 | N19: -138.1488208 | O19: -140.9117973
B20: Tax | F20: =F10 -> -51.49289827 | G20: -48.75152957 | H20: -45.24180016 | I20: -40.71292343 | J20: -34.78423631 | K20: -72.11888154 | L20: -69.62502223 | M20: -64.1088503 | N20: -52.35120152 | O20: -21.33651666
B21: Capex | F21: =-F32 -> -204 | G21: -208.08 | H21: -212.2416 | I21: -216.486432 | J21: -220.8161606 | K21: -130.1807194 | L21: -132.7843338 | M21: -135.4400204 | N21: -138.1488208 | O21: 0
B22: Opening RAB | E22: =-'Inputs - forecast'!E$12 -> -3000
B23: Closing RAB | J23: =-(K31-J34) -> -358.133585 | O23: =O34 -> 0 | Q23: RAB washed up for inflation at reset
B24: Sum | E24: =SUM(E18:E23) -> -3000 | F24: =SUM(F18:F23) -> 289.9103098 | G24: 299.4797427 | H24: 309.9540975 | I24: 321.5868922 | J24: =SUM(J18:J23) -> -23.37200933 | K24: 568.922994 | L24: 584.2376908 | M24: 602.831117 | N24: 627.9275651 | O24: 813.4596225
B25: Present value | E25: =E24/'Inputs - forecast'!E42 -> -3000 | F25: =F24/'Inputs - forecast'!F42 -> 273.0366452 | G25: =G24/'Inputs - forecast'!G42 -> 265.6329891 | H25: =H24/'Inputs - forecast'!H42 -> 258.9221586 | I25: =I24/'Inputs - forecast'!I42 -> 253.0040392 | J25: =J24/'Inputs - forecast'!J42 -> -17.31739033 | K25: =K24/'Inputs - forecast'!K42 -> 397.0060827 | L25: =L24/'Inputs - forecast'!L42 -> 383.9640148 | M25: =M24/'Inputs - forecast'!M42 -> 373.1246092 | N25: =N24/'Inputs - forecast'!N42 -> 366.0370607 | O25: =O24/'Inputs - forecast'!O42 -> 446.5897909
B26: Sum of present values | O26: =SUM(E25:O25) -> -9.606537787e-12
A28: Regulatory Asset Base
B29: Useful lives | F29: ='Inputs - forecast'!D15 -> 10 | G29: =F29-1 -> 9 | H29: =G29-1 -> 8 | I29: 7 | J29: 6 | K29: 5 | L29: 4 | M29: 3 | N29: 2 | O29: 1
B31: Opening RAB | F31: =E34 -> 3000 | G31: =F34 -> 2904 | H31: 2789.413333 | I31: 2652.978267 | J31: 2490.467803 | K31: =J36 -> 2654.339582 | L31: 2253.652385 | M31: 1823.023622 | N31: 1350.789102 | O31: 813.5433719 | Q31: RAB not indexed, washed up for inflation at reset
B32: Capex | F32: ='Inputs - forecast'!F$11 -> 204 | G32: ='Inputs - forecast'!G$11 -> 208.08 | H32: ='Inputs - forecast'!H$11 -> 212.2416 | I32: ='Inputs - forecast'!I$11 -> 216.486432 | J32: ='Inputs - forecast'!J$11 -> 220.8161606 | K32: ='Inputs - forecast'!K$11 -> 130.1807194 | L32: ='Inputs - forecast'!L$11 -> 132.7843338 | M32: ='Inputs - forecast'!M$11 -> 135.4400204 | N32: ='Inputs - forecast'!N$11 -> 138.1488208 | O32: ='Inputs - forecast'!O$11 -> 0
B33: Depreciation | F33: =-F31/F29 -> -300 | G33: -322.6666667 | H33: -348.6766667 | I33: -378.9968952 | J33: -415.0779672 | K33: -530.8679164 | L33: -563.4130962 | M33: -607.6745408 | N33: -675.394551 | O33: -813.5433719
B34: Closing RAB | E34: =-E22 -> 3000 | F34: =SUM(F31:F33) -> 2904 | G34: =SUM(G31:G33) -> 2789.413333 | H34: 2652.978267 | I34: 2490.467803 | J34: 2296.205997 | K34: 2253.652385 | L34: 1823.023622 | M34: 1350.789102 | N34: 813.5433719 | O34: 0
B36: RAB inflation wash-up for actual inflation | J36: =J34/'Inputs - forecast'!J18*'Inputs - actual'!J14 -> 2654.339582
A38: Tax asset base | F38: =F29 -> 10 | G38: 9 | H38: 8 | I38: 7 | J38: 6 | K38: 5 | L38: 4 | M38: 3 | N38: 2 | O38: 1
B39: Opening balance | F39: =E42 -> 3000 | G39: =F42 -> 2904 | H39: =G42 -> 2789.413333 | I39: 2652.978267 | J39: 2490.467803 | K39: 2296.205997 | L39: 1967.145517 | M39: 1608.143471 | N39: 1207.535668 | O39: 741.9166549
B40: Capex | F40: =-F21 -> 204 | G40: 208.08 | H40: 212.2416 | I40: 216.486432 | J40: 220.8161606 | K40: 130.1807194 | L40: 132.7843338 | M40: 135.4400204 | N40: 138.1488208 | O40: 0
B41: Depreciation | F41: =-F39/F38 -> -300 | G41: =-G39/G38 -> -322.6666667 | H41: -348.6766667 | I41: -378.9968952 | J41: -415.0779672 | K41: -459.2411994 | L41: -491.7863792 | M41: -536.0478238 | N41: -603.767834 | O41: -741.9166549
B42: Closing balance | E42: =E34 -> 3000 | F42: =SUM(F39:F41) -> 2904 | G42: =SUM(G39:G41) -> 2789.413333 | H42: =SUM(H39:H41) -> 2652.978267 | I42: 2490.467803 | J42: 2296.205997 | K42: 1967.145517 | L42: 1608.143471 | M42: 1207.535668 | N42: 741.9166549 | O42: 0
A44: Regulatory tax
B45: Revenue | F45: =F6 -> 647.4032081 | G45: 660.3512723 | H45: 673.5582977 | I45: 687.0294637 | J45: 700.7700529 | K45: 901.4033142 | L45: 919.4313805 | M45: 937.8200081 | N45: 956.5764083 | O45: 975.7079365
B46: Depreciation | F46: =F41 -> -300 | G46: -322.6666667 | H46: -348.6766667 | I46: -378.9968952 | J46: -415.0779672 | K46: -459.2411994 | L46: -491.7863792 | M46: -536.0478238 | N46: -603.767834 | O46: -741.9166549
B47: Opex | F47: =F11 -> -102 | G47: -104.04 | H47: -106.1208 | I47: -108.243216 | J47: -110.4080803 | K47: -130.1807194 | L47: -132.7843338 | M47: -135.4400204 | N47: -138.1488208 | O47: -140.9117973
B48: Notional interest | F48: =-'Inputs - forecast'!F$32*'Inputs - forecast'!F34*F31 -> -61.5 | G48: =-'Inputs - forecast'!G$32*'Inputs - forecast'!G34*G31 -> -59.532 | H48: =-'Inputs - forecast'!H$32*'Inputs - forecast'!H34*H31 -> -57.18297333 | I48: =-'Inputs - forecast'!I$32*'Inputs - forecast'!I34*I31 -> -54.38605447 | J48: =-'Inputs - forecast'!J$32*'Inputs - forecast'!J34*J31 -> -51.05458997 | K48: =-'Inputs - forecast'!K$32*'Inputs - forecast'!K34*K31 -> -54.41396143 | L48: =-'Inputs - forecast'!L$32*'Inputs - forecast'!L34*L31 -> -46.19987389 | M48: =-'Inputs - forecast'!M$32*'Inputs - forecast'!M34*M31 -> -37.37198426 | N48: =-'Inputs - forecast'!N$32*'Inputs - forecast'!N34*N31 -> -27.69117659 | O48: =-'Inputs - forecast'!O$32*'Inputs - forecast'!O34*O31 -> -16.67763912
B49: EBT | F49: =SUM(F45:F48) -> 183.9032081 | G49: =SUM(G45:G48) -> 174.1126056 | H49: 161.5778577 | I49: 145.403298 | J49: 124.2294154 | K49: 257.5674341 | L49: 248.6607937 | M49: 228.9601796 | N49: 186.9685768 | O49: 76.20184522
B50: Calculated tax | F50: =-F49*'Inputs - forecast'!E35 -> -51.49289827 | G50: =-G49*'Inputs - forecast'!F35 -> -48.75152957 | H50: =-H49*'Inputs - forecast'!G35 -> -45.24180016 | I50: =-I49*'Inputs - forecast'!H35 -> -40.71292343 | J50: =-J49*'Inputs - forecast'!I35 -> -34.78423631 | K50: =-K49*'Inputs - forecast'!J35 -> -72.11888154 | L50: =-L49*'Inputs - forecast'!K35 -> -69.62502223 | M50: =-M49*'Inputs - forecast'!L35 -> -64.1088503 | N50: =-N49*'Inputs - forecast'!M35 -> -52.35120152 | O50: =-O49*'Inputs - forecast'!N35 -> -21.33651666
B51: Deferred tax | F51: =IF(F50>0,F50,0) -> 0 | G51: =IF(G50>0,G50,0) -> 0 | H51: =IF(H50>0,H50,0) -> 0 | I51: =IF(I50>0,I50,0) -> 0 | J51: =IF(J50>0,J50+I51,0) -> 0 | K51: 0 | L51: 0 | M51: 0 | N51: 0 | O51: 0
B52: Tax | F52: =IF(F51>0,0,F50+E51) -> -51.49289827 | G52: -48.75152957 | H52: -45.24180016 | I52: -40.71292343 | J52: -34.78423631 | K52: -72.11888154 | L52: -69.62502223 | M52: -64.1088503 | N52: -52.35120152 | O52: -21.33651666
A54: Reg Period 1
A55: Calculation of revenue | K55: Sum
B56: Present value of revenue | F56: =F6/'Inputs - forecast'!F$42 -> 609.7223659 | G56: =G6/'Inputs - forecast'!G$42 -> 585.7193569 | H56: =H6/'Inputs - forecast'!H$42 -> 562.6612772 | I56: =I6/'Inputs - forecast'!I$42 -> 540.5109274 | J56: =J6/'Inputs - forecast'!J$42 -> 519.2325729 | K56: =SUM(F56:J56) -> 2817.8465
B57: Present value of cost | F57: =SUM(F7:F12)/'Inputs - forecast'!F$42 -> -601.7073821 | G57: =SUM(G7:G12)/'Inputs - forecast'!G$42 -> -580.9067053 | H57: =SUM(H7:H12)/'Inputs - forecast'!H$42 -> -561.7145786 | I57: =SUM(I7:I12)/'Inputs - forecast'!I$42 -> -544.3483337 | J57: =SUM(J7:J12)/'Inputs - forecast'!J$42 -> -529.1695006 | K57: =SUM(F57:J57) -> -2817.8465
B58: Difference | K58: =SUM(K56:K57) -> 0
B59: Revenue | K59: 647.4032081
A61: Reg Period 2
A62: Calculation of revenue | P62: Sum
B63: Present value of revenue | K63: =K6/'Inputs - forecast'!K$42 -> 629.0176395 | L63: =L6/'Inputs - forecast'!L$42 -> 604.2550313 | M63: =M6/'Inputs - forecast'!M$42 -> 580.4672556 | N63: =N6/'Inputs - forecast'!N$42 -> 557.6159359 | O63: =O6/'Inputs - forecast'!O$42 -> 535.6642066 | P63: =SUM(K63:O63) -> 2907.020069
B64: Present value of cost | K64: =SUM(K7:K12)/'Inputs - forecast'!K$42 -> -626.088461 | L64: =SUM(L7:L12)/'Inputs - forecast'!L$42 -> -594.8351714 | M64: =SUM(M7:M12)/'Inputs - forecast'!M$42 -> -569.3671011 | N64: =SUM(N7:N12)/'Inputs - forecast'!N$42 -> -553.4170598 | O64: =SUM(O7:O12)/'Inputs - forecast'!O$42 -> -563.3122756 | P64: =SUM(K64:O64) -> -2907.020069
B65: Difference | P65: =SUM(P63:P64) -> -7.730704965e-12
B66: Revenue | P66: 901.4033142
A68: Actual
A69: Actual return (cashflows) with fixed cost of debt
B70: Revenue | F70: =F$6/'Inputs - forecast'!F$18*'Inputs - actual'!F$14+F92 -> 628.4591848 | G70: =G$6/'Inputs - forecast'!G$18*'Inputs - actual'!G$14+G92 -> 662.9209676 | H70: =H$6/'Inputs - forecast'!H$18*'Inputs - actual'!H$14+H92 -> 699.2113542 | I70: =I$6/'Inputs - forecast'!I$18*'Inputs - actual'!I$14+I92 -> 737.4605515 | J70: =J$6/'Inputs - forecast'!J$18*'Inputs - actual'!J$14+J92 -> 777.8188485 | K70: =K$6/'Inputs - forecast'!K$21*'Inputs - actual'!K$14+K92 -> 897.8093636 | L70: =L$6/'Inputs - forecast'!L$21*'Inputs - actual'!L$14+L92 -> 948.5294875 | M70: =M$6/'Inputs - forecast'!M$21*'Inputs - actual'!M$14+M92 -> 1001.908759 | N70: =N$6/'Inputs - forecast'!N$21*'Inputs - actual'!N$14+N92 -> 1058.228605 | O70: =O$6/'Inputs - forecast'!O$21*'Inputs - actual'!O$14+O92 -> 1117.94784 | Q70: Revenue wash-up with adjustment for the overcompensation for inflation on fixed cost of debt.
B71: Opex | F71: =F$11/'Inputs - forecast'!F$18*'Inputs - actual'!F$14 -> -105 | G71: =G$11/'Inputs - forecast'!G$18*'Inputs - actual'!G$14 -> -110.25 | H71: =H$11/'Inputs - forecast'!H$18*'Inputs - actual'!H$14 -> -115.7625 | I71: =I$11/'Inputs - forecast'!I$18*'Inputs - actual'!I$14 -> -121.550625 | J71: =J$11/'Inputs - forecast'!J$18*'Inputs - actual'!J$14 -> -127.6281563 | K71: =K$11/'Inputs - forecast'!K$21*'Inputs - actual'!K$14 -> -134.0095641 | L71: =L$11/'Inputs - forecast'!L$21*'Inputs - actual'!L$14 -> -140.7100423 | M71: =M$11/'Inputs - forecast'!M$21*'Inputs - actual'!M$14 -> -147.7455444 | N71: =N$11/'Inputs - forecast'!N$21*'Inputs - actual'!N$14 -> -155.1328216 | O71: =O$11/'Inputs - forecast'!O$21*'Inputs - actual'!O$14 -> -162.8894627
B72: Capex | F72: =-F96-F92 -> -172.0147059 | G72: =-G96-G92 -> -183.6542647 | H72: -195.9813162 | I72: -209.0690116 | J72: -223.0077316 | K72: =-K96-K92 -> -103.9037513 | L72: =-L96-L92 -> -114.9285945 | M72: -126.6278211 | N72: -139.1836201 | O72: 9.938856043
B73: Tax | E73: =E116 -> 6.355890755 | F73: =F108 -> -45.34857175 | G73: =G108 -> -47.51113759 | H73: -49.00170917 | I73: -49.514998 | J73: -48.57747882 | K73: -67.06506359 | L73: -71.97027367 | M73: -73.92781353 | N73: -69.28761974 | O73: -43.12464616
B74: Nominal IRR | D74: =IRR(E74:O74,0.05) -> 0.09302941176 | E74: =-E34+SUM(E70:E73) -> -2993.644109 | F74: =SUM(F70:F73) -> 306.0959072 | G74: 321.5055653 | H74: 338.4658288 | I74: 357.3259169 | J74: 378.6054818 | K74: 592.8309847 | L74: 620.9205771 | M74: 653.6075797 | N74: 694.6245432 | O74: 921.8725876
B76: Real IRR | D76: =IRR(E76:O76,0.05) -> 0.04098039216 | E76: =E74 -> -2993.644109 | F76: =F74/'Inputs - actual'!F$14 -> 291.5199116 | G76: =G74/'Inputs - actual'!G$14 -> 291.6150252 | H76: =H74/'Inputs - actual'!H$14 -> 292.3795088 | I76: =I74/'Inputs - actual'!I$14 -> 293.9729162 | J76: =J74/'Inputs - actual'!J$14 -> 296.6473018 | K76: =K74/'Inputs - actual'!K$14 -> 442.3796084 | L76: =L74/'Inputs - actual'!L$14 -> 441.2766616 | M76: =M74/'Inputs - actual'!M$14 -> 442.3873373 | N76: =N74/'Inputs - actual'!N$14 -> 447.761174 | O76: =O74/'Inputs - actual'!O$14 -> 565.9497996
B77: check to inputs | D77: =D76-'Inputs - actual'!P28 -> -1.749711487e-13
A79: Actual return (building blocks) with fixed cost of debt
B80: Revenue | F80: =F70 -> 628.4591848 | G80: =G70 -> 662.9209676 | H80: 699.2113542 | I80: 737.4605515 | J80: 777.8188485 | K80: 897.8093636 | L80: 948.5294875 | M80: 1001.908759 | N80: 1058.228605 | O80: 1117.94784
B81: Opex | F81: =F71 -> -105 | G81: -110.25 | H81: -115.7625 | I81: -121.550625 | J81: -127.6281563 | K81: -134.0095641 | L81: -140.7100423 | M81: -147.7455444 | N81: -155.1328216 | O81: -162.8894627
B82: Return on debt | F82: =-'Inputs - forecast'!F$32*'Inputs - forecast'!F$34*F95 -> -61.5 | G82: =-'Inputs - forecast'!G$32*'Inputs - forecast'!G$34*G95 -> -59.655 | H82: =-'Inputs - forecast'!H$32*'Inputs - forecast'!H$34*H95 -> -57.54691667 | I82: =-'Inputs - forecast'!I$32*'Inputs - forecast'!I$34*I95 -> -55.09981458 | J82: =-'Inputs - forecast'!J$32*'Inputs - forecast'!J$34*J95 -> -52.21198813 | K82: =-'Inputs - forecast'!K$32*'Inputs - forecast'!K$34*K95 -> -48.74274451 | L82: =-'Inputs - forecast'!L$32*'Inputs - forecast'!L$34*L95 -> -41.74139167 | M82: =-'Inputs - forecast'!M$32*'Inputs - forecast'!M$34*M95 -> -34.19059962 | N82: =-'Inputs - forecast'!N$32*'Inputs - forecast'!N$34*N95 -> -25.82251674 | O82: =-'Inputs - forecast'!O$32*'Inputs - forecast'!O$34*O95 -> -16.09148121 | Q82: Assumes fixed cost of debt
B83: Return on equity | F83: =-F95*'Inputs - actual'!F$21*(1-'Inputs - actual'!F$24) -> -179.6029412 | G83: =-G95*'Inputs - actual'!G$21*(1-'Inputs - actual'!G$24) -> -174.2148529 | H83: =-H95*'Inputs - actual'!H$21*(1-'Inputs - actual'!H$24) -> -168.0584632 | I83: =-I95*'Inputs - actual'!I$21*(1-'Inputs - actual'!I$24) -> -160.9120123 | J83: =-J95*'Inputs - actual'!J$21*(1-'Inputs - actual'!J$24) -> -152.4784818 | K83: =-K95*'Inputs - actual'!K$21*(1-'Inputs - actual'!K$24) -> -142.3469963 | L83: =-L95*'Inputs - actual'!L$21*(1-'Inputs - actual'!L$24) -> -121.9004344 | M83: =-M95*'Inputs - actual'!M$21*(1-'Inputs - actual'!M$24) -> -99.84930492 | N83: =-N95*'Inputs - actual'!N$21*(1-'Inputs - actual'!N$24) -> -75.41138138 | O83: =-O95*'Inputs - actual'!O$21*(1-'Inputs - actual'!O$24) -> -46.9931277
B84: Depreciation | F84: =F97 -> -300 | G84: =G97 -> -323.3333333 | H84: =H97 -> -350.8958333 | I84: -383.9708333 | J84: -424.4877083 | K84: -475.5389708 | L84: -509.0413618 | M84: -555.9447093 | N84: -629.8174815 | O84: -784.9503031
B85: Tax | E85: =E73 -> 6.355890755 | F85: =F108 -> -45.34857175 | G85: =G108 -> -47.51113759 | H85: -49.00170917 | I85: -49.514998 | J85: -48.57747882 | K85: -67.06506359 | L85: -71.97027367 | M85: -73.92781353 | N85: -69.28761974 | O85: -43.12464616
B86: Nominal return | F86: =SUM(F80:F85) -> -62.99232812 | G86: -52.04335629 | H86: -42.05406822 | I86: -33.58773174 | J86: -27.56496484 | K86: 30.10602431 | L86: 63.16598364 | M86: 90.25078701 | N86: 102.7567837 | O86: 63.89881957
B87: Present value | D87: =SUM(E87:O87) -> -8.878231483e-12 | E87: =E85 -> 6.355890755 | F87: =F86/'Inputs - actual'!F$32 -> -57.63095433 | G87: =G86/'Inputs - actual'!G$32 -> -43.56137703 | H87: =H86/'Inputs - actual'!H$32 -> -32.20419665 | I87: =I86/'Inputs - actual'!I$32 -> -23.53169889 | J87: =J86/'Inputs - actual'!J$32 -> -17.66843981 | K87: =K86/'Inputs - actual'!K$32 -> 17.65478032 | L87: =L86/'Inputs - actual'!L$32 -> 33.88912263 | M87: =M86/'Inputs - actual'!M$32 -> 44.29923344 | N87: =N86/'Inputs - actual'!N$32 -> 46.14491681 | O87: =O86/'Inputs - actual'!O$32 -> 26.25272276
B89: Real return | F89: =F86/'Inputs - actual'!F$14 -> -59.99269344 | G89: =G86/'Inputs - actual'!G$14 -> -47.20485831 | H89: =H86/'Inputs - actual'!H$14 -> -36.3278853 | I89: =I86/'Inputs - actual'!I$14 -> -27.63271002 | J89: =J86/'Inputs - actual'!J$14 -> -21.59787123 | K89: =K86/'Inputs - actual'!K$14 -> 22.46557887 | L89: =L86/'Inputs - actual'!L$14 -> 44.89088527 | M89: =M86/'Inputs - actual'!M$14 -> 61.0852851 | N89: =N86/'Inputs - actual'!N$14 -> 66.23793896 | O89: =O86/'Inputs - actual'!O$14 -> 39.22833222
B90: Present value | D90: =SUM(E90:O90) -> -8.895995052e-12 | E90: =E87 -> 6.355890755 | F90: =F89/'Inputs - actual'!F$36 -> -57.63095433 | G90: =G89/'Inputs - actual'!G$36 -> -43.56137703 | H90: =H89/'Inputs - actual'!H$36 -> -32.20419665 | I90: =I89/'Inputs - actual'!I$36 -> -23.53169889 | J90: =J89/'Inputs - actual'!J$36 -> -17.66843981 | K90: =K89/'Inputs - actual'!K$36 -> 17.65478032 | L90: =L89/'Inputs - actual'!L$36 -> 33.88912263 | M90: =M89/'Inputs - actual'!M$36 -> 44.29923344 | N90: =N89/'Inputs - actual'!N$36 -> 46.14491681 | O90: =O89/'Inputs - actual'!O$36 -> 26.25272276
A92: Adjustment for fixed cost of debt | F92: =-(F95*'Inputs - actual'!F24*'Inputs - actual'!F22+F82) -> -37.98529412 | G92: =-(G95*'Inputs - actual'!G24*'Inputs - actual'!G22+G82) -> -36.84573529 | H92: =-(H95*'Inputs - actual'!H24*'Inputs - actual'!H22+H82) -> -35.54368382 | I92: =-(I95*'Inputs - actual'!I24*'Inputs - actual'!I22+I82) -> -34.03223842 | J92: =-(J95*'Inputs - actual'!J24*'Inputs - actual'!J22+J82) -> -32.2485809 | K92: =-(K95*'Inputs - actual'!K24*'Inputs - actual'!K22+K82) -> -30.10581279 | L92: =-(L95*'Inputs - actual'!L24*'Inputs - actual'!L22+L82) -> -25.7814478 | M92: =-(M95*'Inputs - actual'!M24*'Inputs - actual'!M22+M82) -> -21.11772329 | N92: =-(N95*'Inputs - actual'!N24*'Inputs - actual'!N22+N82) -> -15.94920152 | O92: =-(O95*'Inputs - actual'!O24*'Inputs - actual'!O22+O82) -> -9.938856043
A94: Actual Asset Base
B95: Opening Asset Base | F95: =F31 -> 3000 | G95: =F98 -> 2910 | H95: 2807.166667 | I95: 2687.795833 | J95: 2546.92625 | K95: 2377.694854 | L95: 2036.165447 | M95: 1667.834128 | N95: 1259.634963 | O95: 784.9503031
B96: Capex | F96: =F$32/'Inputs - forecast'!F$18*'Inputs - actual'!F$14 -> 210 | G96: =G$32/'Inputs - forecast'!G$18*'Inputs - actual'!G$14 -> 220.5 | H96: =H$32/'Inputs - forecast'!H$18*'Inputs - actual'!H$14 -> 231.525 | I96: =I$32/'Inputs - forecast'!I$18*'Inputs - actual'!I$14 -> 243.10125 | J96: =J$32/'Inputs - forecast'!J$18*'Inputs - actual'!J$14 -> 255.2563125 | K96: =K$32/'Inputs - forecast'!K$21*'Inputs - actual'!K$14 -> 134.0095641 | L96: =L$32/'Inputs - forecast'!L$21*'Inputs - actual'!L$14 -> 140.7100423 | M96: =M$32/'Inputs - forecast'!M$21*'Inputs - actual'!M$14 -> 147.7455444 | N96: =N$32/'Inputs - forecast'!N$21*'Inputs - actual'!N$14 -> 155.1328216 | O96: =O$32/'Inputs - forecast'!O$21*'Inputs - actual'!O$14 -> 0
B97: Depreciation | F97: =-F95/F29 -> -300 | G97: -323.3333333 | H97: -350.8958333 | I97: -383.9708333 | J97: -424.4877083 | K97: -475.5389708 | L97: -509.0413618 | M97: -555.9447093 | N97: -629.8174815 | O97: -784.9503031
B98: Closing Asset Base | F98: =SUM(F95:F97) -> 2910 | G98: =SUM(G95:G97) -> 2807.166667 | H98: 2687.795833 | I98: 2546.92625 | J98: 2377.694854 | K98: 2036.165447 | L98: 1667.834128 | M98: 1259.634963 | N98: 784.9503031 | O98: 0
A100: Actual tax
B101: Revenue | F101: =F80 -> 628.4591848 | G101: =G80 -> 662.9209676 | H101: 699.2113542 | I101: 737.4605515 | J101: 777.8188485 | K101: 897.8093636 | L101: 948.5294875 | M101: 1001.908759 | N101: 1058.228605 | O101: 1117.94784
B102: Depreciation | F102: =F97 -> -300 | G102: =G97 -> -323.3333333 | H102: -350.8958333 | I102: -383.9708333 | J102: -424.4877083 | K102: -475.5389708 | L102: -509.0413618 | M102: -555.9447093 | N102: -629.8174815 | O102: -784.9503031
B103: Opex | F103: =F81 -> -105 | G103: -110.25 | H103: -115.7625 | I103: -121.550625 | J103: -127.6281563 | K103: -134.0095641 | L103: -140.7100423 | M103: -147.7455444 | N103: -155.1328216 | O103: -162.8894627
B104: Interest | F104: -61.5 | G104: -59.655 | H104: -57.54691667 | I104: -55.09981458 | J104: -52.21198813 | K104: -48.74274451 | L104: -41.74139167 | M104: -34.19059962 | N104: -25.82251674 | O104: -16.09148121
B105: EBT | F105: =SUM(F101:F104) -> 161.9591848 | G105: =SUM(G101:G104) -> 169.6826342 | H105: 175.0061042 | I105: 176.8392786 | J105: 173.4909958 | K105: 239.5180842 | L105: 257.0366917 | M105: 264.0279054 | N105: 247.4557848 | O105: 154.0165934
B106: Calculated tax | F106: =-F105*'Inputs - forecast'!F35 -> -45.34857175 | G106: =-G105*'Inputs - forecast'!G35 -> -47.51113759 | H106: =-H105*'Inputs - forecast'!H35 -> -49.00170917 | I106: =-I105*'Inputs - forecast'!I35 -> -49.514998 | J106: =-J105*'Inputs - forecast'!J35 -> -48.57747882 | K106: =-K105*'Inputs - forecast'!K35 -> -67.06506359 | L106: =-L105*'Inputs - forecast'!L35 -> -71.97027367 | M106: =-M105*'Inputs - forecast'!M35 -> -73.92781353 | N106: =-N105*'Inputs - forecast'!N35 -> -69.28761974 | O106: =-O105*'Inputs - forecast'!O35 -> -43.12464616
B107: Deferred tax | F107: =IF(F106>0,F106+E107,0) -> 0 | G107: 0 | H107: 0 | I107: 0 | J107: 0 | K107: 0 | L107: 0 | M107: 0 | N107: 0 | O107: 0
B108: Tax | F108: =IF(F107>0,0,F106+E107) -> -45.34857175 | G108: -47.51113759 | H108: -49.00170917 | I108: -49.514998 | J108: -48.57747882 | K108: -67.06506359 | L108: -71.97027367 | M108: -73.92781353 | N108: -69.28761974 | O108: -43.12464616
A110: Tax adjustment | E110: NPV
B111: Tax | F111: =F108 -> -45.34857175 | G111: -47.51113759 | H111: -49.00170917 | I111: -49.514998 | J111: -48.57747882 | K111: -67.06506359 | L111: -71.97027367 | M111: -73.92781353 | N111: -69.28761974 | O111: -43.12464616
B112: NPV of actual tax | E112: =SUM(F112:O112) -> -347.669408 | F112: =F111/'Inputs - actual'!F$32 -> -41.48888516 | G112: =G111/'Inputs - actual'!G32 -> -39.76781525 | H112: =H111/'Inputs - actual'!H32 -> -37.52456647 | I112: =I111/'Inputs - actual'!I32 -> -34.6904052 | J112: =J111/'Inputs - actual'!J32 -> -31.13692564 | K112: =K111/'Inputs - actual'!K32 -> -39.32830695 | L112: =L111/'Inputs - actual'!L32 -> -38.61270401 | M112: =M111/'Inputs - actual'!M32 -> -36.28716799 | N112: =N111/'Inputs - actual'!N32 -> -31.11494283 | O112: =O111/'Inputs - actual'!O32 -> -17.71768848
B114: Forecast tax adjusted for inflation | F114: =F$10/'Inputs - forecast'!F$18*'Inputs - actual'!F$14 -> -53.00739528 | G114: =G$10/'Inputs - forecast'!G$18*'Inputs - actual'!G$14 -> -51.6614392 | H114: =H$10/'Inputs - forecast'!H$18*'Inputs - actual'!H$14 -> -49.35228429 | I114: =I$10/'Inputs - forecast'!I$18*'Inputs - actual'!I$14 -> -45.71816573 | J114: =J$10/'Inputs - forecast'!J$18*'Inputs - actual'!J$14 -> -40.20944784 | K114: =K$10/'Inputs - forecast'!K$21*'Inputs - actual'!K$14 -> -74.24002512 | L114: =L$10/'Inputs - forecast'!L$21*'Inputs - actual'!L$14 -> -73.78084103 | M114: =M$10/'Inputs - forecast'!M$21*'Inputs - actual'!M$14 -> -69.93351711 | N114: =N$10/'Inputs - forecast'!N$21*'Inputs - actual'!N$14 -> -58.78725244 | O114: =O$10/'Inputs - forecast'!O$21*'Inputs - actual'!O$14 -> -24.66432053
B115: NPV of forecast tax adjusted for inflation | E115: =SUM(F115:O115) -> -341.3135172 | F115: =F114/'Inputs - actual'!F$32 -> -48.49585446 | G115: =G114/'Inputs - actual'!G$32 -> -43.24170445 | H115: =H114/'Inputs - actual'!H$32 -> -37.79303016 | I115: =I114/'Inputs - actual'!I$32 -> -32.03032936 | J115: =J114/'Inputs - actual'!J$32 -> -25.77323109 | K115: =K114/'Inputs - actual'!K$32 -> -43.53584921 | L115: =L114/'Inputs - actual'!L$32 -> -39.58408981 | M115: =M114/'Inputs - actual'!M$32 -> -34.32658377 | N115: =N114/'Inputs - actual'!N$32 -> -26.39955024 | O115: =O114/'Inputs - actual'!O$32 -> -10.13329469
B116: Difference | E116: =E115-E112 -> 6.355890755
A118: Real revenue | F118: =F80/'Inputs - actual'!F$14 -> 598.532557 | G118: =G80/'Inputs - actual'!G$14 -> 601.2888595 | H118: =H80/'Inputs - actual'!H$14 -> 604.0050571 | I118: =I80/'Inputs - actual'!I$14 -> 606.7106208 | J118: =J80/'Inputs - actual'!J$14 -> 609.4414206 | K118: =K80/'Inputs - actual'!K$14 -> 669.9591704 | L118: =L80/'Inputs - actual'!L$14 -> 674.1021978 | M118: =M80/'Inputs - actual'!M$14 -> 678.1312851 | N118: =N80/'Inputs - actual'!N$14 -> 682.1435939 | O118: =O80/'Inputs - actual'!O$14 -> 686.322996

Sheet EDB & GDB current
A1: Calculation
A2: This model washes-up revenue, except for the first year of a regulatory period, and the RAB is indexed (similar to the GDBs and EDBs, except that it has no revenue wash-up lag/ lagged in CPI index used). No adjustment is made to revenue wash-up for the overcompensation for inflation on fixed cost of debt.
A4: Forecast | D4: Return over forecast period | E4: ='Inputs - forecast'!E2 -> 2020-06-30 | F4: ='Inputs - forecast'!F2 -> 2021-06-30 | G4: ='Inputs - forecast'!G2 -> 2022-06-30 | H4: ='Inputs - forecast'!H2 -> 2023-06-30 | I4: ='Inputs - forecast'!I2 -> 2024-06-30 | J4: ='Inputs - forecast'!J2 -> 2025-06-30 | K4: ='Inputs - forecast'!K2 -> 2026-06-30 | L4: ='Inputs - forecast'!L2 -> 2027-06-30 | M4: ='Inputs - forecast'!M2 -> 2028-06-30 | N4: ='Inputs - forecast'!N2 -> 2029-06-30 | O4: ='Inputs - forecast'!O2 -> 2030-06-30
A5: Building blocks
B6: Revenue | F6: =K59 -> 602.9905313 | G6: =F6*(1+'Inputs - forecast'!G19) -> 615.0503419 | H6: =G6*(1+'Inputs - forecast'!H19) -> 627.3513488 | I6: =H6*(1+'Inputs - forecast'!I19) -> 639.8983757 | J6: =I6*(1+'Inputs - forecast'!J19) -> 652.6963432 | K6: =P66 -> 967.2780561 | L6: =K6*(1+'Inputs - forecast'!L19) -> 986.6236172 | M6: =L6*(1+'Inputs - forecast'!M19) -> 1006.35609 | N6: =M6*(1+'Inputs - forecast'!N19) -> 1026.483211 | O6: =N6*(1+'Inputs - forecast'!O19) -> 1047.012876
B7: Return on debt | F7: =-F$31*'Inputs - forecast'!F$34*'Inputs - forecast'!F$32 -> -62.73 | G7: =-G$31*'Inputs - forecast'!G$34*'Inputs - forecast'!G$32 -> -61.85178 | H7: =-H$31*'Inputs - forecast'!H$34*'Inputs - forecast'!H$32 -> -60.4299 | I7: =-I$31*'Inputs - forecast'!I$34*'Inputs - forecast'!I$32 -> -58.37165761 | J7: =-J$31*'Inputs - forecast'!J$34*'Inputs - forecast'!J$32 -> -55.56023766 | K7: =-K$31*'Inputs - forecast'!K$34*'Inputs - forecast'!K$32 -> -59.92936573 | L7: =-L$31*'Inputs - forecast'!L$34*'Inputs - forecast'!L$32 -> -51.62444128 | M7: =-M$31*'Inputs - forecast'!M$34*'Inputs - forecast'!M$32 -> -42.269218 | N7: =-N$31*'Inputs - forecast'!N$34*'Inputs - forecast'!N$32 -> -31.57511907 | O7: =-O$31*'Inputs - forecast'!O$34*'Inputs - forecast'!O$32 -> -18.99200257
B8: Return on equity | F8: =-F$31*(1-'Inputs - forecast'!F$34)*'Inputs - forecast'!F$31 -> -126.378 | G8: =-G$31*(1-'Inputs - forecast'!G$34)*'Inputs - forecast'!G$31 -> -124.608708 | H8: =-H$31*(1-'Inputs - forecast'!H$34)*'Inputs - forecast'!H$31 -> -121.74414 | I8: =-I$31*(1-'Inputs - forecast'!I$34)*'Inputs - forecast'!I$31 -> -117.5975346 | J8: =-J$31*(1-'Inputs - forecast'!J$34)*'Inputs - forecast'!J$31 -> -111.933552 | K8: =-K$31*(1-'Inputs - forecast'!K$34)*'Inputs - forecast'!K$31 -> -120.7357466 | L8: =-L$31*(1-'Inputs - forecast'!L$34)*'Inputs - forecast'!L$31 -> -104.0043622 | M8: =-M$31*(1-'Inputs - forecast'!M$34)*'Inputs - forecast'!M$31 -> -85.15700992 | N8: =-N$31*(1-'Inputs - forecast'!N$34)*'Inputs - forecast'!N$31 -> -63.61231304 | O8: =-O$31*(1-'Inputs - forecast'!O$34)*'Inputs - forecast'!O$31 -> -38.26193688
B9: Revaluation | F9: =('Inputs - forecast'!F37-'Inputs - forecast'!F38)*F31 -> 63.708 | G9: =('Inputs - forecast'!G37-'Inputs - forecast'!G38)*G31 -> 62.816088 | H9: =('Inputs - forecast'!H37-'Inputs - forecast'!H38)*H31 -> 61.37204 | I9: =('Inputs - forecast'!I37-'Inputs - forecast'!I38)*I31 -> 59.28170832 | J9: =('Inputs - forecast'!J37-'Inputs - forecast'!J38)*J31 -> 56.42645657 | K9: =('Inputs - forecast'!K37-'Inputs - forecast'!K38)*K31 -> 60.86370209 | L9: =('Inputs - forecast'!L37-'Inputs - forecast'!L38)*L31 -> 52.42929866 | M9: =('Inputs - forecast'!M37-'Inputs - forecast'!M38)*M31 -> 42.92822159 | N9: =('Inputs - forecast'!N37-'Inputs - forecast'!N38)*N31 -> 32.06739495 | O9: =('Inputs - forecast'!O37-'Inputs - forecast'!O38)*O31 -> 19.28809979 | Q9: RAB indexation is performed on opening RAB. The corresponding revenue offsets are therefore adjusted to year-end values for building blocks.
B10: Tax | F10: =F50 -> -38.71294876 | G10: =G50 -> -35.41773067 | H10: -31.39471499 | I10: -26.40024993 | J10: -20.06201625 | K10: -89.01949605 | L10: -86.91996963 | M10: -81.92772765 | N10: -70.83760247 | O10: -40.65387784
B11: Opex | F11: =-'Inputs - forecast'!F10 -> -102 | G11: =-'Inputs - forecast'!G10 -> -104.04 | H11: =-'Inputs - forecast'!H10 -> -106.1208 | I11: =-'Inputs - forecast'!I10 -> -108.243216 | J11: =-'Inputs - forecast'!J10 -> -110.4080803 | K11: =-'Inputs - forecast'!K10 -> -130.1807194 | L11: =-'Inputs - forecast'!L10 -> -132.7843338 | M11: =-'Inputs - forecast'!M10 -> -135.4400204 | N11: =-'Inputs - forecast'!N10 -> -138.1488208 | O11: =-'Inputs - forecast'!O10 -> -140.9117973
B12: Depreciation | F12: =F33 -> -306 | G12: =G33 -> -335.24 | H12: -368.475 | I12: -406.7711331 | J12: -451.7092492 | K12: -584.6767388 | L12: -629.5663571 | M12: -687.3043577 | N12: -770.1248553 | O12: -926.4391496
B13: Net revenue | F13: =SUM(F6:F12) -> 30.87758253 | G13: 16.70821125 | H13: 0.5588337734 | I13: -18.20370722 | J13: -40.55033562 | K13: 43.5996916 | L13: 34.15345195 | M13: 17.18597745 | N13: -15.7481044 | O13: -98.95778883
B14: Present value | F14: =F13/'Inputs - forecast'!F$42 -> 29.08041301 | G14: =G13/'Inputs - forecast'!G$42 -> 14.81987415 | H14: =H13/'Inputs - forecast'!H$42 -> 0.4668254043 | I14: =I13/'Inputs - forecast'!I$42 -> -14.32151486 | J14: =J13/'Inputs - forecast'!J$42 -> -30.04559771 | K14: =K13/'Inputs - forecast'!K$42 -> 30.42475511 | L14: =L13/'Inputs - forecast'!L$42 -> 22.44582425 | M14: =M13/'Inputs - forecast'!M$42 -> 10.63732601 | N14: =N13/'Inputs - forecast'!N$42 -> -9.180023569 | O14: =O13/'Inputs - forecast'!O$42 -> -54.3278818
B15: Sum of present values | O15: =SUM(F14:O14) -> 1.222133506e-12
A17: Regulatory cashflows
B18: Revenue | F18: =F6 -> 602.9905313 | G18: =G6 -> 615.0503419 | H18: 627.3513488 | I18: 639.8983757 | J18: 652.6963432 | K18: 967.2780561 | L18: 986.6236172 | M18: 1006.35609 | N18: 1026.483211 | O18: 1047.012876
B19: Opex | F19: =-'Inputs - forecast'!F$10 -> -102 | G19: =-'Inputs - forecast'!G$10 -> -104.04 | H19: =-'Inputs - forecast'!H$10 -> -106.1208 | I19: =-'Inputs - forecast'!I$10 -> -108.243216 | J19: =-'Inputs - forecast'!J$10 -> -110.4080803 | K19: =-'Inputs - forecast'!K$10 -> -130.1807194 | L19: =-'Inputs - forecast'!L$10 -> -132.7843338 | M19: =-'Inputs - forecast'!M$10 -> -135.4400204 | N19: =-'Inputs - forecast'!N$10 -> -138.1488208 | O19: =-'Inputs - forecast'!O$10 -> -140.9117973
B20: Tax | F20: =F10 -> -38.71294876 | G20: =G10 -> -35.41773067 | H20: -31.39471499 | I20: -26.40024993 | J20: -20.06201625 | K20: -89.01949605 | L20: -86.91996963 | M20: -81.92772765 | N20: -70.83760247 | O20: -40.65387784
B21: Capex | F21: =-'Inputs - forecast'!F$11 -> -204 | G21: =-'Inputs - forecast'!G$11 -> -208.08 | H21: =-'Inputs - forecast'!H$11 -> -212.2416 | I21: =-'Inputs - forecast'!I$11 -> -216.486432 | J21: =-'Inputs - forecast'!J$11 -> -220.8161606 | K21: =-'Inputs - forecast'!K$11 -> -130.1807194 | L21: =-'Inputs - forecast'!L$11 -> -132.7843338 | M21: =-'Inputs - forecast'!M$11 -> -135.4400204 | N21: =-'Inputs - forecast'!N$11 -> -138.1488208 | O21: =-'Inputs - forecast'!O$11 -> 0
B22: Opening RAB | E22: =-'Inputs - forecast'!E$12 -> -3000
B23: Closing RAB | J23: =-(J36-J34) -> -386.7000384 | O23: =O34 -> 0
B24: Sum | E24: =SUM(E18:E23) -> -3000 | F24: =SUM(F18:F23) -> 258.2775825 | G24: 267.5126112 | H24: 277.5942338 | I24: 288.7684778 | J24: -85.2899524 | K24: 617.8971213 | L24: 634.13498 | M24: 653.548321 | N24: 679.3479672 | O24: 865.4472005
B25: Present value | E25: =E24/'Inputs - forecast'!E$42 -> -3000 | F25: =F24/'Inputs - forecast'!F$42 -> 243.2450391 | G25: =G24/'Inputs - forecast'!G$42 -> 237.2787351 | H25: =H24/'Inputs - forecast'!H$42 -> 231.8901373 | I25: =I24/'Inputs - forecast'!I$42 -> 227.1846056 | J25: =J24/'Inputs - forecast'!J$42 -> -63.19522538 | K25: =K24/'Inputs - forecast'!K$42 -> 431.1812288 | L25: =L24/'Inputs - forecast'!L$42 -> 416.7567699 | M25: =M24/'Inputs - forecast'!M$42 -> 404.5162153 | N25: =N24/'Inputs - forecast'!N$42 -> 396.0114939 | O25: =O24/'Inputs - forecast'!O$42 -> 475.1310004
B26: Sum of present values | O26: =SUM(E25:O25) -> 0
A28: Regulatory Asset Base
B29: Useful lives | F29: 10 | G29: =F29-1 -> 9 | H29: =G29-1 -> 8 | I29: 7 | J29: 6 | K29: 5 | L29: 4 | M29: 3 | N29: 2 | O29: 1
B31: Opening RAB | F31: =E34*(1+'Inputs - forecast'!F$19) -> 3060 | G31: =F34*(1+'Inputs - forecast'!G$19) -> 3017.16 | H31: =G34*(1+'Inputs - forecast'!H$19) -> 2947.8 | I31: =H34*(1+'Inputs - forecast'!I$19) -> 2847.397932 | J31: =I34*(1+'Inputs - forecast'!J$19) -> 2710.255495 | K31: =J36*(1+'Inputs - forecast'!K$19) -> 2923.383694 | L31: =K34*(1+'Inputs - forecast'!L$19) -> 2518.265428 | M31: =L34*(1+'Inputs - forecast'!M$19) -> 2061.913073 | N31: =M34*(1+'Inputs - forecast'!N$19) -> 1540.249711 | O31: =N34*(1+'Inputs - forecast'!O$19) -> 926.4391496 | Q31: Opening RAB balance indexed
B32: Capex | F32: =-F21 -> 204 | G32: 208.08 | H32: 212.2416 | I32: 216.486432 | J32: 220.8161606 | K32: 130.1807194 | L32: 132.7843338 | M32: 135.4400204 | N32: 138.1488208 | O32: 0
B33: Depreciation | F33: =-F31/F29 -> -306 | G33: -335.24 | H33: -368.475 | I33: -406.7711331 | J33: -451.7092492 | K33: -584.6767388 | L33: -629.5663571 | M33: -687.3043577 | N33: -770.1248553 | O33: -926.4391496
B34: Closing RAB | E34: =-E22 -> 3000 | F34: =SUM(F31:F33) -> 2958 | G34: 2890 | H34: 2791.5666 | I34: 2657.113231 | J34: 2479.362407 | K34: 2468.887675 | L34: 2021.483405 | M34: 1510.048736 | N34: 908.2736761 | O34: 0
F35: =F31-E34 -> 60 | G35: =G31-F34 -> 59.16 | H35: =H31-G34 -> 57.8 | I35: =I31-H34 -> 55.831332 | J35: =J31-I34 -> 53.14226462 | K35: =K31-J34+J23 -> 57.32124891 | L35: =L31-K34 -> 49.37775349 | M35: =M31-L34 -> 40.4296681 | N35: =N31-M34 -> 30.20097472 | O35: =O31-N34 -> 18.16547352
B36: RAB adjusted for actual inflation | J36: =J34/'Inputs - forecast'!J18*'Inputs - actual'!J14 -> 2866.062445
A38: Tax asset base | F38: =F29 -> 10 | G38: 9 | H38: 8 | I38: 7 | J38: 6 | K38: 5 | L38: 4 | M38: 3 | N38: 2 | O38: 1
B39: Opening balance | F39: =E42 -> 3000 | G39: =F42 -> 2904 | H39: =G42 -> 2789.413333 | I39: 2652.978267 | J39: 2490.467803 | K39: 2296.205997 | L39: 1967.145517 | M39: 1608.143471 | N39: 1207.535668 | O39: 741.9166549
B40: Capex | F40: =-F21 -> 204 | G40: 208.08 | H40: 212.2416 | I40: 216.486432 | J40: 220.8161606 | K40: 130.1807194 | L40: 132.7843338 | M40: 135.4400204 | N40: 138.1488208 | O40: 0
B41: Depreciation | F41: =-F39/F38 -> -300 | G41: =-G39/G38 -> -322.6666667 | H41: -348.6766667 | I41: -378.9968952 | J41: -415.0779672 | K41: -459.2411994 | L41: -491.7863792 | M41: -536.0478238 | N41: -603.767834 | O41: -741.9166549
B42: Closing balance | E42: =E34 -> 3000 | F42: =SUM(F39:F41) -> 2904 | G42: =SUM(G39:G41) -> 2789.413333 | H42: =SUM(H39:H41) -> 2652.978267 | I42: 2490.467803 | J42: 2296.205997 | K42: 1967.145517 | L42: 1608.143471 | M42: 1207.535668 | N42: 741.9166549 | O42: 0
A44: Regulatory tax
B45: Revenue | F45: =F6 -> 602.9905313 | G45: 615.0503419 | H45: 627.3513488 | I45: 639.8983757 | J45: 652.6963432 | K45: 967.2780561 | L45: 986.6236172 | M45: 1006.35609 | N45: 1026.483211 | O45: 1047.012876
B46: Depreciation | F46: =F41 -> -300 | G46: -322.6666667 | H46: -348.6766667 | I46: -378.9968952 | J46: -415.0779672 | K46: -459.2411994 | L46: -491.7863792 | M46: -536.0478238 | N46: -603.767834 | O46: -741.9166549
B47: Opex | F47: =F11 -> -102 | G47: -104.04 | H47: -106.1208 | I47: -108.243216 | J47: -110.4080803 | K47: -130.1807194 | L47: -132.7843338 | M47: -135.4400204 | N47: -138.1488208 | O47: -140.9117973
B48: Notional interest | F48: =-'Inputs - forecast'!F$32*'Inputs - forecast'!F34*F31 -> -62.73 | G48: =-'Inputs - forecast'!G$32*'Inputs - forecast'!G34*G31 -> -61.85178 | H48: =-'Inputs - forecast'!H$32*'Inputs - forecast'!H34*H31 -> -60.4299 | I48: =-'Inputs - forecast'!I$32*'Inputs - forecast'!I34*I31 -> -58.37165761 | J48: =-'Inputs - forecast'!J$32*'Inputs - forecast'!J34*J31 -> -55.56023766 | K48: =-'Inputs - forecast'!K$32*'Inputs - forecast'!K34*K31 -> -59.92936573 | L48: =-'Inputs - forecast'!L$32*'Inputs - forecast'!L34*L31 -> -51.62444128 | M48: =-'Inputs - forecast'!M$32*'Inputs - forecast'!M34*M31 -> -42.269218 | N48: =-'Inputs - forecast'!N$32*'Inputs - forecast'!N34*N31 -> -31.57511907 | O48: =-'Inputs - forecast'!O$32*'Inputs - forecast'!O34*O31 -> -18.99200257
B49: EBT | F49: =SUM(F45:F48) -> 138.2605313 | G49: =SUM(G45:G48) -> 126.4918953 | H49: 112.1239821 | I49: 94.28660689 | J49: 71.65005803 | K49: 317.9267716 | L49: 310.4284629 | M49: 292.5990273 | N49: 252.9914374 | O49: 145.1924209
B50: Calculated tax | F50: =-F49*'Inputs - forecast'!E35 -> -38.71294876 | G50: =-G49*'Inputs - forecast'!F35 -> -35.41773067 | H50: =-H49*'Inputs - forecast'!G35 -> -31.39471499 | I50: =-I49*'Inputs - forecast'!H35 -> -26.40024993 | J50: =-J49*'Inputs - forecast'!I35 -> -20.06201625 | K50: =-K49*'Inputs - forecast'!J35 -> -89.01949605 | L50: =-L49*'Inputs - forecast'!K35 -> -86.91996963 | M50: =-M49*'Inputs - forecast'!L35 -> -81.92772765 | N50: =-N49*'Inputs - forecast'!M35 -> -70.83760247 | O50: =-O49*'Inputs - forecast'!N35 -> -40.65387784
B51: Deferred tax | F51: =IF(F50>0,F50,0) -> 0 | G51: =IF(G50>0,G50,0) -> 0 | H51: =IF(H50>0,H50,0) -> 0 | I51: =IF(I50>0,I50,0) -> 0 | J51: =IF(J50>0,J50+I51,0) -> 0 | K51: 0 | L51: 0 | M51: 0 | N51: 0 | O51: 0
B52: Tax | F52: =IF(F51>0,0,F50+E51) -> -38.71294876 | G52: -35.41773067 | H52: -31.39471499 | I52: -26.40024993 | J52: -20.06201625 | K52: -89.01949605 | L52: -86.91996963 | M52: -81.92772765 | N52: -70.83760247 | O52: -40.65387784
A54: Reg Period 1
A55: Calculation of revenue | K55: Sum
B56: Present value of revenue | F56: =F6/'Inputs - forecast'!F$42 -> 567.8946424 | G56: =G6/'Inputs - forecast'!G$42 -> 545.5382701 | H56: =H6/'Inputs - forecast'!H$42 -> 524.0620037 | I56: =I6/'Inputs - forecast'!I$42 -> 503.4311959 | J56: =J6/'Inputs - forecast'!J$42 -> 483.6125634 | K56: =SUM(F56:J56) -> 2624.538676
B57: Present value of cost | F57: =SUM(F7:F12)/'Inputs - forecast'!F$42 -> -538.8142294 | G57: =SUM(G7:G12)/'Inputs - forecast'!G$42 -> -530.718396 | H57: =SUM(H7:H12)/'Inputs - forecast'!H$42 -> -523.5951783 | I57: =SUM(I7:I12)/'Inputs - forecast'!I$42 -> -517.7527107 | J57: =SUM(J7:J12)/'Inputs - forecast'!J$42 -> -513.6581611 | K57: =SUM(F57:J57) -> -2624.538676
B58: Difference | K58: =SUM(K56:K57) -> 0
B59: Revenue | K59: 602.9905313
A61: Reg Period 2
A62: Calculation of revenue | P62: Sum
B63: Present value of revenue | K63: =K6/'Inputs - forecast'!K$42 -> 674.9863795 | L63: =L6/'Inputs - forecast'!L$42 -> 648.4141148 | M63: =M6/'Inputs - forecast'!M$42 -> 622.8879234 | N63: =N6/'Inputs - forecast'!N$42 -> 598.3666245 | O63: =O6/'Inputs - forecast'!O$42 -> 574.8106583 | P63: =SUM(K63:O63) -> 3119.465701
B64: Present value of cost | K64: =SUM(K7:K12)/'Inputs - forecast'!K$42 -> -644.5616244 | L64: =SUM(L7:L12)/'Inputs - forecast'!L$42 -> -625.9682906 | M64: =SUM(M7:M12)/'Inputs - forecast'!M$42 -> -612.2505974 | N64: =SUM(N7:N12)/'Inputs - forecast'!N$42 -> -607.5466481 | O64: =SUM(O7:O12)/'Inputs - forecast'!O$42 -> -629.1385401 | P64: =SUM(K64:O64) -> -3119.465701
B65: Difference | P65: =SUM(P63:P64) -> 0
B66: Revenue | P66: 967.2780561
A68: Actual
A69: Actual return (cashflows) with fixed cost of debt
B70: Revenue | F70: =F$6 -> 602.9905313 | G70: =G$6/'Inputs - forecast'!G$18*'Inputs - actual'!G$14 -> 651.7618243 | H70: =H$6/'Inputs - forecast'!H$18*'Inputs - actual'!H$14 -> 684.3499155 | I70: =I$6/'Inputs - forecast'!I$18*'Inputs - actual'!I$14 -> 718.5674113 | J70: =J$6/'Inputs - forecast'!J$18*'Inputs - actual'!J$14 -> 754.4957818 | K70: =K$6 -> 967.2780561 | L70: =L$6/'Inputs - forecast'!L$21*'Inputs - actual'!L$14 -> 1045.513781 | M70: =M$6/'Inputs - forecast'!M$21*'Inputs - actual'!M$14 -> 1097.78947 | N70: =N$6/'Inputs - forecast'!N$21*'Inputs - actual'!N$14 -> 1152.678944 | O70: =O$6/'Inputs - forecast'!O$21*'Inputs - actual'!O$14 -> 1210.312891 | Q70: Revenue wash-up, except for year 1 of each regulatory period, with no adjustment for the overcompensation for inflation on fixed cost of debt.
B71: Opex | F71: =F$11/'Inputs - forecast'!F$18*'Inputs - actual'!F$14 -> -105 | G71: =G$11/'Inputs - forecast'!G$18*'Inputs - actual'!G$14 -> -110.25 | H71: =H$11/'Inputs - forecast'!H$18*'Inputs - actual'!H$14 -> -115.7625 | I71: =I$11/'Inputs - forecast'!I$18*'Inputs - actual'!I$14 -> -121.550625 | J71: =J$11/'Inputs - forecast'!J$18*'Inputs - actual'!J$14 -> -127.6281563 | K71: =K$11/'Inputs - forecast'!K$21*'Inputs - actual'!K$14 -> -134.0095641 | L71: =L$11/'Inputs - forecast'!L$21*'Inputs - actual'!L$14 -> -140.7100423 | M71: =M$11/'Inputs - forecast'!M$21*'Inputs - actual'!M$14 -> -147.7455444 | N71: =N$11/'Inputs - forecast'!N$21*'Inputs - actual'!N$14 -> -155.1328216 | O71: =O$11/'Inputs - forecast'!O$21*'Inputs - actual'!O$14 -> -162.8894627
B72: Capex | F72: =-F96-F92 -> -172.0147059 | G72: =-G96-G92 -> -183.6542647 | H72: -195.9813162 | I72: -209.0690116 | J72: -223.0077316 | K72: -103.9037513 | L72: -114.9285945 | M72: -126.6278211 | N72: -139.1836201 | O72: 9.938856043
B73: Tax | E73: =E116 -> 57.31872681 | F73: =F108 -> -38.21734876 | G73: =G108 -> -44.38657746 | H73: -44.84050633 | I73: -44.22491873 | J73: -42.04702015 | K73: -86.51629747 | L73: -99.12587592 | M73: -100.7744128 | N73: -95.73371471 | O73: -68.98686032
B74: Nominal IRR | D74: =IRR(E74:O74,0.05) -> 0.1026811933 | E74: =-E34+SUM(E70:E73) -> -2942.681273 | F74: =SUM(F70:F73) -> 287.7584767 | G74: 313.4709821 | H74: 327.765593 | I74: 343.7228559 | J74: 361.8128738 | K74: 642.8484433 | L74: 690.7492686 | M74: 722.641692 | N74: 762.6287874 | O74: 988.375424
B76: Real IRR | D76: =IRR(E76:O76,0.05) -> 0.05017256502 | E76: =E74 -> -2942.681273 | F76: =F74/'Inputs - actual'!F$14 -> 274.055692 | G76: =G74/'Inputs - actual'!G$14 -> 284.3274214 | H76: =H74/'Inputs - actual'!H$14 -> 283.1362427 | I76: =I74/'Inputs - actual'!I$14 -> 282.7816442 | J76: =J74/'Inputs - actual'!J$14 -> 283.489854 | K76: =K74/'Inputs - actual'!K$14 -> 479.7034061 | L76: =L74/'Inputs - actual'!L$14 -> 490.902609 | M76: =M74/'Inputs - actual'!M$14 -> 489.1123418 | N76: =N74/'Inputs - actual'!N$14 -> 491.5973161 | O76: =O74/'Inputs - actual'!O$14 -> 606.7767723
B77: check to inputs | D77: =D76-'Inputs - actual'!P28 -> 0.009192172868 | E77: Overcompensation for inflation on fixed cost of debt, despite not having a wash-up in year 1.
A79: Actual return (building blocks) with fixed cost of debt
B80: Revenue | F80: =F70 -> 602.9905313 | G80: =G70 -> 651.7618243 | H80: 684.3499155 | I80: 718.5674113 | J80: 754.4957818 | K80: 967.2780561 | L80: 1045.513781 | M80: 1097.78947 | N80: 1152.678944 | O80: 1210.312891
B81: Opex | F81: =F71 -> -105 | G81: -110.25 | H81: -115.7625 | I81: -121.550625 | J81: -127.6281563 | K81: -134.0095641 | L81: -140.7100423 | M81: -147.7455444 | N81: -155.1328216 | O81: -162.8894627
B82: Return on debt | F82: =-'Inputs - forecast'!F$32*'Inputs - forecast'!F$34*F95 -> -61.5 | G82: =-'Inputs - forecast'!G$32*'Inputs - forecast'!G$34*G95 -> -59.655 | H82: =-'Inputs - forecast'!H$32*'Inputs - forecast'!H$34*H95 -> -57.54691667 | I82: =-'Inputs - forecast'!I$32*'Inputs - forecast'!I$34*I95 -> -55.09981458 | J82: =-'Inputs - forecast'!J$32*'Inputs - forecast'!J$34*J95 -> -52.21198813 | K82: =-'Inputs - forecast'!K$32*'Inputs - forecast'!K$34*K95 -> -48.74274451 | L82: =-'Inputs - forecast'!L$32*'Inputs - forecast'!L$34*L95 -> -41.74139167 | M82: =-'Inputs - forecast'!M$32*'Inputs - forecast'!M$34*M95 -> -34.19059962 | N82: =-'Inputs - forecast'!N$32*'Inputs - forecast'!N$34*N95 -> -25.82251674 | O82: =-'Inputs - forecast'!O$32*'Inputs - forecast'!O$34*O95 -> -16.09148121 | Q82: Assumes fixed cost of debt
B83: Return on equity | F83: =-F95*'Inputs - actual'!F$21*(1-'Inputs - actual'!F$24) -> -179.6029412 | G83: =-G95*'Inputs - actual'!G$21*(1-'Inputs - actual'!G$24) -> -174.2148529 | H83: =-H95*'Inputs - actual'!H$21*(1-'Inputs - actual'!H$24) -> -168.0584632 | I83: =-I95*'Inputs - actual'!I$21*(1-'Inputs - actual'!I$24) -> -160.9120123 | J83: =-J95*'Inputs - actual'!J$21*(1-'Inputs - actual'!J$24) -> -152.4784818 | K83: =-K95*'Inputs - actual'!K$21*(1-'Inputs - actual'!K$24) -> -142.3469963 | L83: =-L95*'Inputs - actual'!L$21*(1-'Inputs - actual'!L$24) -> -121.9004344 | M83: =-M95*'Inputs - actual'!M$21*(1-'Inputs - actual'!M$24) -> -99.84930492 | N83: =-N95*'Inputs - actual'!N$21*(1-'Inputs - actual'!N$24) -> -75.41138138 | O83: =-O95*'Inputs - actual'!O$21*(1-'Inputs - actual'!O$24) -> -46.9931277
B84: Depreciation | F84: =F97 -> -300 | G84: =G97 -> -323.3333333 | H84: -350.8958333 | I84: -383.9708333 | J84: -424.4877083 | K84: -475.5389708 | L84: -509.0413618 | M84: -555.9447093 | N84: -629.8174815 | O84: -784.9503031
B85: Tax | E85: =E73 -> 57.31872681 | F85: =F108 -> -38.21734876 | G85: =G108 -> -44.38657746 | H85: -44.84050633 | I85: -44.22491873 | J85: -42.04702015 | K85: -86.51629747 | L85: -99.12587592 | M85: -100.7744128 | N85: -95.73371471 | O85: -68.98686032
B86: Nominal return | F86: =SUM(F80:F85) -> -81.32975864 | G86: -60.07793947 | H86: -52.75430409 | I86: -47.19079271 | J86: -44.35757286 | K86: 80.12348286 | L86: 132.9946751 | M86: 159.2848993 | N86: 170.7610279 | O86: 130.401656
B87: Present value | D87: =SUM(F87:O87) -> 100.1955488 | E87: =E85 -> 57.31872681 | F87: =F86/'Inputs - actual'!F$32 -> -74.40765799 | G87: =G86/'Inputs - actual'!G$32 -> -50.28649109 | H87: =H86/'Inputs - actual'!H$32 -> -40.39823149 | I87: =I86/'Inputs - actual'!I$32 -> -33.0620577 | J87: =J86/'Inputs - actual'!J$32 -> -28.43207349 | K87: =K86/'Inputs - actual'!K$32 -> 46.98602759 | L87: =L86/'Inputs - actual'!L$32 -> 71.3528484 | M87: =M86/'Inputs - actual'!M$32 -> 78.184348 | N87: =N86/'Inputs - actual'!N$32 -> 76.68353509 | O87: =O86/'Inputs - actual'!O$32 -> 53.57530146
B89: Real return | F89: =F86/'Inputs - actual'!F$14 -> -77.45691299 | G89: =G86/'Inputs - actual'!G$14 -> -54.4924621 | H89: =H86/'Inputs - actual'!H$14 -> -45.57115136 | I89: =I86/'Inputs - actual'!I$14 -> -38.82398195 | J89: =J86/'Inputs - actual'!J$14 -> -34.75531902 | K89: =K86/'Inputs - actual'!K$14 -> 59.78937654 | L89: =L86/'Inputs - actual'!L$14 -> 94.51683263 | M89: =M86/'Inputs - actual'!M$14 -> 107.8102896 | N89: =N86/'Inputs - actual'!N$14 -> 110.0740811 | O89: =O86/'Inputs - actual'!O$14 -> 80.0553049
B90: Present value | D90: =SUM(F90:O90) -> 100.1955488 | E90: =E87 -> 57.31872681 | F90: =F89/'Inputs - actual'!F$36 -> -74.40765799 | G90: =G89/'Inputs - actual'!G$36 -> -50.28649109 | H90: =H89/'Inputs - actual'!H$36 -> -40.39823149 | I90: =I89/'Inputs - actual'!I$36 -> -33.0620577 | J90: =J89/'Inputs - actual'!J$36 -> -28.43207349 | K90: =K89/'Inputs - actual'!K$36 -> 46.98602759 | L90: =L89/'Inputs - actual'!L$36 -> 71.3528484 | M90: =M89/'Inputs - actual'!M$36 -> 78.184348 | N90: =N89/'Inputs - actual'!N$36 -> 76.68353509 | O90: =O89/'Inputs - actual'!O$36 -> 53.57530146
A92: Adjustment for fixed cost of debt | F92: =-(F95*'Inputs - actual'!F$22*'Inputs - actual'!F$24+F82) -> -37.98529412 | G92: =-(G95*'Inputs - actual'!G$22*'Inputs - actual'!G$24+G82) -> -36.84573529 | H92: =-(H95*'Inputs - actual'!H$22*'Inputs - actual'!H$24+H82) -> -35.54368382 | I92: =-(I95*'Inputs - actual'!I$22*'Inputs - actual'!I$24+I82) -> -34.03223842 | J92: =-(J95*'Inputs - actual'!J$22*'Inputs - actual'!J$24+J82) -> -32.2485809 | K92: =-(K95*'Inputs - actual'!K$22*'Inputs - actual'!K$24+K82) -> -30.10581279 | L92: =-(L95*'Inputs - actual'!L$22*'Inputs - actual'!L$24+L82) -> -25.7814478 | M92: =-(M95*'Inputs - actual'!M$22*'Inputs - actual'!M$24+M82) -> -21.11772329 | N92: =-(N95*'Inputs - actual'!N$22*'Inputs - actual'!N$24+N82) -> -15.94920152 | O92: =-(O95*'Inputs - actual'!O$22*'Inputs - actual'!O$24+O82) -> -9.938856043 | Q92: Only applied to capex/ return on debt, not to revenue wash-up
A94: Actual Asset Base
B95: Opening Asset Base | F95: =E34 -> 3000 | G95: =F98 -> 2910 | H95: 2807.166667 | I95: 2687.795833 | J95: 2546.92625 | K95: 2377.694854 | L95: 2036.165447 | M95: 1667.834128 | N95: 1259.634963 | O95: 784.9503031
B96: Capex | F96: =F$32/'Inputs - forecast'!F$18*'Inputs - actual'!F$14 -> 210 | G96: =G$32/'Inputs - forecast'!G$18*'Inputs - actual'!G$14 -> 220.5 | H96: =H$32/'Inputs - forecast'!H$18*'Inputs - actual'!H$14 -> 231.525 | I96: =I$32/'Inputs - forecast'!I$18*'Inputs - actual'!I$14 -> 243.10125 | J96: =J$32/'Inputs - forecast'!J$18*'Inputs - actual'!J$14 -> 255.2563125 | K96: =K$32/'Inputs - forecast'!K$21*'Inputs - actual'!K$14 -> 134.0095641 | L96: =L$32/'Inputs - forecast'!L$21*'Inputs - actual'!L$14 -> 140.7100423 | M96: =M$32/'Inputs - forecast'!M$21*'Inputs - actual'!M$14 -> 147.7455444 | N96: =N$32/'Inputs - forecast'!N$21*'Inputs - actual'!N$14 -> 155.1328216 | O96: =O$32/'Inputs - forecast'!O$21*'Inputs - actual'!O$14 -> 0
B97: Depreciation | F97: =-F95/F29 -> -300 | G97: -323.3333333 | H97: -350.8958333 | I97: -383.9708333 | J97: -424.4877083 | K97: -475.5389708 | L97: -509.0413618 | M97: -555.9447093 | N97: -629.8174815 | O97: -784.9503031
B98: Closing Asset Base | F98: =SUM(F95:F97) -> 2910 | G98: =SUM(G95:G97) -> 2807.166667 | H98: 2687.795833 | I98: 2546.92625 | J98: 2377.694854 | K98: 2036.165447 | L98: 1667.834128 | M98: 1259.634963 | N98: 784.9503031 | O98: 0
A100: Actual tax
B101: Revenue | F101: =F80 -> 602.9905313 | G101: =G80 -> 651.7618243 | H101: 684.3499155 | I101: 718.5674113 | J101: 754.4957818 | K101: 967.2780561 | L101: 1045.513781 | M101: 1097.78947 | N101: 1152.678944 | O101: 1210.312891
B102: Depreciation | F102: =F97 -> -300 | G102: =G97 -> -323.3333333 | H102: -350.8958333 | I102: -383.9708333 | J102: -424.4877083 | K102: -475.5389708 | L102: -509.0413618 | M102: -555.9447093 | N102: -629.8174815 | O102: -784.9503031
B103: Opex | F103: =F81 -> -105 | G103: -110.25 | H103: -115.7625 | I103: -121.550625 | J103: -127.6281563 | K103: -134.0095641 | L103: -140.7100423 | M103: -147.7455444 | N103: -155.1328216 | O103: -162.8894627
B104: Interest | F104: -61.5 | G104: -59.655 | H104: -57.54691667 | I104: -55.09981458 | J104: -52.21198813 | K104: -48.74274451 | L104: -41.74139167 | M104: -34.19059962 | N104: -25.82251674 | O104: -16.09148121
B105: EBT | F105: =SUM(F101:F104) -> 136.4905313 | G105: =SUM(G101:G104) -> 158.5234909 | H105: 160.1446655 | I105: 157.9461383 | J105: 150.1679291 | K105: 308.9867767 | L105: 354.0209854 | M105: 359.908617 | N105: 341.906124 | O105: 246.381644
B106: Calculated tax | F106: =-F105*'Inputs - forecast'!F35 -> -38.21734876 | G106: =-G105*'Inputs - forecast'!G35 -> -44.38657746 | H106: =-H105*'Inputs - forecast'!H35 -> -44.84050633 | I106: =-I105*'Inputs - forecast'!I35 -> -44.22491873 | J106: =-J105*'Inputs - forecast'!J35 -> -42.04702015 | K106: =-K105*'Inputs - forecast'!K35 -> -86.51629747 | L106: =-L105*'Inputs - forecast'!L35 -> -99.12587592 | M106: =-M105*'Inputs - forecast'!M35 -> -100.7744128 | N106: =-N105*'Inputs - forecast'!N35 -> -95.73371471 | O106: =-O105*'Inputs - forecast'!O35 -> -68.98686032
B107: Deferred tax | F107: =IF(F106>0,F106+E107,0) -> 0 | G107: 0 | H107: 0 | I107: 0 | J107: 0 | K107: 0 | L107: 0 | M107: 0 | N107: 0 | O107: 0
B108: Tax | F108: =IF(F107>0,0,F106+E107) -> -38.21734876 | G108: -44.38657746 | H108: -44.84050633 | I108: -44.22491873 | J108: -42.04702015 | K108: -86.51629747 | L108: -99.12587592 | M108: -100.7744128 | N108: -95.73371471 | O108: -68.98686032
A110: Tax adjustment | E110: NPV
B111: Tax | F111: =F108 -> -38.21734876 | G111: -44.38657746 | H111: -44.84050633 | I111: -44.22491873 | J111: -42.04702015 | K111: -86.51629747 | L111: -99.12587592 | M111: -100.7744128 | N111: -95.73371471 | O111: -68.98686032
B112: NPV of actual tax | E112: =SUM(F112:O112) -> -389.1060789 | F112: =F111/'Inputs - actual'!F$32 -> -34.96461152 | G112: =G111/'Inputs - actual'!G32 -> -37.15249311 | H112: =H111/'Inputs - actual'!H32 -> -34.33799737 | I112: =I111/'Inputs - actual'!I32 -> -30.98415455 | J112: =J111/'Inputs - actual'!J32 -> -26.9510681 | K112: =K111/'Inputs - actual'!K32 -> -50.73490311 | L112: =L111/'Inputs - actual'!L32 -> -53.1819307 | M112: =M111/'Inputs - actual'!M32 -> -49.46471254 | N112: =N111/'Inputs - actual'!N32 -> -42.99107216 | O112: =O111/'Inputs - actual'!O32 -> -28.34313576
B114: Forecast tax adjusted for inflation | F114: =F$10/'Inputs - forecast'!F$18*'Inputs - actual'!F$14 -> -39.8515649 | G114: =G$10/'Inputs - forecast'!G$18*'Inputs - actual'!G$14 -> -37.53176477 | H114: =H$10/'Inputs - forecast'!H$18*'Inputs - actual'!H$14 -> -34.24710984 | I114: =I$10/'Inputs - forecast'!I$18*'Inputs - actual'!I$14 -> -29.64589373 | J114: =J$10/'Inputs - forecast'!J$18*'Inputs - actual'!J$14 -> -23.19103943 | K114: =K$10/'Inputs - forecast'!K$21*'Inputs - actual'!K$14 -> -91.63771652 | L114: =L$10/'Inputs - forecast'!L$21*'Inputs - actual'!L$14 -> -92.1080993 | M114: =M$10/'Inputs - forecast'!M$21*'Inputs - actual'!M$14 -> -89.37134447 | N114: =N$10/'Inputs - forecast'!N$21*'Inputs - actual'!N$14 -> -79.54636949 | O114: =O$10/'Inputs - forecast'!O$21*'Inputs - actual'!O$14 -> -46.99456288
B115: NPV of forecast tax adjusted for inflation | E115: =SUM(F115:O115) -> -331.7873521 | F115: =F114/'Inputs - actual'!F$32 -> -36.45973702 | G115: =G114/'Inputs - actual'!G$32 -> -31.41487161 | H115: =H114/'Inputs - actual'!H$32 -> -26.22577807 | I115: =I114/'Inputs - actual'!I$32 -> -20.77003146 | J115: =J114/'Inputs - actual'!J$32 -> -14.86486512 | K115: =K114/'Inputs - actual'!K$32 -> -53.73820661 | L115: =L114/'Inputs - actual'!L$32 -> -49.41682995 | M115: =M114/'Inputs - actual'!M$32 -> -43.86756263 | N115: =N114/'Inputs - actual'!N$32 -> -35.72183238 | O115: =O114/'Inputs - actual'!O$32 -> -19.30763727
B116: Difference | E116: =E115-E112 -> 57.31872681
A118: Real revenue | F118: =F80/'Inputs - actual'!F$14 -> 574.2766965 | G118: =G80/'Inputs - actual'!G$14 -> 591.1671875 | H118: =H80/'Inputs - actual'!H$14 -> 591.1671875 | I118: =I80/'Inputs - actual'!I$14 -> 591.1671875 | J118: =J80/'Inputs - actual'!J$14 -> 591.1671875 | K118: =K80/'Inputs - actual'!K$14 -> 721.7977783 | L118: =L80/'Inputs - actual'!L$14 -> 743.0271247 | M118: =M80/'Inputs - actual'!M$14 -> 743.0271247 | N118: =N80/'Inputs - actual'!N$14 -> 743.0271247 | O118: =O80/'Inputs - actual'!O$14 -> 743.0271247

Sheet EDB & GDB with Y1 (ex. CoD adj)
A1: Calculation
A2: This model washes-up revenue, including for the first year of a regulatory period, and the RAB is indexed (similar to the GDBs and EDBs, except that it has no wash-up lag/ lag in CPI index used). No adjustment is made to revenue wash-up for the overcompensation for inflation on fixed cost of debt.
A4: Forecast | D4: Return over forecast period | E4: ='Inputs - forecast'!E2 -> 2020-06-30 | F4: ='Inputs - forecast'!F2 -> 2021-06-30 | G4: ='Inputs - forecast'!G2 -> 2022-06-30 | H4: ='Inputs - forecast'!H2 -> 2023-06-30 | I4: ='Inputs - forecast'!I2 -> 2024-06-30 | J4: ='Inputs - forecast'!J2 -> 2025-06-30 | K4: ='Inputs - forecast'!K2 -> 2026-06-30 | L4: ='Inputs - forecast'!L2 -> 2027-06-30 | M4: ='Inputs - forecast'!M2 -> 2028-06-30 | N4: ='Inputs - forecast'!N2 -> 2029-06-30 | O4: ='Inputs - forecast'!O2 -> 2030-06-30
A5: Building blocks
B6: Revenue | F6: =K59 -> 602.9905313 | G6: =F6*(1+'Inputs - forecast'!G19) -> 615.0503419 | H6: =G6*(1+'Inputs - forecast'!H19) -> 627.3513488 | I6: =H6*(1+'Inputs - forecast'!I19) -> 639.8983757 | J6: =I6*(1+'Inputs - forecast'!J19) -> 652.6963432 | K6: =P66 -> 967.2780561 | L6: =K6*(1+'Inputs - forecast'!L19) -> 986.6236172 | M6: =L6*(1+'Inputs - forecast'!M19) -> 1006.35609 | N6: =M6*(1+'Inputs - forecast'!N19) -> 1026.483211 | O6: =N6*(1+'Inputs - forecast'!O19) -> 1047.012876
B7: Return on debt | F7: =-F$31*'Inputs - forecast'!F$34*'Inputs - forecast'!F$32 -> -62.73 | G7: =-G$31*'Inputs - forecast'!G$34*'Inputs - forecast'!G$32 -> -61.85178 | H7: =-H$31*'Inputs - forecast'!H$34*'Inputs - forecast'!H$32 -> -60.4299 | I7: =-I$31*'Inputs - forecast'!I$34*'Inputs - forecast'!I$32 -> -58.37165761 | J7: =-J$31*'Inputs - forecast'!J$34*'Inputs - forecast'!J$32 -> -55.56023766 | K7: =-K$31*'Inputs - forecast'!K$34*'Inputs - forecast'!K$32 -> -59.92936573 | L7: =-L$31*'Inputs - forecast'!L$34*'Inputs - forecast'!L$32 -> -51.62444128 | M7: =-M$31*'Inputs - forecast'!M$34*'Inputs - forecast'!M$32 -> -42.269218 | N7: =-N$31*'Inputs - forecast'!N$34*'Inputs - forecast'!N$32 -> -31.57511907 | O7: =-O$31*'Inputs - forecast'!O$34*'Inputs - forecast'!O$32 -> -18.99200257
B8: Return on equity | F8: =-F$31*(1-'Inputs - forecast'!F$34)*'Inputs - forecast'!F$31 -> -126.378 | G8: =-G$31*(1-'Inputs - forecast'!G$34)*'Inputs - forecast'!G$31 -> -124.608708 | H8: =-H$31*(1-'Inputs - forecast'!H$34)*'Inputs - forecast'!H$31 -> -121.74414 | I8: =-I$31*(1-'Inputs - forecast'!I$34)*'Inputs - forecast'!I$31 -> -117.5975346 | J8: =-J$31*(1-'Inputs - forecast'!J$34)*'Inputs - forecast'!J$31 -> -111.933552 | K8: =-K$31*(1-'Inputs - forecast'!K$34)*'Inputs - forecast'!K$31 -> -120.7357466 | L8: =-L$31*(1-'Inputs - forecast'!L$34)*'Inputs - forecast'!L$31 -> -104.0043622 | M8: =-M$31*(1-'Inputs - forecast'!M$34)*'Inputs - forecast'!M$31 -> -85.15700992 | N8: =-N$31*(1-'Inputs - forecast'!N$34)*'Inputs - forecast'!N$31 -> -63.61231304 | O8: =-O$31*(1-'Inputs - forecast'!O$34)*'Inputs - forecast'!O$31 -> -38.26193688
B9: Inflationary gain | F9: =('Inputs - forecast'!F37-'Inputs - forecast'!F38)*F31 -> 63.708 | G9: =('Inputs - forecast'!G37-'Inputs - forecast'!G38)*G31 -> 62.816088 | H9: =('Inputs - forecast'!H37-'Inputs - forecast'!H38)*H31 -> 61.37204 | I9: =('Inputs - forecast'!I37-'Inputs - forecast'!I38)*I31 -> 59.28170832 | J9: =('Inputs - forecast'!J37-'Inputs - forecast'!J38)*J31 -> 56.42645657 | K9: =('Inputs - forecast'!K37-'Inputs - forecast'!K38)*K31 -> 60.86370209 | L9: =('Inputs - forecast'!L37-'Inputs - forecast'!L38)*L31 -> 52.42929866 | M9: =('Inputs - forecast'!M37-'Inputs - forecast'!M38)*M31 -> 42.92822159 | N9: =('Inputs - forecast'!N37-'Inputs - forecast'!N38)*N31 -> 32.06739495 | O9: =('Inputs - forecast'!O37-'Inputs - forecast'!O38)*O31 -> 19.28809979 | Q9: RAB indexation is performed on opening RAB. The corresponding revenue offsets are therefore adjusted to year-end values for building blocks.
B10: Tax | F10: =F50 -> -38.71294876 | G10: =G50 -> -35.41773067 | H10: -31.39471499 | I10: -26.40024993 | J10: -20.06201625 | K10: -89.01949605 | L10: -86.91996963 | M10: -81.92772765 | N10: -70.83760247 | O10: -40.65387784
B11: Opex | F11: =-'Inputs - forecast'!F10 -> -102 | G11: =-'Inputs - forecast'!G10 -> -104.04 | H11: =-'Inputs - forecast'!H10 -> -106.1208 | I11: =-'Inputs - forecast'!I10 -> -108.243216 | J11: =-'Inputs - forecast'!J10 -> -110.4080803 | K11: =-'Inputs - forecast'!K10 -> -130.1807194 | L11: =-'Inputs - forecast'!L10 -> -132.7843338 | M11: =-'Inputs - forecast'!M10 -> -135.4400204 | N11: =-'Inputs - forecast'!N10 -> -138.1488208 | O11: =-'Inputs - forecast'!O10 -> -140.9117973
B12: Depreciation | F12: =F33 -> -306 | G12: =G33 -> -335.24 | H12: -368.475 | I12: -406.7711331 | J12: -451.7092492 | K12: -584.6767388 | L12: -629.5663571 | M12: -687.3043577 | N12: -770.1248553 | O12: -926.4391496
B13: Net revenue | F13: =SUM(F6:F12) -> 30.87758253 | G13: 16.70821125 | H13: 0.5588337734 | I13: -18.20370722 | J13: -40.55033562 | K13: 43.5996916 | L13: 34.15345195 | M13: 17.18597745 | N13: -15.7481044 | O13: -98.95778883
B14: Present value | F14: =F13/'Inputs - forecast'!F$42 -> 29.08041301 | G14: =G13/'Inputs - forecast'!G$42 -> 14.81987415 | H14: =H13/'Inputs - forecast'!H$42 -> 0.4668254043 | I14: =I13/'Inputs - forecast'!I$42 -> -14.32151486 | J14: =J13/'Inputs - forecast'!J$42 -> -30.04559771 | K14: =K13/'Inputs - forecast'!K$42 -> 30.42475511 | L14: =L13/'Inputs - forecast'!L$42 -> 22.44582425 | M14: =M13/'Inputs - forecast'!M$42 -> 10.63732601 | N14: =N13/'Inputs - forecast'!N$42 -> -9.180023569 | O14: =O13/'Inputs - forecast'!O$42 -> -54.3278818
B15: Sum of present values | O15: =SUM(F14:O14) -> 1.222133506e-12
A17: Regulatory cashflows
B18: Revenue | F18: =F6 -> 602.9905313 | G18: =G6 -> 615.0503419 | H18: 627.3513488 | I18: 639.8983757 | J18: 652.6963432 | K18: 967.2780561 | L18: 986.6236172 | M18: 1006.35609 | N18: 1026.483211 | O18: 1047.012876
B19: Opex | F19: =-'Inputs - forecast'!F$10 -> -102 | G19: =-'Inputs - forecast'!G$10 -> -104.04 | H19: =-'Inputs - forecast'!H$10 -> -106.1208 | I19: =-'Inputs - forecast'!I$10 -> -108.243216 | J19: =-'Inputs - forecast'!J$10 -> -110.4080803 | K19: =-'Inputs - forecast'!K$10 -> -130.1807194 | L19: =-'Inputs - forecast'!L$10 -> -132.7843338 | M19: =-'Inputs - forecast'!M$10 -> -135.4400204 | N19: =-'Inputs - forecast'!N$10 -> -138.1488208 | O19: =-'Inputs - forecast'!O$10 -> -140.9117973
B20: Tax | F20: =F10 -> -38.71294876 | G20: =G10 -> -35.41773067 | H20: -31.39471499 | I20: -26.40024993 | J20: -20.06201625 | K20: -89.01949605 | L20: -86.91996963 | M20: -81.92772765 | N20: -70.83760247 | O20: -40.65387784
B21: Capex | F21: =-'Inputs - forecast'!F$11 -> -204 | G21: =-'Inputs - forecast'!G$11 -> -208.08 | H21: =-'Inputs - forecast'!H$11 -> -212.2416 | I21: =-'Inputs - forecast'!I$11 -> -216.486432 | J21: =-'Inputs - forecast'!J$11 -> -220.8161606 | K21: =-'Inputs - forecast'!K$11 -> -130.1807194 | L21: =-'Inputs - forecast'!L$11 -> -132.7843338 | M21: =-'Inputs - forecast'!M$11 -> -135.4400204 | N21: =-'Inputs - forecast'!N$11 -> -138.1488208 | O21: =-'Inputs - forecast'!O$11 -> 0
B22: Opening RAB | E22: =-'Inputs - forecast'!E$12 -> -3000
B23: Closing RAB | J23: =-(J36-J34) -> -386.7000384 | O23: =O34 -> 0
B24: Sum | E24: =SUM(E18:E23) -> -3000 | F24: =SUM(F18:F23) -> 258.2775825 | G24: 267.5126112 | H24: 277.5942338 | I24: 288.7684778 | J24: -85.2899524 | K24: 617.8971213 | L24: 634.13498 | M24: 653.548321 | N24: 679.3479672 | O24: 865.4472005
B25: Present value | E25: =E24/'Inputs - forecast'!E$42 -> -3000 | F25: =F24/'Inputs - forecast'!F$42 -> 243.2450391 | G25: =G24/'Inputs - forecast'!G$42 -> 237.2787351 | H25: =H24/'Inputs - forecast'!H$42 -> 231.8901373 | I25: =I24/'Inputs - forecast'!I$42 -> 227.1846056 | J25: =J24/'Inputs - forecast'!J$42 -> -63.19522538 | K25: =K24/'Inputs - forecast'!K$42 -> 431.1812288 | L25: =L24/'Inputs - forecast'!L$42 -> 416.7567699 | M25: =M24/'Inputs - forecast'!M$42 -> 404.5162153 | N25: =N24/'Inputs - forecast'!N$42 -> 396.0114939 | O25: =O24/'Inputs - forecast'!O$42 -> 475.1310004
B26: Sum of present values | O26: =SUM(E25:O25) -> 0
A28: Regulatory Asset Base
B29: Useful lives | F29: 10 | G29: =F29-1 -> 9 | H29: =G29-1 -> 8 | I29: 7 | J29: 6 | K29: 5 | L29: 4 | M29: 3 | N29: 2 | O29: 1
B31: Opening RAB | F31: =E34*(1+'Inputs - forecast'!F$19) -> 3060 | G31: =F34*(1+'Inputs - forecast'!G$19) -> 3017.16 | H31: =G34*(1+'Inputs - forecast'!H$19) -> 2947.8 | I31: =H34*(1+'Inputs - forecast'!I$19) -> 2847.397932 | J31: =I34*(1+'Inputs - forecast'!J$19) -> 2710.255495 | K31: =J36*(1+'Inputs - forecast'!K$19) -> 2923.383694 | L31: =K34*(1+'Inputs - forecast'!L$19) -> 2518.265428 | M31: =L34*(1+'Inputs - forecast'!M$19) -> 2061.913073 | N31: =M34*(1+'Inputs - forecast'!N$19) -> 1540.249711 | O31: =N34*(1+'Inputs - forecast'!O$19) -> 926.4391496 | Q31: Opening RAB balance indexed
B32: Capex | F32: =-F21 -> 204 | G32: 208.08 | H32: 212.2416 | I32: 216.486432 | J32: 220.8161606 | K32: 130.1807194 | L32: 132.7843338 | M32: 135.4400204 | N32: 138.1488208 | O32: 0
B33: Depreciation | F33: =-F31/F29 -> -306 | G33: -335.24 | H33: -368.475 | I33: -406.7711331 | J33: -451.7092492 | K33: -584.6767388 | L33: -629.5663571 | M33: -687.3043577 | N33: -770.1248553 | O33: -926.4391496
B34: Closing RAB | E34: =-E22 -> 3000 | F34: =SUM(F31:F33) -> 2958 | G34: 2890 | H34: 2791.5666 | I34: 2657.113231 | J34: 2479.362407 | K34: 2468.887675 | L34: 2021.483405 | M34: 1510.048736 | N34: 908.2736761 | O34: 0
B36: RAB adjusted for actual inflation | J36: =J34/'Inputs - forecast'!J18*'Inputs - actual'!J14 -> 2866.062445
A38: Tax asset base | F38: =F29 -> 10 | G38: 9 | H38: 8 | I38: 7 | J38: 6 | K38: 5 | L38: 4 | M38: 3 | N38: 2 | O38: 1
B39: Opening balance | F39: =E42 -> 3000 | G39: =F42 -> 2904 | H39: =G42 -> 2789.413333 | I39: 2652.978267 | J39: 2490.467803 | K39: 2296.205997 | L39: 1967.145517 | M39: 1608.143471 | N39: 1207.535668 | O39: 741.9166549
B40: Capex | F40: =-F21 -> 204 | G40: 208.08 | H40: 212.2416 | I40: 216.486432 | J40: 220.8161606 | K40: 130.1807194 | L40: 132.7843338 | M40: 135.4400204 | N40: 138.1488208 | O40: 0
B41: Depreciation | F41: =-F39/F38 -> -300 | G41: =-G39/G38 -> -322.6666667 | H41: -348.6766667 | I41: -378.9968952 | J41: -415.0779672 | K41: -459.2411994 | L41: -491.7863792 | M41: -536.0478238 | N41: -603.767834 | O41: -741.9166549
B42: Closing balance | E42: =E34 -> 3000 | F42: =SUM(F39:F41) -> 2904 | G42: =SUM(G39:G41) -> 2789.413333 | H42: =SUM(H39:H41) -> 2652.978267 | I42: 2490.467803 | J42: 2296.205997 | K42: 1967.145517 | L42: 1608.143471 | M42: 1207.535668 | N42: 741.9166549 | O42: 0
A44: Regulatory tax
B45: Revenue | F45: =F6 -> 602.9905313 | G45: =G6 -> 615.0503419 | H45: 627.3513488 | I45: 639.8983757 | J45: 652.6963432 | K45: 967.2780561 | L45: 986.6236172 | M45: 1006.35609 | N45: 1026.483211 | O45: 1047.012876
B46: Depreciation | F46: =F41 -> -300 | G46: -322.6666667 | H46: -348.6766667 | I46: -378.9968952 | J46: -415.0779672 | K46: -459.2411994 | L46: -491.7863792 | M46: -536.0478238 | N46: -603.767834 | O46: -741.9166549
B47: Opex | F47: =F11 -> -102 | G47: =G11 -> -104.04 | H47: -106.1208 | I47: -108.243216 | J47: -110.4080803 | K47: -130.1807194 | L47: -132.7843338 | M47: -135.4400204 | N47: -138.1488208 | O47: -140.9117973
B48: Notional interest | F48: =-'Inputs - forecast'!F$32*'Inputs - forecast'!F34*F31 -> -62.73 | G48: =-'Inputs - forecast'!G$32*'Inputs - forecast'!G34*G31 -> -61.85178 | H48: =-'Inputs - forecast'!H$32*'Inputs - forecast'!H34*H31 -> -60.4299 | I48: =-'Inputs - forecast'!I$32*'Inputs - forecast'!I34*I31 -> -58.37165761 | J48: =-'Inputs - forecast'!J$32*'Inputs - forecast'!J34*J31 -> -55.56023766 | K48: =-'Inputs - forecast'!K$32*'Inputs - forecast'!K34*K31 -> -59.92936573 | L48: =-'Inputs - forecast'!L$32*'Inputs - forecast'!L34*L31 -> -51.62444128 | M48: =-'Inputs - forecast'!M$32*'Inputs - forecast'!M34*M31 -> -42.269218 | N48: =-'Inputs - forecast'!N$32*'Inputs - forecast'!N34*N31 -> -31.57511907 | O48: =-'Inputs - forecast'!O$32*'Inputs - forecast'!O34*O31 -> -18.99200257
B49: EBT | F49: =SUM(F45:F48) -> 138.2605313 | G49: =SUM(G45:G48) -> 126.4918953 | H49: 112.1239821 | I49: 94.28660689 | J49: 71.65005803 | K49: 317.9267716 | L49: 310.4284629 | M49: 292.5990273 | N49: 252.9914374 | O49: 145.1924209
B50: Calculated tax | F50: =-F49*'Inputs - forecast'!E35 -> -38.71294876 | G50: =-G49*'Inputs - forecast'!F35 -> -35.41773067 | H50: =-H49*'Inputs - forecast'!G35 -> -31.39471499 | I50: =-I49*'Inputs - forecast'!H35 -> -26.40024993 | J50: =-J49*'Inputs - forecast'!I35 -> -20.06201625 | K50: =-K49*'Inputs - forecast'!J35 -> -89.01949605 | L50: =-L49*'Inputs - forecast'!K35 -> -86.91996963 | M50: =-M49*'Inputs - forecast'!L35 -> -81.92772765 | N50: =-N49*'Inputs - forecast'!M35 -> -70.83760247 | O50: =-O49*'Inputs - forecast'!N35 -> -40.65387784
B51: Deferred tax | F51: =IF(F50>0,F50,0) -> 0 | G51: =IF(G50>0,G50,0) -> 0 | H51: =IF(H50>0,H50,0) -> 0 | I51: =IF(I50>0,I50,0) -> 0 | J51: =IF(J50>0,J50+I51,0) -> 0 | K51: 0 | L51: 0 | M51: 0 | N51: 0 | O51: 0
B52: Tax | F52: =IF(F51>0,0,F50+E51) -> -38.71294876 | G52: -35.41773067 | H52: -31.39471499 | I52: -26.40024993 | J52: -20.06201625 | K52: -89.01949605 | L52: -86.91996963 | M52: -81.92772765 | N52: -70.83760247 | O52: -40.65387784
A54: Reg Period 1
A55: Calculation of revenue | K55: Sum
B56: Present value of revenue | F56: =F6/'Inputs - forecast'!F$42 -> 567.8946424 | G56: =G6/'Inputs - forecast'!G$42 -> 545.5382701 | H56: =H6/'Inputs - forecast'!H$42 -> 524.0620037 | I56: =I6/'Inputs - forecast'!I$42 -> 503.4311959 | J56: =J6/'Inputs - forecast'!J$42 -> 483.6125634 | K56: =SUM(F56:J56) -> 2624.538676
B57: Present value of cost | F57: =SUM(F7:F12)/'Inputs - forecast'!F$42 -> -538.8142294 | G57: =SUM(G7:G12)/'Inputs - forecast'!G$42 -> -530.718396 | H57: =SUM(H7:H12)/'Inputs - forecast'!H$42 -> -523.5951783 | I57: =SUM(I7:I12)/'Inputs - forecast'!I$42 -> -517.7527107 | J57: =SUM(J7:J12)/'Inputs - forecast'!J$42 -> -513.6581611 | K57: =SUM(F57:J57) -> -2624.538676
B58: Difference | K58: =SUM(K56:K57) -> 0
B59: Revenue | K59: 602.9905313
A61: Reg Period 2
A62: Calculation of revenue | P62: Sum
B63: Present value of revenue | K63: =K6/'Inputs - forecast'!K$42 -> 674.9863795 | L63: =L6/'Inputs - forecast'!L$42 -> 648.4141148 | M63: =M6/'Inputs - forecast'!M$42 -> 622.8879234 | N63: =N6/'Inputs - forecast'!N$42 -> 598.3666245 | O63: =O6/'Inputs - forecast'!O$42 -> 574.8106583 | P63: =SUM(K63:O63) -> 3119.465701
B64: Present value of cost | K64: =SUM(K7:K12)/'Inputs - forecast'!K$42 -> -644.5616244 | L64: =SUM(L7:L12)/'Inputs - forecast'!L$42 -> -625.9682906 | M64: =SUM(M7:M12)/'Inputs - forecast'!M$42 -> -612.2505974 | N64: =SUM(N7:N12)/'Inputs - forecast'!N$42 -> -607.5466481 | O64: =SUM(O7:O12)/'Inputs - forecast'!O$42 -> -629.1385401 | P64: =SUM(K64:O64) -> -3119.465701
B65: Difference | P65: =SUM(P63:P64) -> 0
B66: Revenue | P66: 967.2780561
A68: Actual
A69: Actual return (cashflows) with fixed cost of debt
B70: Revenue | F70: =F$6/'Inputs - forecast'!F$18*'Inputs - actual'!F$14 -> 620.7255469 | G70: =G$6/'Inputs - forecast'!G$18*'Inputs - actual'!G$14 -> 651.7618243 | H70: =H$6/'Inputs - forecast'!H$18*'Inputs - actual'!H$14 -> 684.3499155 | I70: =I$6/'Inputs - forecast'!I$18*'Inputs - actual'!I$14 -> 718.5674113 | J70: =J$6/'Inputs - forecast'!J$18*'Inputs - actual'!J$14 -> 754.4957818 | K70: =K$6/'Inputs - forecast'!K$21*'Inputs - actual'!K$14 -> 995.7274107 | L70: =L$6/'Inputs - forecast'!L$21*'Inputs - actual'!L$14 -> 1045.513781 | M70: =M$6/'Inputs - forecast'!M$21*'Inputs - actual'!M$14 -> 1097.78947 | N70: =N$6/'Inputs - forecast'!N$21*'Inputs - actual'!N$14 -> 1152.678944 | O70: =O$6/'Inputs - forecast'!O$21*'Inputs - actual'!O$14 -> 1210.312891 | Q70: Revenue wash-up with no adjustment for the overcompensation for inflation on fixed cost of debt.
B71: Opex | F71: =F$11/'Inputs - forecast'!F$18*'Inputs - actual'!F$14 -> -105 | G71: =G$11/'Inputs - forecast'!G$18*'Inputs - actual'!G$14 -> -110.25 | H71: =H$11/'Inputs - forecast'!H$18*'Inputs - actual'!H$14 -> -115.7625 | I71: =I$11/'Inputs - forecast'!I$18*'Inputs - actual'!I$14 -> -121.550625 | J71: =J$11/'Inputs - forecast'!J$18*'Inputs - actual'!J$14 -> -127.6281563 | K71: =K$11/'Inputs - forecast'!K$21*'Inputs - actual'!K$14 -> -134.0095641 | L71: =L$11/'Inputs - forecast'!L$21*'Inputs - actual'!L$14 -> -140.7100423 | M71: =M$11/'Inputs - forecast'!M$21*'Inputs - actual'!M$14 -> -147.7455444 | N71: =N$11/'Inputs - forecast'!N$21*'Inputs - actual'!N$14 -> -155.1328216 | O71: =O$11/'Inputs - forecast'!O$21*'Inputs - actual'!O$14 -> -162.8894627
B72: Capex | F72: =-F96-F92 -> -172.0147059 | G72: =-G96-G92 -> -183.6542647 | H72: -195.9813162 | I72: -209.0690116 | J72: -223.0077316 | K72: -103.9037513 | L72: -114.9285945 | M72: -126.6278211 | N72: -139.1836201 | O72: 9.938856043
B73: Tax | E73: =E116 -> 66.53320116 | F73: =F108 -> -43.18315314 | G73: =G108 -> -44.38657746 | H73: -44.84050633 | I73: -44.22491873 | J73: -42.04702015 | K73: -94.48211675 | L73: -99.12587592 | M73: -100.7744128 | N73: -95.73371471 | O73: -68.98686032
B74: Nominal IRR | D74: =IRR(E74:O74,0.05) -> 0.1047337922 | E74: =-E34+SUM(E70:E73) -> -2933.466799 | F74: =SUM(F70:F73) -> 300.5276879 | G74: 313.4709821 | H74: 327.765593 | I74: 343.7228559 | J74: 361.8128738 | K74: 663.3319786 | L74: 690.7492686 | M74: 722.641692 | N74: 762.6287874 | O74: 988.375424
B76: Real IRR | D76: =IRR(E76:O76,0.05) -> 0.0521274211 | E76: =E74 -> -2933.466799 | F76: =F74/'Inputs - actual'!F$14 -> 286.2168456 | G76: =G74/'Inputs - actual'!G$14 -> 284.3274214 | H76: =H74/'Inputs - actual'!H$14 -> 283.1362427 | I76: =I74/'Inputs - actual'!I$14 -> 282.7816442 | J76: =J74/'Inputs - actual'!J$14 -> 283.489854 | K76: =K74/'Inputs - actual'!K$14 -> 494.9885355 | L76: =L74/'Inputs - actual'!L$14 -> 490.902609 | M76: =M74/'Inputs - actual'!M$14 -> 489.1123418 | N76: =N74/'Inputs - actual'!N$14 -> 491.5973161 | O76: =O74/'Inputs - actual'!O$14 -> 606.7767723
B77: check to inputs | D77: =D76-'Inputs - actual'!P28 -> 0.01114702894 | E77: Overcompensation for inflation on fixed cost of debt.
A79: Actual return (building blocks) with fixed cost of debt
B80: Revenue | F80: =F70 -> 620.7255469 | G80: =G70 -> 651.7618243 | H80: 684.3499155 | I80: 718.5674113 | J80: 754.4957818 | K80: 995.7274107 | L80: 1045.513781 | M80: 1097.78947 | N80: 1152.678944 | O80: 1210.312891
B81: Opex | F81: =F71 -> -105 | G81: -110.25 | H81: -115.7625 | I81: -121.550625 | J81: -127.6281563 | K81: -134.0095641 | L81: -140.7100423 | M81: -147.7455444 | N81: -155.1328216 | O81: -162.8894627
B82: Return on debt | F82: =-'Inputs - forecast'!F$32*'Inputs - forecast'!F$34*F95 -> -61.5 | G82: =-'Inputs - forecast'!G$32*'Inputs - forecast'!G$34*G95 -> -59.655 | H82: =-'Inputs - forecast'!H$32*'Inputs - forecast'!H$34*H95 -> -57.54691667 | I82: =-'Inputs - forecast'!I$32*'Inputs - forecast'!I$34*I95 -> -55.09981458 | J82: =-'Inputs - forecast'!J$32*'Inputs - forecast'!J$34*J95 -> -52.21198813 | K82: =-'Inputs - forecast'!K$32*'Inputs - forecast'!K$34*K95 -> -48.74274451 | L82: =-'Inputs - forecast'!L$32*'Inputs - forecast'!L$34*L95 -> -41.74139167 | M82: =-'Inputs - forecast'!M$32*'Inputs - forecast'!M$34*M95 -> -34.19059962 | N82: =-'Inputs - forecast'!N$32*'Inputs - forecast'!N$34*N95 -> -25.82251674 | O82: =-'Inputs - forecast'!O$32*'Inputs - forecast'!O$34*O95 -> -16.09148121 | Q82: Assumes fixed cost of debt
B83: Return on equity | F83: =-F95*'Inputs - actual'!F$21*(1-'Inputs - actual'!F$24) -> -179.6029412 | G83: =-G95*'Inputs - actual'!G$21*(1-'Inputs - actual'!G$24) -> -174.2148529 | H83: =-H95*'Inputs - actual'!H$21*(1-'Inputs - actual'!H$24) -> -168.0584632 | I83: =-I95*'Inputs - actual'!I$21*(1-'Inputs - actual'!I$24) -> -160.9120123 | J83: =-J95*'Inputs - actual'!J$21*(1-'Inputs - actual'!J$24) -> -152.4784818 | K83: =-K95*'Inputs - actual'!K$21*(1-'Inputs - actual'!K$24) -> -142.3469963 | L83: =-L95*'Inputs - actual'!L$21*(1-'Inputs - actual'!L$24) -> -121.9004344 | M83: =-M95*'Inputs - actual'!M$21*(1-'Inputs - actual'!M$24) -> -99.84930492 | N83: =-N95*'Inputs - actual'!N$21*(1-'Inputs - actual'!N$24) -> -75.41138138 | O83: =-O95*'Inputs - actual'!O$21*(1-'Inputs - actual'!O$24) -> -46.9931277
B84: Depreciation | F84: =F97 -> -300 | G84: =G97 -> -323.3333333 | H84: -350.8958333 | I84: -383.9708333 | J84: -424.4877083 | K84: -475.5389708 | L84: -509.0413618 | M84: -555.9447093 | N84: -629.8174815 | O84: -784.9503031
B85: Tax | E85: =E73 -> 66.53320116 | F85: =F108 -> -43.18315314 | G85: =G108 -> -44.38657746 | H85: -44.84050633 | I85: -44.22491873 | J85: -42.04702015 | K85: -94.48211675 | L85: -99.12587592 | M85: -100.7744128 | N85: -95.73371471 | O85: -68.98686032
B86: Nominal return | F86: =SUM(F80:F85) -> -68.56054739 | G86: -60.07793947 | H86: -52.75430409 | I86: -47.19079271 | J86: -44.35757286 | K86: 100.6070182 | L86: 132.9946751 | M86: 159.2848993 | N86: 170.7610279 | O86: 130.401656
B87: Present value | D87: =SUM(E87:O87) -> 190.4231126 | E87: =E85 -> 66.53320116 | F87: =F86/'Inputs - actual'!F$32 -> -62.72525392 | G87: =G86/'Inputs - actual'!G$32 -> -50.28649109 | H87: =H86/'Inputs - actual'!H$32 -> -40.39823149 | I87: =I86/'Inputs - actual'!I$32 -> -33.0620577 | J87: =J86/'Inputs - actual'!J$32 -> -28.43207349 | K87: =K86/'Inputs - actual'!K$32 -> 58.99798614 | L87: =L86/'Inputs - actual'!L$32 -> 71.3528484 | M87: =M86/'Inputs - actual'!M$32 -> 78.184348 | N87: =N86/'Inputs - actual'!N$32 -> 76.68353509 | O87: =O86/'Inputs - actual'!O$32 -> 53.57530146
B89: Real return | F89: =F86/'Inputs - actual'!F$14 -> -65.29575942 | G89: =G86/'Inputs - actual'!G$14 -> -54.4924621 | H89: =H86/'Inputs - actual'!H$14 -> -45.57115136 | I89: =I86/'Inputs - actual'!I$14 -> -38.82398195 | J89: =J86/'Inputs - actual'!J$14 -> -34.75531902 | K89: =K86/'Inputs - actual'!K$14 -> 75.07450597 | L89: =L86/'Inputs - actual'!L$14 -> 94.51683263 | M89: =M86/'Inputs - actual'!M$14 -> 107.8102896 | N89: =N86/'Inputs - actual'!N$14 -> 110.0740811 | O89: =O86/'Inputs - actual'!O$14 -> 80.0553049
B90: Present value | D90: =SUM(E90:O90) -> 190.4231126 | E90: =E87 -> 66.53320116 | F90: =F89/'Inputs - actual'!F$36 -> -62.72525392 | G90: =G89/'Inputs - actual'!G$36 -> -50.28649109 | H90: =H89/'Inputs - actual'!H$36 -> -40.39823149 | I90: =I89/'Inputs - actual'!I$36 -> -33.0620577 | J90: =J89/'Inputs - actual'!J$36 -> -28.43207349 | K90: =K89/'Inputs - actual'!K$36 -> 58.99798614 | L90: =L89/'Inputs - actual'!L$36 -> 71.3528484 | M90: =M89/'Inputs - actual'!M$36 -> 78.184348 | N90: =N89/'Inputs - actual'!N$36 -> 76.68353509 | O90: =O89/'Inputs - actual'!O$36 -> 53.57530146
A92: Adjustment for fixed cost of debt | F92: =-(F95*'Inputs - actual'!F$22*'Inputs - actual'!F$24+F82) -> -37.98529412 | G92: =-(G95*'Inputs - actual'!G$22*'Inputs - actual'!G$24+G82) -> -36.84573529 | H92: =-(H95*'Inputs - actual'!H$22*'Inputs - actual'!H$24+H82) -> -35.54368382 | I92: =-(I95*'Inputs - actual'!I$22*'Inputs - actual'!I$24+I82) -> -34.03223842 | J92: =-(J95*'Inputs - actual'!J$22*'Inputs - actual'!J$24+J82) -> -32.2485809 | K92: =-(K95*'Inputs - actual'!K$22*'Inputs - actual'!K$24+K82) -> -30.10581279 | L92: =-(L95*'Inputs - actual'!L$22*'Inputs - actual'!L$24+L82) -> -25.7814478 | M92: =-(M95*'Inputs - actual'!M$22*'Inputs - actual'!M$24+M82) -> -21.11772329 | N92: =-(N95*'Inputs - actual'!N$22*'Inputs - actual'!N$24+N82) -> -15.94920152 | O92: =-(O95*'Inputs - actual'!O$22*'Inputs - actual'!O$24+O82) -> -9.938856043
A94: Actual Asset Base
B95: Opening Asset Base | F95: =E34 -> 3000 | G95: =F98 -> 2910 | H95: 2807.166667 | I95: 2687.795833 | J95: 2546.92625 | K95: 2377.694854 | L95: 2036.165447 | M95: 1667.834128 | N95: 1259.634963 | O95: 784.9503031
B96: Capex | F96: =F$32/'Inputs - forecast'!F$18*'Inputs - actual'!F$14 -> 210 | G96: =G$32/'Inputs - forecast'!G$18*'Inputs - actual'!G$14 -> 220.5 | H96: =H$32/'Inputs - forecast'!H$18*'Inputs - actual'!H$14 -> 231.525 | I96: =I$32/'Inputs - forecast'!I$18*'Inputs - actual'!I$14 -> 243.10125 | J96: =J$32/'Inputs - forecast'!J$18*'Inputs - actual'!J$14 -> 255.2563125 | K96: =K$32/'Inputs - forecast'!K$21*'Inputs - actual'!K$14 -> 134.0095641 | L96: =L$32/'Inputs - forecast'!L$21*'Inputs - actual'!L$14 -> 140.7100423 | M96: =M$32/'Inputs - forecast'!M$21*'Inputs - actual'!M$14 -> 147.7455444 | N96: =N$32/'Inputs - forecast'!N$21*'Inputs - actual'!N$14 -> 155.1328216 | O96: =O$32/'Inputs - forecast'!O$21*'Inputs - actual'!O$14 -> 0
B97: Depreciation | F97: =-F95/F29 -> -300 | G97: -323.3333333 | H97: -350.8958333 | I97: -383.9708333 | J97: -424.4877083 | K97: -475.5389708 | L97: -509.0413618 | M97: -555.9447093 | N97: -629.8174815 | O97: -784.9503031
B98: Closing Asset Base | F98: =SUM(F95:F97) -> 2910 | G98: =SUM(G95:G97) -> 2807.166667 | H98: 2687.795833 | I98: 2546.92625 | J98: 2377.694854 | K98: 2036.165447 | L98: 1667.834128 | M98: 1259.634963 | N98: 784.9503031 | O98: 0
A100: Actual tax
B101: Revenue | F101: =F80 -> 620.7255469 | G101: =G80 -> 651.7618243 | H101: 684.3499155 | I101: 718.5674113 | J101: 754.4957818 | K101: 995.7274107 | L101: 1045.513781 | M101: 1097.78947 | N101: 1152.678944 | O101: 1210.312891
B102: Depreciation | F102: =F97 -> -300 | G102: =G97 -> -323.3333333 | H102: -350.8958333 | I102: -383.9708333 | J102: -424.4877083 | K102: -475.5389708 | L102: -509.0413618 | M102: -555.9447093 | N102: -629.8174815 | O102: -784.9503031
B103: Opex | F103: =F81 -> -105 | G103: -110.25 | H103: -115.7625 | I103: -121.550625 | J103: -127.6281563 | K103: -134.0095641 | L103: -140.7100423 | M103: -147.7455444 | N103: -155.1328216 | O103: -162.8894627
B104: Interest | F104: -61.5 | G104: -59.655 | H104: -57.54691667 | I104: -55.09981458 | J104: -52.21198813 | K104: -48.74274451 | L104: -41.74139167 | M104: -34.19059962 | N104: -25.82251674 | O104: -16.09148121
B105: EBT | F105: =SUM(F101:F104) -> 154.2255469 | G105: =SUM(G101:G104) -> 158.5234909 | H105: 160.1446655 | I105: 157.9461383 | J105: 150.1679291 | K105: 337.4361313 | L105: 354.0209854 | M105: 359.908617 | N105: 341.906124 | O105: 246.381644
B106: Calculated tax | F106: =-F105*'Inputs - forecast'!F35 -> -43.18315314 | G106: =-G105*'Inputs - forecast'!G35 -> -44.38657746 | H106: =-H105*'Inputs - forecast'!H35 -> -44.84050633 | I106: =-I105*'Inputs - forecast'!I35 -> -44.22491873 | J106: =-J105*'Inputs - forecast'!J35 -> -42.04702015 | K106: =-K105*'Inputs - forecast'!K35 -> -94.48211675 | L106: =-L105*'Inputs - forecast'!L35 -> -99.12587592 | M106: =-M105*'Inputs - forecast'!M35 -> -100.7744128 | N106: =-N105*'Inputs - forecast'!N35 -> -95.73371471 | O106: =-O105*'Inputs - forecast'!O35 -> -68.98686032
B107: Deferred tax | F107: =IF(F106>0,F106+E107,0) -> 0 | G107: 0 | H107: 0 | I107: 0 | J107: 0 | K107: 0 | L107: 0 | M107: 0 | N107: 0 | O107: 0
B108: Tax | F108: =IF(F107>0,0,F106+E107) -> -43.18315314 | G108: -44.38657746 | H108: -44.84050633 | I108: -44.22491873 | J108: -42.04702015 | K108: -94.48211675 | L108: -99.12587592 | M108: -100.7744128 | N108: -95.73371471 | O108: -68.98686032
A110: Tax adjustment | E110: NPV
B111: Tax | F111: =F108 -> -43.18315314 | G111: -44.38657746 | H111: -44.84050633 | I111: -44.22491873 | J111: -42.04702015 | K111: -94.48211675 | L111: -99.12587592 | M111: -100.7744128 | N111: -95.73371471 | O111: -68.98686032
B112: NPV of actual tax | E112: =SUM(F112:O112) -> -398.3205533 | F112: =F111/'Inputs - actual'!F$32 -> -39.50776866 | G112: =G111/'Inputs - actual'!G32 -> -37.15249311 | H112: =H111/'Inputs - actual'!H32 -> -34.33799737 | I112: =I111/'Inputs - actual'!I32 -> -30.98415455 | J112: =J111/'Inputs - actual'!J32 -> -26.9510681 | K112: =K111/'Inputs - actual'!K32 -> -55.40622032 | L112: =L111/'Inputs - actual'!L32 -> -53.1819307 | M112: =M111/'Inputs - actual'!M32 -> -49.46471254 | N112: =N111/'Inputs - actual'!N32 -> -42.99107216 | O112: =O111/'Inputs - actual'!O32 -> -28.34313576
B114: Forecast tax adjusted for inflation | F114: =F$10/'Inputs - forecast'!F$18*'Inputs - actual'!F$14 -> -39.8515649 | G114: =G$10/'Inputs - forecast'!G$18*'Inputs - actual'!G$14 -> -37.53176477 | H114: =H$10/'Inputs - forecast'!H$18*'Inputs - actual'!H$14 -> -34.24710984 | I114: =I$10/'Inputs - forecast'!I$18*'Inputs - actual'!I$14 -> -29.64589373 | J114: =J$10/'Inputs - forecast'!J$18*'Inputs - actual'!J$14 -> -23.19103943 | K114: =K$10/'Inputs - forecast'!K$21*'Inputs - actual'!K$14 -> -91.63771652 | L114: =L$10/'Inputs - forecast'!L$21*'Inputs - actual'!L$14 -> -92.1080993 | M114: =M$10/'Inputs - forecast'!M$21*'Inputs - actual'!M$14 -> -89.37134447 | N114: =N$10/'Inputs - forecast'!N$21*'Inputs - actual'!N$14 -> -79.54636949 | O114: =O$10/'Inputs - forecast'!O$21*'Inputs - actual'!O$14 -> -46.99456288
B115: NPV of forecast tax adjusted for inflation | E115: =SUM(F115:O115) -> -331.7873521 | F115: =F114/'Inputs - actual'!F$32 -> -36.45973702 | G115: =G114/'Inputs - actual'!G$32 -> -31.41487161 | H115: =H114/'Inputs - actual'!H$32 -> -26.22577807 | I115: =I114/'Inputs - actual'!I$32 -> -20.77003146 | J115: =J114/'Inputs - actual'!J$32 -> -14.86486512 | K115: =K114/'Inputs - actual'!K$32 -> -53.73820661 | L115: =L114/'Inputs - actual'!L$32 -> -49.41682995 | M115: =M114/'Inputs - actual'!M$32 -> -43.86756263 | N115: =N114/'Inputs - actual'!N$32 -> -35.72183238 | O115: =O114/'Inputs - actual'!O$32 -> -19.30763727
B116: Difference | E116: =E115-E112 -> 66.53320116
A118: Real revenue | F118: =F80/'Inputs - actual'!F$14 -> 591.1671875 | G118: =G80/'Inputs - actual'!G$14 -> 591.1671875 | H118: =H80/'Inputs - actual'!H$14 -> 591.1671875 | I118: =I80/'Inputs - actual'!I$14 -> 591.1671875 | J118: =J80/'Inputs - actual'!J$14 -> 591.1671875 | K118: =K80/'Inputs - actual'!K$14 -> 743.0271247 | L118: =L80/'Inputs - actual'!L$14 -> 743.0271247 | M118: =M80/'Inputs - actual'!M$14 -> 743.0271247 | N118: =N80/'Inputs - actual'!N$14 -> 743.0271247 | O118: =O80/'Inputs - actual'!O$14 -> 743.0271247

Sheet EDB & GDB (incl. CoD adj)
A1: Calculation
A2: This model washes-up revenue, including for the first year of a regulatory period, and the RAB is indexed (similar to the GDBs and EDBs, except that it has no wash-up lag/ lag in CPI index used). An adjustment is made to revenue wash-up for the overcompensation for inflation on fixed cost of debt.
A4: Forecast | D4: Return over forecast period | E4: ='Inputs - forecast'!E2 -> 2020-06-30 | F4: ='Inputs - forecast'!F2 -> 2021-06-30 | G4: ='Inputs - forecast'!G2 -> 2022-06-30 | H4: ='Inputs - forecast'!H2 -> 2023-06-30 | I4: ='Inputs - forecast'!I2 -> 2024-06-30 | J4: ='Inputs - forecast'!J2 -> 2025-06-30 | K4: ='Inputs - forecast'!K2 -> 2026-06-30 | L4: ='Inputs - forecast'!L2 -> 2027-06-30 | M4: ='Inputs - forecast'!M2 -> 2028-06-30 | N4: ='Inputs - forecast'!N2 -> 2029-06-30 | O4: ='Inputs - forecast'!O2 -> 2030-06-30
A5: Building blocks
B6: Revenue | F6: =K59 -> 602.9905313 | G6: =F6*(1+'Inputs - forecast'!G19) -> 615.0503419 | H6: =G6*(1+'Inputs - forecast'!H19) -> 627.3513488 | I6: =H6*(1+'Inputs - forecast'!I19) -> 639.8983757 | J6: =I6*(1+'Inputs - forecast'!J19) -> 652.6963432 | K6: =P66 -> 967.2780561 | L6: =K6*(1+'Inputs - forecast'!L19) -> 986.6236172 | M6: =L6*(1+'Inputs - forecast'!M19) -> 1006.35609 | N6: =M6*(1+'Inputs - forecast'!N19) -> 1026.483211 | O6: =N6*(1+'Inputs - forecast'!O19) -> 1047.012876
B7: Return on debt | F7: =-F$31*'Inputs - forecast'!F$34*'Inputs - forecast'!F$32 -> -62.73 | G7: =-G$31*'Inputs - forecast'!G$34*'Inputs - forecast'!G$32 -> -61.85178 | H7: =-H$31*'Inputs - forecast'!H$34*'Inputs - forecast'!H$32 -> -60.4299 | I7: =-I$31*'Inputs - forecast'!I$34*'Inputs - forecast'!I$32 -> -58.37165761 | J7: =-J$31*'Inputs - forecast'!J$34*'Inputs - forecast'!J$32 -> -55.56023766 | K7: =-K$31*'Inputs - forecast'!K$34*'Inputs - forecast'!K$32 -> -59.92936573 | L7: =-L$31*'Inputs - forecast'!L$34*'Inputs - forecast'!L$32 -> -51.62444128 | M7: =-M$31*'Inputs - forecast'!M$34*'Inputs - forecast'!M$32 -> -42.269218 | N7: =-N$31*'Inputs - forecast'!N$34*'Inputs - forecast'!N$32 -> -31.57511907 | O7: =-O$31*'Inputs - forecast'!O$34*'Inputs - forecast'!O$32 -> -18.99200257
B8: Return on equity | F8: =-F$31*(1-'Inputs - forecast'!F$34)*'Inputs - forecast'!F$31 -> -126.378 | G8: =-G$31*(1-'Inputs - forecast'!G$34)*'Inputs - forecast'!G$31 -> -124.608708 | H8: =-H$31*(1-'Inputs - forecast'!H$34)*'Inputs - forecast'!H$31 -> -121.74414 | I8: =-I$31*(1-'Inputs - forecast'!I$34)*'Inputs - forecast'!I$31 -> -117.5975346 | J8: =-J$31*(1-'Inputs - forecast'!J$34)*'Inputs - forecast'!J$31 -> -111.933552 | K8: =-K$31*(1-'Inputs - forecast'!K$34)*'Inputs - forecast'!K$31 -> -120.7357466 | L8: =-L$31*(1-'Inputs - forecast'!L$34)*'Inputs - forecast'!L$31 -> -104.0043622 | M8: =-M$31*(1-'Inputs - forecast'!M$34)*'Inputs - forecast'!M$31 -> -85.15700992 | N8: =-N$31*(1-'Inputs - forecast'!N$34)*'Inputs - forecast'!N$31 -> -63.61231304 | O8: =-O$31*(1-'Inputs - forecast'!O$34)*'Inputs - forecast'!O$31 -> -38.26193688
B9: Inflationary gain | F9: =('Inputs - forecast'!F37-'Inputs - forecast'!F38)*F31 -> 63.708 | G9: =('Inputs - forecast'!G37-'Inputs - forecast'!G38)*G31 -> 62.816088 | H9: =('Inputs - forecast'!H37-'Inputs - forecast'!H38)*H31 -> 61.37204 | I9: =('Inputs - forecast'!I37-'Inputs - forecast'!I38)*I31 -> 59.28170832 | J9: =('Inputs - forecast'!J37-'Inputs - forecast'!J38)*J31 -> 56.42645657 | K9: =('Inputs - forecast'!K37-'Inputs - forecast'!K38)*K31 -> 60.86370209 | L9: =('Inputs - forecast'!L37-'Inputs - forecast'!L38)*L31 -> 52.42929866 | M9: =('Inputs - forecast'!M37-'Inputs - forecast'!M38)*M31 -> 42.92822159 | N9: =('Inputs - forecast'!N37-'Inputs - forecast'!N38)*N31 -> 32.06739495 | O9: =('Inputs - forecast'!O37-'Inputs - forecast'!O38)*O31 -> 19.28809979 | Q9: RAB indexation is performed on opening RAB. The corresponding revenue offsets are therefore adjusted to year-end values for building blocks.
B10: Tax | F10: =F50 -> -38.71294876 | G10: =G50 -> -35.41773067 | H10: -31.39471499 | I10: -26.40024993 | J10: -20.06201625 | K10: -89.01949605 | L10: -86.91996963 | M10: -81.92772765 | N10: -70.83760247 | O10: -40.65387784
B11: Opex | F11: =-'Inputs - forecast'!F10 -> -102 | G11: =-'Inputs - forecast'!G10 -> -104.04 | H11: =-'Inputs - forecast'!H10 -> -106.1208 | I11: =-'Inputs - forecast'!I10 -> -108.243216 | J11: =-'Inputs - forecast'!J10 -> -110.4080803 | K11: =-'Inputs - forecast'!K10 -> -130.1807194 | L11: =-'Inputs - forecast'!L10 -> -132.7843338 | M11: =-'Inputs - forecast'!M10 -> -135.4400204 | N11: =-'Inputs - forecast'!N10 -> -138.1488208 | O11: =-'Inputs - forecast'!O10 -> -140.9117973
B12: Depreciation | F12: =F33 -> -306 | G12: =G33 -> -335.24 | H12: -368.475 | I12: -406.7711331 | J12: -451.7092492 | K12: -584.6767388 | L12: -629.5663571 | M12: -687.3043577 | N12: -770.1248553 | O12: -926.4391496
B13: Net revenue | F13: =SUM(F6:F12) -> 30.87758253 | G13: 16.70821125 | H13: 0.5588337734 | I13: -18.20370722 | J13: -40.55033562 | K13: 43.5996916 | L13: 34.15345195 | M13: 17.18597745 | N13: -15.7481044 | O13: -98.95778883
B14: Present value | F14: =F13/'Inputs - forecast'!F$42 -> 29.08041301 | G14: =G13/'Inputs - forecast'!G$42 -> 14.81987415 | H14: =H13/'Inputs - forecast'!H$42 -> 0.4668254043 | I14: =I13/'Inputs - forecast'!I$42 -> -14.32151486 | J14: =J13/'Inputs - forecast'!J$42 -> -30.04559771 | K14: =K13/'Inputs - forecast'!K$42 -> 30.42475511 | L14: =L13/'Inputs - forecast'!L$42 -> 22.44582425 | M14: =M13/'Inputs - forecast'!M$42 -> 10.63732601 | N14: =N13/'Inputs - forecast'!N$42 -> -9.180023569 | O14: =O13/'Inputs - forecast'!O$42 -> -54.3278818
B15: Sum of present values | O15: =SUM(F14:O14) -> 8.73967565e-13
A17: Regulatory cashflows
B18: Revenue | F18: =F6 -> 602.9905313 | G18: =G6 -> 615.0503419 | H18: 627.3513488 | I18: 639.8983757 | J18: 652.6963432 | K18: 967.2780561 | L18: 986.6236172 | M18: 1006.35609 | N18: 1026.483211 | O18: 1047.012876
B19: Opex | F19: =-'Inputs - forecast'!F$10 -> -102 | G19: =-'Inputs - forecast'!G$10 -> -104.04 | H19: =-'Inputs - forecast'!H$10 -> -106.1208 | I19: =-'Inputs - forecast'!I$10 -> -108.243216 | J19: =-'Inputs - forecast'!J$10 -> -110.4080803 | K19: =-'Inputs - forecast'!K$10 -> -130.1807194 | L19: =-'Inputs - forecast'!L$10 -> -132.7843338 | M19: =-'Inputs - forecast'!M$10 -> -135.4400204 | N19: =-'Inputs - forecast'!N$10 -> -138.1488208 | O19: =-'Inputs - forecast'!O$10 -> -140.9117973
B20: Tax | F20: =F10 -> -38.71294876 | G20: =G10 -> -35.41773067 | H20: -31.39471499 | I20: -26.40024993 | J20: -20.06201625 | K20: -89.01949605 | L20: -86.91996963 | M20: -81.92772765 | N20: -70.83760247 | O20: -40.65387784
B21: Capex | F21: =-'Inputs - forecast'!F$11 -> -204 | G21: =-'Inputs - forecast'!G$11 -> -208.08 | H21: =-'Inputs - forecast'!H$11 -> -212.2416 | I21: =-'Inputs - forecast'!I$11 -> -216.486432 | J21: =-'Inputs - forecast'!J$11 -> -220.8161606 | K21: =-'Inputs - forecast'!K$11 -> -130.1807194 | L21: =-'Inputs - forecast'!L$11 -> -132.7843338 | M21: =-'Inputs - forecast'!M$11 -> -135.4400204 | N21: =-'Inputs - forecast'!N$11 -> -138.1488208 | O21: =-'Inputs - forecast'!O$11 -> 0
B22: Opening RAB | E22: =-'Inputs - forecast'!E$12 -> -3000
B23: Closing RAB | J23: =-(J36-J34) -> -386.7000384 | O23: =O34 -> 0
B24: Sum | E24: =SUM(E18:E23) -> -3000 | F24: =SUM(F18:F23) -> 258.2775825 | G24: 267.5126112 | H24: 277.5942338 | I24: 288.7684778 | J24: -85.2899524 | K24: 617.8971213 | L24: 634.13498 | M24: 653.548321 | N24: 679.3479672 | O24: 865.4472005
B25: Present value | E25: =E24/'Inputs - forecast'!E$42 -> -3000 | F25: =F24/'Inputs - forecast'!F$42 -> 243.2450391 | G25: =G24/'Inputs - forecast'!G$42 -> 237.2787351 | H25: =H24/'Inputs - forecast'!H$42 -> 231.8901373 | I25: =I24/'Inputs - forecast'!I$42 -> 227.1846056 | J25: =J24/'Inputs - forecast'!J$42 -> -63.19522538 | K25: =K24/'Inputs - forecast'!K$42 -> 431.1812288 | L25: =L24/'Inputs - forecast'!L$42 -> 416.7567699 | M25: =M24/'Inputs - forecast'!M$42 -> 404.5162153 | N25: =N24/'Inputs - forecast'!N$42 -> 396.0114939 | O25: =O24/'Inputs - forecast'!O$42 -> 475.1310004
B26: Sum of present values | O26: =SUM(E25:O25) -> 0
A28: Regulatory Asset Base
B29: Useful lives | F29: 10 | G29: =F29-1 -> 9 | H29: =G29-1 -> 8 | I29: 7 | J29: 6 | K29: 5 | L29: 4 | M29: 3 | N29: 2 | O29: 1
B31: Opening RAB | F31: =E34*(1+'Inputs - forecast'!F$19) -> 3060 | G31: =F34*(1+'Inputs - forecast'!G$19) -> 3017.16 | H31: =G34*(1+'Inputs - forecast'!H$19) -> 2947.8 | I31: =H34*(1+'Inputs - forecast'!I$19) -> 2847.397932 | J31: =I34*(1+'Inputs - forecast'!J$19) -> 2710.255495 | K31: =J36*(1+'Inputs - forecast'!K$19) -> 2923.383694 | L31: =K34*(1+'Inputs - forecast'!L$19) -> 2518.265428 | M31: =L34*(1+'Inputs - forecast'!M$19) -> 2061.913073 | N31: =M34*(1+'Inputs - forecast'!N$19) -> 1540.249711 | O31: =N34*(1+'Inputs - forecast'!O$19) -> 926.4391496 | Q31: Opening RAB balance indexed
B32: Capex | F32: =-F21 -> 204 | G32: 208.08 | H32: 212.2416 | I32: 216.486432 | J32: 220.8161606 | K32: 130.1807194 | L32: 132.7843338 | M32: 135.4400204 | N32: 138.1488208 | O32: 0
B33: Depreciation | F33: =-F31/F29 -> -306 | G33: -335.24 | H33: -368.475 | I33: -406.7711331 | J33: -451.7092492 | K33: -584.6767388 | L33: -629.5663571 | M33: -687.3043577 | N33: -770.1248553 | O33: -926.4391496
B34: Closing RAB | E34: =-E22 -> 3000 | F34: =SUM(F31:F33) -> 2958 | G34: 2890 | H34: 2791.5666 | I34: 2657.113231 | J34: 2479.362407 | K34: 2468.887675 | L34: 2021.483405 | M34: 1510.048736 | N34: 908.2736761 | O34: 0
B36: RAB adjusted for actual inflation | J36: =J34/'Inputs - forecast'!J18*'Inputs - actual'!J14 -> 2866.062445
A38: Tax asset base | F38: =F29 -> 10 | G38: 9 | H38: 8 | I38: 7 | J38: 6 | K38: 5 | L38: 4 | M38: 3 | N38: 2 | O38: 1
B39: Opening balance | F39: =E42 -> 3000 | G39: =F42 -> 2904 | H39: =G42 -> 2789.413333 | I39: 2652.978267 | J39: 2490.467803 | K39: 2296.205997 | L39: 1967.145517 | M39: 1608.143471 | N39: 1207.535668 | O39: 741.9166549
B40: Capex | F40: =-F21 -> 204 | G40: 208.08 | H40: 212.2416 | I40: 216.486432 | J40: 220.8161606 | K40: 130.1807194 | L40: 132.7843338 | M40: 135.4400204 | N40: 138.1488208 | O40: 0
B41: Depreciation | F41: =-F39/F38 -> -300 | G41: =-G39/G38 -> -322.6666667 | H41: -348.6766667 | I41: -378.9968952 | J41: -415.0779672 | K41: -459.2411994 | L41: -491.7863792 | M41: -536.0478238 | N41: -603.767834 | O41: -741.9166549
B42: Closing balance | E42: =E34 -> 3000 | F42: =SUM(F39:F41) -> 2904 | G42: =SUM(G39:G41) -> 2789.413333 | H42: =SUM(H39:H41) -> 2652.978267 | I42: 2490.467803 | J42: 2296.205997 | K42: 1967.145517 | L42: 1608.143471 | M42: 1207.535668 | N42: 741.9166549 | O42: 0
A44: Regulatory tax
B45: Revenue | F45: =F6 -> 602.9905313 | G45: =G6 -> 615.0503419 | H45: 627.3513488 | I45: 639.8983757 | J45: 652.6963432 | K45: 967.2780561 | L45: 986.6236172 | M45: 1006.35609 | N45: 1026.483211 | O45: 1047.012876
B46: Depreciation | F46: =F41 -> -300 | G46: -322.6666667 | H46: -348.6766667 | I46: -378.9968952 | J46: -415.0779672 | K46: -459.2411994 | L46: -491.7863792 | M46: -536.0478238 | N46: -603.767834 | O46: -741.9166549
B47: Opex | F47: =F11 -> -102 | G47: =G11 -> -104.04 | H47: -106.1208 | I47: -108.243216 | J47: -110.4080803 | K47: -130.1807194 | L47: -132.7843338 | M47: -135.4400204 | N47: -138.1488208 | O47: -140.9117973
B48: Notional interest | F48: =-'Inputs - forecast'!F$32*'Inputs - forecast'!F34*F31 -> -62.73 | G48: =-'Inputs - forecast'!G$32*'Inputs - forecast'!G34*G31 -> -61.85178 | H48: =-'Inputs - forecast'!H$32*'Inputs - forecast'!H34*H31 -> -60.4299 | I48: =-'Inputs - forecast'!I$32*'Inputs - forecast'!I34*I31 -> -58.37165761 | J48: =-'Inputs - forecast'!J$32*'Inputs - forecast'!J34*J31 -> -55.56023766 | K48: =-'Inputs - forecast'!K$32*'Inputs - forecast'!K34*K31 -> -59.92936573 | L48: =-'Inputs - forecast'!L$32*'Inputs - forecast'!L34*L31 -> -51.62444128 | M48: =-'Inputs - forecast'!M$32*'Inputs - forecast'!M34*M31 -> -42.269218 | N48: =-'Inputs - forecast'!N$32*'Inputs - forecast'!N34*N31 -> -31.57511907 | O48: =-'Inputs - forecast'!O$32*'Inputs - forecast'!O34*O31 -> -18.99200257
B49: EBT | F49: =SUM(F45:F48) -> 138.2605313 | G49: =SUM(G45:G48) -> 126.4918953 | H49: 112.1239821 | I49: 94.28660689 | J49: 71.65005803 | K49: 317.9267716 | L49: 310.4284629 | M49: 292.5990273 | N49: 252.9914374 | O49: 145.1924209
B50: Calculated tax | F50: =-F49*'Inputs - forecast'!E35 -> -38.71294876 | G50: =-G49*'Inputs - forecast'!F35 -> -35.41773067 | H50: =-H49*'Inputs - forecast'!G35 -> -31.39471499 | I50: =-I49*'Inputs - forecast'!H35 -> -26.40024993 | J50: =-J49*'Inputs - forecast'!I35 -> -20.06201625 | K50: =-K49*'Inputs - forecast'!J35 -> -89.01949605 | L50: =-L49*'Inputs - forecast'!K35 -> -86.91996963 | M50: =-M49*'Inputs - forecast'!L35 -> -81.92772765 | N50: =-N49*'Inputs - forecast'!M35 -> -70.83760247 | O50: =-O49*'Inputs - forecast'!N35 -> -40.65387784
B51: Deferred tax | F51: =IF(F50>0,F50,0) -> 0 | G51: =IF(G50>0,G50,0) -> 0 | H51: =IF(H50>0,H50,0) -> 0 | I51: =IF(I50>0,I50,0) -> 0 | J51: =IF(J50>0,J50+I51,0) -> 0 | K51: 0 | L51: 0 | M51: 0 | N51: 0 | O51: 0
B52: Tax | F52: =IF(F51>0,0,F50+E51) -> -38.71294876 | G52: -35.41773067 | H52: -31.39471499 | I52: -26.40024993 | J52: -20.06201625 | K52: -89.01949605 | L52: -86.91996963 | M52: -81.92772765 | N52: -70.83760247 | O52: -40.65387784
A54: Reg Period 1
A55: Calculation of revenue | K55: Sum
B56: Present value of revenue | F56: =F6/'Inputs - forecast'!F$42 -> 567.8946424 | G56: =G6/'Inputs - forecast'!G$42 -> 545.5382701 | H56: =H6/'Inputs - forecast'!H$42 -> 524.0620037 | I56: =I6/'Inputs - forecast'!I$42 -> 503.4311959 | J56: =J6/'Inputs - forecast'!J$42 -> 483.6125634 | K56: =SUM(F56:J56) -> 2624.538676
B57: Present value of cost | F57: =SUM(F7:F12)/'Inputs - forecast'!F$42 -> -538.8142294 | G57: =SUM(G7:G12)/'Inputs - forecast'!G$42 -> -530.718396 | H57: =SUM(H7:H12)/'Inputs - forecast'!H$42 -> -523.5951783 | I57: =SUM(I7:I12)/'Inputs - forecast'!I$42 -> -517.7527107 | J57: =SUM(J7:J12)/'Inputs - forecast'!J$42 -> -513.6581611 | K57: =SUM(F57:J57) -> -2624.538676
B58: Difference | K58: =SUM(K56:K57) -> 0
B59: Revenue | K59: 602.9905313
A61: Reg Period 2
A62: Calculation of revenue | P62: Sum
B63: Present value of revenue | K63: =K6/'Inputs - forecast'!K$42 -> 674.9863795 | L63: =L6/'Inputs - forecast'!L$42 -> 648.4141148 | M63: =M6/'Inputs - forecast'!M$42 -> 622.8879234 | N63: =N6/'Inputs - forecast'!N$42 -> 598.3666245 | O63: =O6/'Inputs - forecast'!O$42 -> 574.8106583 | P63: =SUM(K63:O63) -> 3119.465701
B64: Present value of cost | K64: =SUM(K7:K12)/'Inputs - forecast'!K$42 -> -644.5616244 | L64: =SUM(L7:L12)/'Inputs - forecast'!L$42 -> -625.9682906 | M64: =SUM(M7:M12)/'Inputs - forecast'!M$42 -> -612.2505974 | N64: =SUM(N7:N12)/'Inputs - forecast'!N$42 -> -607.5466481 | O64: =SUM(O7:O12)/'Inputs - forecast'!O$42 -> -629.1385401 | P64: =SUM(K64:O64) -> -3119.465701
B65: Difference | P65: =SUM(P63:P64) -> 0
B66: Revenue | P66: 967.2780561
A68: Actual
A69: Actual return (cashflows) with fixed cost of debt
B70: Revenue | F70: =F$6/'Inputs - forecast'!F$18*'Inputs - actual'!F$14+F92 -> 582.7402528 | G70: =G$6/'Inputs - forecast'!G$18*'Inputs - actual'!G$14+G92 -> 614.916089 | H70: =H$6/'Inputs - forecast'!H$18*'Inputs - actual'!H$14+H92 -> 648.8062317 | I70: =I$6/'Inputs - forecast'!I$18*'Inputs - actual'!I$14+I92 -> 684.5351728 | J70: =J$6/'Inputs - forecast'!J$18*'Inputs - actual'!J$14+J92 -> 722.2472009 | K70: =K$6/'Inputs - forecast'!K$21*'Inputs - actual'!K$14+K92 -> 965.6215979 | L70: =L$6/'Inputs - forecast'!L$21*'Inputs - actual'!L$14+L92 -> 1019.732333 | M70: =M$6/'Inputs - forecast'!M$21*'Inputs - actual'!M$14+M92 -> 1076.671747 | N70: =N$6/'Inputs - forecast'!N$21*'Inputs - actual'!N$14+N92 -> 1136.729742 | O70: =O$6/'Inputs - forecast'!O$21*'Inputs - actual'!O$14+O92 -> 1200.374035 | Q70: Revenue wash-up, including year 1 of each regulatory period, with adjustment for the overcompensation for inflation on fixed cost of debt.
B71: Opex | F71: =F$11/'Inputs - forecast'!F$18*'Inputs - actual'!F$14 -> -105 | G71: =G$11/'Inputs - forecast'!G$18*'Inputs - actual'!G$14 -> -110.25 | H71: =H$11/'Inputs - forecast'!H$18*'Inputs - actual'!H$14 -> -115.7625 | I71: =I$11/'Inputs - forecast'!I$18*'Inputs - actual'!I$14 -> -121.550625 | J71: =J$11/'Inputs - forecast'!J$18*'Inputs - actual'!J$14 -> -127.6281563 | K71: =K$11/'Inputs - forecast'!K$21*'Inputs - actual'!K$14 -> -134.0095641 | L71: =L$11/'Inputs - forecast'!L$21*'Inputs - actual'!L$14 -> -140.7100423 | M71: =M$11/'Inputs - forecast'!M$21*'Inputs - actual'!M$14 -> -147.7455444 | N71: =N$11/'Inputs - forecast'!N$21*'Inputs - actual'!N$14 -> -155.1328216 | O71: =O$11/'Inputs - forecast'!O$21*'Inputs - actual'!O$14 -> -162.8894627
B72: Capex | F72: =-F96-F92 -> -172.0147059 | G72: =-G96-G92 -> -183.6542647 | H72: -195.9813162 | I72: -209.0690116 | J72: -223.0077316 | K72: -103.9037513 | L72: -114.9285945 | M72: -126.6278211 | N72: -139.1836201 | O72: 9.938856043
B73: Tax | E73: =E116 -> 13.21472964 | F73: =F108 -> -32.54727079 | G73: =G108 -> -34.06977158 | H73: -34.88827486 | I73: -34.69589198 | J73: -33.0174175 | K73: -86.05248917 | L73: -91.90707053 | M73: -94.86145024 | N73: -91.26793829 | O73: -66.20398063
B74: Nominal IRR | D74: =IRR(E74:O74,0.05) -> 0.09302941176 | E74: =-E34+SUM(E70:E73) -> -2986.78527 | F74: =SUM(F70:F73) -> 273.1782761 | G74: 286.9420527 | H74: 302.1741406 | I74: 319.2196443 | J74: 338.5938956 | K74: 641.6557934 | L74: 672.1866261 | M74: 707.4369313 | N74: 751.1453623 | O74: 981.2194477
B76: Real IRR | D76: =IRR(E76:O76,0.05) -> 0.04098039216 | E76: =E74 -> -2986.78527 | F76: =F74/'Inputs - actual'!F$14 -> 260.1697868 | G76: =G74/'Inputs - actual'!G$14 -> 260.2649004 | H76: =H74/'Inputs - actual'!H$14 -> 261.029384 | I76: =I74/'Inputs - actual'!I$14 -> 262.6227913 | J76: =J74/'Inputs - actual'!J$14 -> 265.297177 | K76: =K74/'Inputs - actual'!K$14 -> 478.8134324 | L76: =L74/'Inputs - actual'!L$14 -> 477.7104856 | M76: =M74/'Inputs - actual'!M$14 -> 478.8211612 | N76: =N74/'Inputs - actual'!N$14 -> 484.1949979 | O76: =O74/'Inputs - actual'!O$14 -> 602.3836235
B77: check to inputs | D77: =D76-'Inputs - actual'!P28 -> -2.031708135e-13
A79: Actual return (building blocks) with fixed cost of debt
B80: Revenue | F80: =F70 -> 582.7402528 | G80: =G70 -> 614.916089 | H80: 648.8062317 | I80: 684.5351728 | J80: 722.2472009 | K80: 965.6215979 | L80: 1019.732333 | M80: 1076.671747 | N80: 1136.729742 | O80: 1200.374035
B81: Opex | F81: =F71 -> -105 | G81: -110.25 | H81: -115.7625 | I81: -121.550625 | J81: -127.6281563 | K81: -134.0095641 | L81: -140.7100423 | M81: -147.7455444 | N81: -155.1328216 | O81: -162.8894627
B82: Return on debt | F82: =-'Inputs - forecast'!F$32*'Inputs - forecast'!F$34*F95 -> -61.5 | G82: =-'Inputs - forecast'!G$32*'Inputs - forecast'!G$34*G95 -> -59.655 | H82: =-'Inputs - forecast'!H$32*'Inputs - forecast'!H$34*H95 -> -57.54691667 | I82: =-'Inputs - forecast'!I$32*'Inputs - forecast'!I$34*I95 -> -55.09981458 | J82: =-'Inputs - forecast'!J$32*'Inputs - forecast'!J$34*J95 -> -52.21198813 | K82: =-'Inputs - forecast'!K$32*'Inputs - forecast'!K$34*K95 -> -48.74274451 | L82: =-'Inputs - forecast'!L$32*'Inputs - forecast'!L$34*L95 -> -41.74139167 | M82: =-'Inputs - forecast'!M$32*'Inputs - forecast'!M$34*M95 -> -34.19059962 | N82: =-'Inputs - forecast'!N$32*'Inputs - forecast'!N$34*N95 -> -25.82251674 | O82: =-'Inputs - forecast'!O$32*'Inputs - forecast'!O$34*O95 -> -16.09148121 | Q82: Assumes fixed cost of debt
B83: Return on equity | F83: =-F95*'Inputs - actual'!F$21*(1-'Inputs - actual'!F$24) -> -179.6029412 | G83: =-G95*'Inputs - actual'!G$21*(1-'Inputs - actual'!G$24) -> -174.2148529 | H83: =-H95*'Inputs - actual'!H$21*(1-'Inputs - actual'!H$24) -> -168.0584632 | I83: =-I95*'Inputs - actual'!I$21*(1-'Inputs - actual'!I$24) -> -160.9120123 | J83: =-J95*'Inputs - actual'!J$21*(1-'Inputs - actual'!J$24) -> -152.4784818 | K83: =-K95*'Inputs - actual'!K$21*(1-'Inputs - actual'!K$24) -> -142.3469963 | L83: =-L95*'Inputs - actual'!L$21*(1-'Inputs - actual'!L$24) -> -121.9004344 | M83: =-M95*'Inputs - actual'!M$21*(1-'Inputs - actual'!M$24) -> -99.84930492 | N83: =-N95*'Inputs - actual'!N$21*(1-'Inputs - actual'!N$24) -> -75.41138138 | O83: =-O95*'Inputs - actual'!O$21*(1-'Inputs - actual'!O$24) -> -46.9931277
B84: Depreciation | F84: =F97 -> -300 | G84: =G97 -> -323.3333333 | H84: -350.8958333 | I84: -383.9708333 | J84: -424.4877083 | K84: -475.5389708 | L84: -509.0413618 | M84: -555.9447093 | N84: -629.8174815 | O84: -784.9503031
B85: Tax | E85: =E73 -> 13.21472964 | F85: =F108 -> -32.54727079 | G85: =G108 -> -34.06977158 | H85: -34.88827486 | I85: -34.69589198 | J85: -33.0174175 | K85: -86.05248917 | L85: -91.90707053 | M85: -94.86145024 | N85: -91.26793829 | O85: -66.20398063
B86: Nominal return | F86: =SUM(F80:F85) -> -95.90995916 | G86: -86.60686888 | H86: -78.34575644 | I86: -71.69400437 | J86: -67.57655111 | K86: 78.93083296 | L86: 114.4320327 | M86: 144.0801385 | N86: 159.2776028 | O86: 123.2456796
B87: Present value | D87: =SUM(E87:O87) -> 2.131628207e-13 | E87: =E85 -> 13.21472964 | F87: =F86/'Inputs - actual'!F$32 -> -87.74691525 | G87: =G86/'Inputs - actual'!G$32 -> -72.49175952 | H87: =H86/'Inputs - actual'!H$32 -> -59.99567352 | I87: =I86/'Inputs - actual'!I$32 -> -50.22910557 | J87: =J86/'Inputs - actual'!J$32 -> -43.31484668 | K87: =K86/'Inputs - actual'!K$32 -> 46.28663361 | L87: =L86/'Inputs - actual'!L$32 -> 61.39382253 | M87: =M86/'Inputs - actual'!M$32 -> 70.72115273 | N87: =N86/'Inputs - actual'!N$32 -> 71.52668143 | O87: =O86/'Inputs - actual'!O$32 -> 50.63528059
B89: Real return | F89: =F86/'Inputs - actual'!F$14 -> -91.34281825 | G89: =G86/'Inputs - actual'!G$14 -> -78.55498311 | H89: =H86/'Inputs - actual'!H$14 -> -67.6780101 | I89: =I86/'Inputs - actual'!I$14 -> -58.98283483 | J89: =J86/'Inputs - actual'!J$14 -> -52.94799603 | K89: =K86/'Inputs - actual'!K$14 -> 58.89940282 | L89: =L86/'Inputs - actual'!L$14 -> 81.32470923 | M89: =M86/'Inputs - actual'!M$14 -> 97.51910905 | N89: =N86/'Inputs - actual'!N$14 -> 102.6717629 | O89: =O86/'Inputs - actual'!O$14 -> 75.66215617
B90: Present value | D90: =SUM(E90:O90) -> 1.278976924e-13 | E90: =E87 -> 13.21472964 | F90: =F89/'Inputs - actual'!F$36 -> -87.74691525 | G90: =G89/'Inputs - actual'!G$36 -> -72.49175952 | H90: =H89/'Inputs - actual'!H$36 -> -59.99567352 | I90: =I89/'Inputs - actual'!I$36 -> -50.22910557 | J90: =J89/'Inputs - actual'!J$36 -> -43.31484668 | K90: =K89/'Inputs - actual'!K$36 -> 46.28663361 | L90: =L89/'Inputs - actual'!L$36 -> 61.39382253 | M90: =M89/'Inputs - actual'!M$36 -> 70.72115273 | N90: =N89/'Inputs - actual'!N$36 -> 71.52668143 | O90: =O89/'Inputs - actual'!O$36 -> 50.63528059
A92: Adjustment for fixed cost of debt | F92: =-(F95*'Inputs - actual'!F$22*'Inputs - actual'!F$24+F82) -> -37.98529412 | G92: =-(G95*'Inputs - actual'!G$22*'Inputs - actual'!G$24+G82) -> -36.84573529 | H92: =-(H95*'Inputs - actual'!H$22*'Inputs - actual'!H$24+H82) -> -35.54368382 | I92: =-(I95*'Inputs - actual'!I$22*'Inputs - actual'!I$24+I82) -> -34.03223842 | J92: =-(J95*'Inputs - actual'!J$22*'Inputs - actual'!J$24+J82) -> -32.2485809 | K92: =-(K95*'Inputs - actual'!K$22*'Inputs - actual'!K$24+K82) -> -30.10581279 | L92: =-(L95*'Inputs - actual'!L$22*'Inputs - actual'!L$24+L82) -> -25.7814478 | M92: =-(M95*'Inputs - actual'!M$22*'Inputs - actual'!M$24+M82) -> -21.11772329 | N92: =-(N95*'Inputs - actual'!N$22*'Inputs - actual'!N$24+N82) -> -15.94920152 | O92: =-(O95*'Inputs - actual'!O$22*'Inputs - actual'!O$24+O82) -> -9.938856043
A94: Actual Asset Base
B95: Opening Asset Base | F95: =E34 -> 3000 | G95: =F98 -> 2910 | H95: 2807.166667 | I95: 2687.795833 | J95: 2546.92625 | K95: 2377.694854 | L95: 2036.165447 | M95: 1667.834128 | N95: 1259.634963 | O95: 784.9503031
B96: Capex | F96: =F$32/'Inputs - forecast'!F$18*'Inputs - actual'!F$14 -> 210 | G96: =G$32/'Inputs - forecast'!G$18*'Inputs - actual'!G$14 -> 220.5 | H96: =H$32/'Inputs - forecast'!H$18*'Inputs - actual'!H$14 -> 231.525 | I96: =I$32/'Inputs - forecast'!I$18*'Inputs - actual'!I$14 -> 243.10125 | J96: =J$32/'Inputs - forecast'!J$18*'Inputs - actual'!J$14 -> 255.2563125 | K96: =K$32/'Inputs - forecast'!K$21*'Inputs - actual'!K$14 -> 134.0095641 | L96: =L$32/'Inputs - forecast'!L$21*'Inputs - actual'!L$14 -> 140.7100423 | M96: =M$32/'Inputs - forecast'!M$21*'Inputs - actual'!M$14 -> 147.7455444 | N96: =N$32/'Inputs - forecast'!N$21*'Inputs - actual'!N$14 -> 155.1328216 | O96: =O$32/'Inputs - forecast'!O$21*'Inputs - actual'!O$14 -> 0
B97: Depreciation | F97: =-F95/F29 -> -300 | G97: -323.3333333 | H97: -350.8958333 | I97: -383.9708333 | J97: -424.4877083 | K97: -475.5389708 | L97: -509.0413618 | M97: -555.9447093 | N97: -629.8174815 | O97: -784.9503031
B98: Closing Asset Base | F98: =SUM(F95:F97) -> 2910 | G98: =SUM(G95:G97) -> 2807.166667 | H98: 2687.795833 | I98: 2546.92625 | J98: 2377.694854 | K98: 2036.165447 | L98: 1667.834128 | M98: 1259.634963 | N98: 784.9503031 | O98: 0
A100: Actual tax
B101: Revenue | F101: =F80 -> 582.7402528 | G101: =G80 -> 614.916089 | H101: 648.8062317 | I101: 684.5351728 | J101: 722.2472009 | K101: 965.6215979 | L101: 1019.732333 | M101: 1076.671747 | N101: 1136.729742 | O101: 1200.374035
B102: Depreciation | F102: =F97 -> -300 | G102: =G97 -> -323.3333333 | H102: -350.8958333 | I102: -383.9708333 | J102: -424.4877083 | K102: -475.5389708 | L102: -509.0413618 | M102: -555.9447093 | N102: -629.8174815 | O102: -784.9503031
B103: Opex | F103: =F81 -> -105 | G103: -110.25 | H103: -115.7625 | I103: -121.550625 | J103: -127.6281563 | K103: -134.0095641 | L103: -140.7100423 | M103: -147.7455444 | N103: -155.1328216 | O103: -162.8894627
B104: Interest | F104: -61.5 | G104: -59.655 | H104: -57.54691667 | I104: -55.09981458 | J104: -52.21198813 | K104: -48.74274451 | L104: -41.74139167 | M104: -34.19059962 | N104: -25.82251674 | O104: -16.09148121
B105: EBT | F105: =SUM(F101:F104) -> 116.2402528 | G105: =SUM(G101:G104) -> 121.6777556 | H105: 124.6009817 | I105: 123.9138999 | J105: 117.9193482 | K105: 307.3303185 | L105: 328.2395376 | M105: 338.7908937 | N105: 325.9569225 | O105: 236.442788
B106: Calculated tax | F106: =-F105*'Inputs - forecast'!F35 -> -32.54727079 | G106: =-G105*'Inputs - forecast'!G35 -> -34.06977158 | H106: =-H105*'Inputs - forecast'!H35 -> -34.88827486 | I106: =-I105*'Inputs - forecast'!I35 -> -34.69589198 | J106: =-J105*'Inputs - forecast'!J35 -> -33.0174175 | K106: =-K105*'Inputs - forecast'!K35 -> -86.05248917 | L106: =-L105*'Inputs - forecast'!L35 -> -91.90707053 | M106: =-M105*'Inputs - forecast'!M35 -> -94.86145024 | N106: =-N105*'Inputs - forecast'!N35 -> -91.26793829 | O106: =-O105*'Inputs - forecast'!O35 -> -66.20398063
B107: Deferred tax | F107: =IF(F106>0,F106+E107,0) -> 0 | G107: 0 | H107: 0 | I107: 0 | J107: 0 | K107: 0 | L107: 0 | M107: 0 | N107: 0 | O107: 0
B108: Tax | F108: =IF(F107>0,0,F106+E107) -> -32.54727079 | G108: -34.06977158 | H108: -34.88827486 | I108: -34.69589198 | J108: -33.0174175 | K108: -86.05248917 | L108: -91.90707053 | M108: -94.86145024 | N108: -91.26793829 | O108: -66.20398063
A110: Tax adjustment | E110: NPV
B111: Tax | F111: =F108 -> -32.54727079 | G111: -34.06977158 | H111: -34.88827486 | I111: -34.69589198 | J111: -33.0174175 | K111: -86.05248917 | L111: -91.90707053 | M111: -94.86145024 | N111: -91.26793829 | O111: -66.20398063
B112: NPV of actual tax | E112: =SUM(F112:O112) -> -345.0020818 | F112: =F111/'Inputs - actual'!F$32 -> -29.77712259 | G112: =G111/'Inputs - actual'!G32 -> -28.51711094 | H112: =H111/'Inputs - actual'!H32 -> -26.71676991 | I112: =I111/'Inputs - actual'!I32 -> -24.30808038 | J112: =J111/'Inputs - actual'!J32 -> -21.16332297 | K112: =K111/'Inputs - actual'!K32 -> -50.46291656 | L112: =L111/'Inputs - actual'!L32 -> -49.30897619 | M112: =M111/'Inputs - actual'!M32 -> -46.56235882 | N112: =N111/'Inputs - actual'!N32 -> -40.98562907 | O112: =O111/'Inputs - actual'!O32 -> -27.19979431
B114: Forecast tax adjusted for inflation | F114: =F$10/'Inputs - forecast'!F$18*'Inputs - actual'!F$14 -> -39.8515649 | G114: =G$10/'Inputs - forecast'!G$18*'Inputs - actual'!G$14 -> -37.53176477 | H114: =H$10/'Inputs - forecast'!H$18*'Inputs - actual'!H$14 -> -34.24710984 | I114: =I$10/'Inputs - forecast'!I$18*'Inputs - actual'!I$14 -> -29.64589373 | J114: =J$10/'Inputs - forecast'!J$18*'Inputs - actual'!J$14 -> -23.19103943 | K114: =K$10/'Inputs - forecast'!K$21*'Inputs - actual'!K$14 -> -91.63771652 | L114: =L$10/'Inputs - forecast'!L$21*'Inputs - actual'!L$14 -> -92.1080993 | M114: =M$10/'Inputs - forecast'!M$21*'Inputs - actual'!M$14 -> -89.37134447 | N114: =N$10/'Inputs - forecast'!N$21*'Inputs - actual'!N$14 -> -79.54636949 | O114: =O$10/'Inputs - forecast'!O$21*'Inputs - actual'!O$14 -> -46.99456288
B115: NPV of forecast tax adjusted for inflation | E115: =SUM(F115:O115) -> -331.7873521 | F115: =F114/'Inputs - actual'!F$32 -> -36.45973702 | G115: =G114/'Inputs - actual'!G$32 -> -31.41487161 | H115: =H114/'Inputs - actual'!H$32 -> -26.22577807 | I115: =I114/'Inputs - actual'!I$32 -> -20.77003146 | J115: =J114/'Inputs - actual'!J$32 -> -14.86486512 | K115: =K114/'Inputs - actual'!K$32 -> -53.73820661 | L115: =L114/'Inputs - actual'!L$32 -> -49.41682995 | M115: =M114/'Inputs - actual'!M$32 -> -43.86756263 | N115: =N114/'Inputs - actual'!N$32 -> -35.72183238 | O115: =O114/'Inputs - actual'!O$32 -> -19.30763727
B116: Difference | E116: =E115-E112 -> 13.21472964
A118: Real revenue | F118: =F80/'Inputs - actual'!F$14 -> 554.990717 | G118: =G80/'Inputs - actual'!G$14 -> 557.7470195 | H118: =H80/'Inputs - actual'!H$14 -> 560.4632171 | I118: =I80/'Inputs - actual'!I$14 -> 563.1687808 | J118: =J80/'Inputs - actual'!J$14 -> 565.8995806 | K118: =K80/'Inputs - actual'!K$14 -> 720.5617037 | L118: =L80/'Inputs - actual'!L$14 -> 724.7047311 | M118: =M80/'Inputs - actual'!M$14 -> 728.7338183 | N118: =N80/'Inputs - actual'!N$14 -> 732.7461272 | O118: =O80/'Inputs - actual'!O$14 -> 736.9255292
